Workbook

Sheet Front Page
X1: Choose your school
X2: Akiva | Y2: 3520
X3: All Saints' CE School (N20) | Y3: 3317
X4: All Saints' CE School (NW2) | Y4: 3300
X5: Annunciation RC Infant School | Y5: 3500
X6: Annunciation RC Junior School | Y6: 3514
D7: 2017-18 FINAL OUTTURN STATEMENTS | X7: Barnfield School | Y7: 2002
X8: Beis Yaakov | Y8: 2079
D9: Choose your school | F9: =VLOOKUP(D9,X:Y,2,0) -> 0 | X9: Beit Shvidler | Y9: 3524
X10: Bell Lane School | Y10: 2003
X11: Blessed Dominic RC School | Y11: 3511
X12: Brookhill Nursery | Y12: 1000
X13: Brookland Infant School | Y13: 2008
X14: Brookland Junior School | Y14: 2007
X15: Brunswick Park School | Y15: 2009
X16: Chalgrove School | Y16: 2067
X17: Childs Hill School | Y17: 2010
X18: Christ Church CE School | Y18: 3302
X19: Church Hill School | Y19: 2011
X20: Colindale School | Y20: 2014
X21: Coppetts Wood School | Y21: 2015
X22: Courtland School | Y22: 2016
X23: Cromer Road School | Y23: 2017
X24: Danegrove School | Y24: 2073
X25: Deansbrook Infant School | Y25: 2019
X26: Dollis Infant School | Y26: 2021
X27: Dollis Junior School | Y27: 5200
X28: Edgware Primary | Y28: 2023
D29: Contacts: | X29: Fairway School | Y29: 2024
D30: Claudette James 0208 359 7132 | X30: Finchley Catholic High School | Y30: 5405
D31: Nicole Gibson 0208 359 7223 Tues/Weds/Thurs | X31: Foulds School | Y31: 2025
X32: Friern Barnet School | Y32: 4003
X33: Frith Manor School | Y33: 2026
X34: Garden Suburb Infant School | Y34: 2028
X35: Garden Suburb Junior School | Y35: 2027
X36: Goldbeaters School | Y36: 2029
X37: Hampden Way Nursery | Y37: 1001
X38: Hasmonean Primary School | Y38: 3516
X39: Hollickwood School | Y39: 2031
X40: Holly Park School | Y40: 2032
X41: Holy Trinity CE School | Y41: 3304
X42: JCoSS | Y42: 5427
X43: Livingstone School | Y43: 2036
X44: Manorside School | Y44: 2037
X45: Mapledown School | Y45: 7010
X46: Martin Primary | Y46: 3523
X47: Mathilda Marks Kennedy School | Y47: 5948
X48: Menorah Foundation School | Y48: 5949
X49: Menorah High School | Y49: 4004
X50: Menorah Primary School | Y50: 3513
X51: Monken Hadley CE School | Y51: 3305
X52: Monkfrith School | Y52: 2042
X53: Moss Hall Infant School | Y53: 2044
X54: Moss Hall Junior School | Y54: 2043
X55: Moss Hall Nursery | Y55: 1002
X56: Northgate | Y56: 1102
X57: Northside School | Y57: 2045
X58: Northway School | Y58: 7005
X59: Oakleigh School | Y59: 7009
X60: Orion School | Y60: 2077
X61: Osidge School | Y61: 5201
X62: Our Lady of Lourdes RC School | Y62: 3501
X63: Pardes House School | Y63: 2078
X64: Queenswell Infant School | Y64: 2071
X65: Queenswell Junior School | Y65: 2072
X66: Rosh Pinah School | Y66: 3512
X67: Sacks Morasha | Y67: 2041
X68: Sacred Heart RC School | Y68: 3510
X69: St Agnes' RC School | Y69: 3502
X70: St Andrew's CE School | Y70: 3315
X71: St Catherine's RC School | Y71: 3504
X72: St James' Catholic High School | Y72: 5407
X73: St John's CE School (N11) | Y73: 3307
X74: St John's CE School (N20) | Y74: 3309
X75: St Joseph's RC Primary School | Y75: 3509
X76: St Margaret's Nursery | Y76: 1003
X77: St Mary's & St Johns Primary | Y77: 3521
X78: St Mary's CE School (EN4) | Y78: 3312
X79: St Mary's CE School (N3) | Y79: 3311
X80: St Michael's Catholic Grammar School | Y80: 5404
X81: St Paul's CE School (N11) | Y81: 3313
X82: St Paul's CE School (NW7) | Y82: 3314
X83: St Theresa's RC School | Y83: 3507
X84: St Vincent's RC School | Y84: 3506
X85: Sunnyfields School | Y85: 2070
X86: The Pavilion | Y86: 1100
X87: Trent CE School | Y87: 3316
X88: Tudor School | Y88: 2055
X89: Underhill School | Y89: 2057
X90: Wessex Gardens School | Y90: 2076
X91: Whitings Hill School | Y91: 2060
X92: Woodcroft Primary | Y92: 3518
X93: Woodridge School | Y93: 2054
X97: =COUNTA(X2:X93) -> 92

Sheet OUTTURN STATEMENT
E3: ='Front Page'!$F$9 -> 0
B5: London Borough of Barnet
B6: Summary of Final Outturn Position &
B7: Statement of Central / Salary Account FY 2017-18
D8: Option | E8: =VLOOKUP($E$9,'I01 I02 I03 FUNDING 2017-18'!$B$3:$L$94,2,FALSE) -> 
B9: =VLOOKUP(E10,A62:B169,2,0) ->  | D9: Cost Centre | E9: =VLOOKUP(E10,A:C,3,0) -> 
D10: DfE No | E10: ='Front Page'!$F$9 -> 0
B12: Summary | C12: £ | D12: £ | E12: £
B14: In year Income | C14: =VLOOKUP($E$9,'In year Outturn'!$A$4:$F$96,4,0) -> 
B15: In year Expenditure | C15: =VLOOKUP($E$9,'In year Outturn'!$A$4:$F$96,5,0) -> 
B16: =IF(D16<0,"Net in-Year Underspend","Net in-Year Overspend") ->  | D16: =SUM(C14:C15) -> 
B18: =IF(D18>0,"Underspend b/fwd from 2016-17","Overspend b/fwd from 2016-17") ->  | D18: =VLOOKUP($E$9,'Indschls 17-18'!$B$5:$O$113,13,0) -> 
B20: =IF(E20>0,"Cumulative Surplus c/fwd as at 31.03.18","Cumulative Deficit c/fwd as at 31.03.18") ->  | E20: =D18-D16 -> 
B22: =IF(E20>0,"The cumulative surplus is made up of: -","The cumulative deficit is made up of: -") -> 
B23: =IF(E23>0,"Revenue Surplus","Revenue Deficit") ->  | E23: =VLOOKUP($E$9,'Indschls 17-18'!$B$5:$O$113,3,0) -> 
B24: =IF(E24>0,"Capital Surplus","Capital Deficit") ->  | E24: =VLOOKUP($E$9,'Indschls 17-18'!$B$5:$O$113,8,0) -> 
B27: Central / Salary Account | C27: £ | D27: £ | E27: £
B29: 2017-18 Funding I01 to I03 | C29: =VLOOKUP($E$9,'I01 I02 I03 FUNDING 2017-18'!$B$3:$L$94,9,FALSE) -> 
B31: Amount of Funding Deposited in Central / Salary Account (Option A and C schools only) | D31: =VLOOKUP($E$9,'I01 I02 I03 FUNDING 2017-18'!$B$3:$L$94,11,FALSE) -> 
B32: Expenditure via Central/Salary Account (i.e. E01 to E07 + redundancy) Option A and C schools only | D32: =IF(OR($E$8="A",$E$8="C"),VLOOKUP($E$9,'Integra Salaries A to C Summary'!$A$5:$D$73,4,0),0) -> 
B34: =IF(D34>0,"Surplus Cash held in Central/Salary Account re 17-18 Salaries","Shortfall of Cash held in Central/Salary Account re 17-18 Salaries") ->  | D34: =D31-D32 -> 
B36: Add: Spring term LTS & Maternity claim including clawback/rebate | D36: =IF(ISERROR(VLOOKUP(E9,'spring term summary'!$B$7:$S$99,18,0)),0,VLOOKUP(E9,'spring term summary'!$B$7:$S$99,18,0)) -> 0
B38: Central/Salary Account Balance as at 31.03.18 | E38: =D34+D36 -> 
B41: =IF(E41>0,"A transfer will be made into your Local Bank Account - If the balance is zero please ignore.","Please raise a cheque made payable to 'The London Borough of Barnet' and forward to The Schools Accountancy Section by Friday 8th June - If the balance is zero please ignore. ") ->  | E41: =E38 -> 
A62: 1000 | B62: Brookhill Nursery | C62: 10130 | D62: 1000
A63: 1001 | B63: Hampden Way Nursery | C63: 10131 | D63: 1001
A64: 1002 | B64: Moss Hall Nursery | C64: 10132 | D64: 1002
A65: 1003 | B65: St Margaret's Nursery | C65: 10133 | D65: 1003
A66: 2000 | B66: Parkfield School | C66: 10120 | D66: 2000
A67: 2002 | B67: Barnfield School | C67: 10044 | D67: 2002
A68: 2003 | B68: Bell Lane School | C68: 10045 | D68: 2003
A69: 2007 | B69: Brookland Junior School | C69: 10046 | D69: 2007
A70: 2008 | B70: Brookland Infant School | C70: 10047 | D70: 2008
A71: 2009 | B71: Brunswick Park School | C71: 10048 | D71: 2009
A72: 2010 | B72: Childs Hill School | C72: 10049 | D72: 2010
A73: 2011 | B73: Church Hill School | C73: 10051 | D73: 2011
A74: 2014 | B74: Colindale School | C74: 10054 | D74: 2014
A75: 2015 | B75: Coppetts Wood School | C75: 10055 | D75: 2015
A76: 2016 | B76: Courtland School | C76: 10056 | D76: 2016
A77: 2017 | B77: Cromer Road School | C77: 10057 | D77: 2017
A78: 2018 | B78: Deansbrook Junior School | C78: 10058 | D78: 2018
A79: 2019 | B79: Deansbrook Infant School | C79: 10059 | D79: 2019
A80: 2021 | B80: Dollis Infant School | C80: 10061 | D80: 2021
A81: 2022 | B81: Edgware Junior School | C81: 10062 | D81: 2022
A82: 2023 | B82: Edgware Infant School | C82: 10063 | D82: 2023
A83: 2024 | B83: Fairway School | C83: 10064 | D83: 2024
A84: 2025 | B84: Foulds School | C84: 10065 | D84: 2025
A85: 2026 | B85: Frith Manor School | C85: 10066 | D85: 2026
A86: 2027 | B86: Garden Suburb Junior School | C86: 10067 | D86: 2027
A87: 2028 | B87: Garden Suburb Infant School | C87: 10068 | D87: 2028
A88: 2029 | B88: Goldbeaters School | C88: 10069 | D88: 2029
A89: 2031 | B89: Hollickwood School | C89: 10071 | D89: 2031
A90: 2032 | B90: Holly Park School | C90: 10072 | D90: 2032
A91: 2036 | B91: Livingstone School | C91: 10074 | D91: 2036
A92: 2037 | B92: Manorside School | C92: 10075 | D92: 2037
A93: 2041 | B93: Sacks Morasha | C93: 11381 | D93: 2041
A94: 2042 | B94: Monkfrith School | C94: 10079 | D94: 2042
A95: 2043 | B95: Moss Hall Junior School | C95: 10080 | D95: 2043
A96: 2044 | B96: Moss Hall Infant School | C96: 10081 | D96: 2044
A97: 2045 | B97: Northside School | C97: 10082 | D97: 2045
A98: 2052 | B98: Summerside School | C98: 10098 | D98: 2052
A99: 2054 | B99: Woodridge School | C99: 10109 | D99: 2054
A100: 2055 | B100: Tudor School | C100: 10101 | D100: 2055
A101: 2056 | B101: Underhill Junior School | C101: 10102 | D101: 2056
A102: 2057 | B102: Underhill Infant School | C102: 10103 | D102: 2057
A103: 2060 | B103: Whitings Hill School | C103: 10105 | D103: 2060
A104: 2067 | B104: Chalgrove School | C104: 10118 | D104: 2067
A105: 2070 | B105: Sunnyfields School | C105: 10097 | D105: 2070
A106: 2071 | B106: Queenswell Infant School | C106: 10119 | D106: 2071
A107: 2072 | B107: Queenswell Junior School | C107: 10086 | D107: 2072
A108: 2073 | B108: Danegrove School | C108: 10083 | D108: 2073
A109: 2074 | B109: Hyde School | C109: 10122 | D109: 2074
A110: 2076 | B110: Wessex Gardens School | C110: 10124 | D110: 2076
A111: 2077 | B111: Orion School | C111: 10127 | D111: 2077
A112: 2078 | B112: Pardes House School | C112: 10129 | D112: 2078
A113: 2079 | B113: Beis Yaakov | C113: 10128 | D113: 2079
A114: 3300 | B114: All Saints' CE School (NW2) | C114: 10040 | D114: 3300
A115: 3302 | B115: Christ Church CE School | C115: 10050 | D115: 3302
A116: 3304 | B116: Holy Trinity CE School | C116: 10073 | D116: 3304
A117: 3305 | B117: Monken Hadley CE School | C117: 10078 | D117: 3305
A118: 3307 | B118: St. John's CE School (N11) | C118: 10089 | D118: 3307
A119: 3309 | B119: St. John's CE School (N20) | C119: 10116 | D119: 3309
A120: 3311 | B120: St. Mary's CE School (N3) | C120: 10092 | D120: 3311
A121: 3312 | B121: St. Mary's CE School (EN4) | C121: 10093 | D121: 3312
A122: 3313 | B122: St. Paul's CE School (N11) | C122: 10094 | D122: 3313
A123: 3314 | B123: St. Paul's CE School (NW7) | C123: 10095 | D123: 3314
A124: 3315 | B124: St. Andrew's CE School | C124: 10099 | D124: 3315
A125: 3316 | B125: Trent CE School | C125: 10100 | D125: 3316
A126: 3317 | B126: All Saints' CE School (N20) | C126: 10042 | D126: 3317
A127: 3500 | B127: Annunciation RC Infant School | C127: 10043 | D127: 3500
A128: 3501 | B128: Our Lady of Lourdes RC School | C128: 10085 | D128: 3501
A129: 3502 | B129: St. Agnes' RC School | C129: 10087 | D129: 3502
A130: 3504 | B130: St. Catherine's RC School | C130: 10088 | D130: 3504
A131: 3506 | B131: St. Vincent's RC School | C131: 10096 | D131: 3506
A132: 3507 | B132: St. Theresa's RC School | C132: 10108 | D132: 3507
A133: 3508 | B133: St. Joseph's RC Infant School | C133: 10111 | D133: 3508
A134: 3509 | B134: St. Joseph's RC Junior School | C134: 10107 | D134: 3509
A135: 3510 | B135: Sacred Heart RC School | C135: 10110 | D135: 3510
A136: 3511 | B136: Blessed Dominic RC School | C136: 10115 | D136: 3511
A137: 3512 | B137: Rosh Pinah School | C137: 10112 | D137: 3512
A138: 3513 | B138: Menorah Primary School | C138: 10114 | D138: 3513
A139: 3514 | B139: Annunciation RC Junior School | C139: 10117 | D139: 3514
A140: 3516 | B140: Hasmonean Primary School | C140: 10121 | D140: 3516
A141: 3518 | B141: Woodcroft Primary | C141: 10123 | D141: 3518
A142: 3519 | B142: Broadfields Primary | C142: 10134 | D142: 3519
A143: 3520 | B143: Akiva | C143: 11094 | D143: 3520
A144: 3521 | B144: St. Mary's & St. Johns Primary | C144: 10698 | D144: 3521
A145: 3522 | B145: Claremont Primary | C145: 10953 | D145: 3522
A146: 3523 | B146: Martin Primary | C146: 11093 | D146: 3523
A147: 3524 | B147: Beit Shvidler | C147: 11278 | D147: 3524
A148: 4003 | B148: Friern Barnet School | C148: 10139 | D148: 4003
A149: 4004 | B149: Menorah High School | C149: 11513 | D149: 4004
A150: 5200 | B150: Dollis Junior School | C150: 10060 | D150: 5200
A151: 5201 | B151: Osidge School | C151: 10084 | D151: 5201
A152: 5403 | B152: St Mary's CE High School | C152: 10143 | D152: 5403
A153: 5404 | B153: St. Michael's Catholic Grammar School | C153: 10148 | D153: 5404
A154: 5405 | B154: Finchley Catholic High School | C154: 10145 | D154: 5405
A155: 5407 | B155: St James' Catholic High School | C155: 10142 | D155: 5407
A156: 5408 | B156: Bishop Douglass RC High | C156: 10137 | D156: 5408
A157: 5427 | B157: JCoSS | C157: 11174 | D157: 5427
A158: 5948 | B158: Mathilda Marks Kennedy School | C158: 10125 | D158: 5948
A159: 5949 | B159: Menorah Foundation School | C159: 10126 | D159: 5949
A160: 7000 | B160: Oak Lodge School | C160: 10156 | D160: 7000
A161: 7005 | B161: Northway School | C161: 10157 | D161: 7005
A162: 7009 | B162: Oakleigh School | C162: 10158 | D162: 7009
A163: 7010 | B163: Mapledown School | C163: 10159 | D163: 7010
A164: 1102 | B164: Northgate | C164: 10185 | D164: 1102
A165: 1100 | B165: The Pavilion | C165: 10188 | D165: 1100

Sheet Indschls 17-18
B1: 1 | C1: 2 | D1: 3 | E1: 4 | F1: 5 | G1: 6 | H1: 7 | I1: 8 | J1: 9 | K1: 10 | L1: 11 | M1: 12 | N1: 13 | O1: 14
C2: Final Individual School Outturn Balances 2017-18
D3: Rev | E3: Revenue | I3: Cap | J3: Capital | N3: Total Balance
C4: School | D4: As at 31.03.18 | E4: As at 31.03.17 | F4: Balance as % Final Budget Share 17-18 | G4: Increase / (decrease) | I4: As at 31.03.18 | J4: =E4 -> As at 31.03.17 | K4: Increase / (decrease) | M4: As at 31.03.18 | N4: =E4 -> As at 31.03.17 | O4: Increase / (decrease)
A5: 1000 | B5: 10130 | C5: Brookhill | D5: =[64]Brk!$H$66 -> 156379.92 | E5: =VLOOKUP(B5,[65]EOY!$A$3:$F$99,4,0) -> 158461.67 | F5: 0 | G5: =D5-E5 -> -2081.75 | I5: =[64]Brk!$H$76 -> 4720.55 | J5: =VLOOKUP(B5,[65]EOY!$A$3:$F$99,6,0) -> 1.25 | K5: =I5-J5 -> 4719.3 | M5: =D5+I5 -> 161100.47 | N5: =E5+J5 -> 158462.92 | O5: =M5-N5 -> 2637.55
A6: 1001 | B6: 10131 | C6: Hampden Way | D6: =[64]Hmp!$H$70 -> 168833.62 | E6: =VLOOKUP(B6,[65]EOY!$A$3:$F$99,4,0) -> 125592.15 | F6: 0 | G6: =D6-E6 -> 43241.47 | I6: =[64]Hmp!$H$81 -> 3841.38 | J6: =VLOOKUP(B6,[65]EOY!$A$3:$F$99,6,0) -> 8014.7 | K6: =I6-J6 -> -4173.32 | M6: =D6+I6 -> 172675 | N6: =E6+J6 -> 133606.85 | O6: =M6-N6 -> 39068.15
A7: 1002 | B7: 10132 | C7: Moss Hall | D7: =[64]MHN!$H$70 -> 304596.52 | E7: =VLOOKUP(B7,[65]EOY!$A$3:$F$99,4,0) -> 302766.64 | F7: 0 | G7: =D7-E7 -> 1829.88 | I7: =[64]MHN!$H$81 -> 9136.26 | J7: =VLOOKUP(B7,[65]EOY!$A$3:$F$99,6,0) -> 10046 | K7: =I7-J7 -> -909.74 | M7: 313732.78 | N7: =E7+J7 -> 312812.64 | O7: =M7-N7 -> 920.14
A8: 1003 | B8: 10133 | C8: St Margarets | D8: =[64]StM!$H$67 -> 14131.35 | E8: =VLOOKUP(B8,[65]EOY!$A$3:$F$99,4,0) -> 29080.69 | F8: 0 | G8: =D8-E8 -> -14949.34 | I8: =[64]StM!$H$79 -> 5855.55 | J8: =VLOOKUP(B8,[65]EOY!$A$3:$F$99,6,0) -> 1054.85 | K8: =I8-J8 -> 4800.7 | M8: 19986.9 | N8: =E8+J8 -> 30135.54 | O8: =M8-N8 -> -10148.64
C10: Sub Total - Nursery Sector | D10: =SUM(D5:D8) -> 643941.41 | E10: =SUM(E5:E8) -> 615901.15 | F10: =SUM(F5:F8) -> 0 | G10: =SUM(G5:G8) -> 28040.26 | I10: =SUM(I5:I8) -> 23553.74 | J10: =SUM(J5:J8) -> 19116.8 | K10: 4436.94 | L10: 0 | M10: 667495.15 | N10: 635017.95 | O10: 32477.2
A12: 3520 | B12: 11094 | C12: Akiva | D12: =[64]Akv!$H$72 -> 37544.6 | E12: =VLOOKUP(B12,[65]EOY!$A$3:$F$99,4,0) -> -34411.53 | F12: 0 | G12: =D12-E12 -> 71956.13 | I12: 0 | J12: =VLOOKUP(B12,[65]EOY!$A$3:$F$99,6,0) -> 9.313225746e-12 | K12: =I12-J12 -> -9.313225746e-12 | M12: =D12+I12 -> 37544.6 | N12: -34411.53 | O12: =M12-N12 -> 71956.13
A13: 3317 | B13: 10042 | C13: All Saints' CE School (N20) | D13: =[64]AstN20!$H$72 -> 123256.73 | E13: =VLOOKUP(B13,[65]EOY!$A$3:$F$99,4,0) -> 151873.35 | F13: 0 | G13: -28616.62 | I13: =[64]AstN20!$H$83 -> 0 | J13: =VLOOKUP(B13,[65]EOY!$A$3:$F$99,6,0) -> 0 | K13: 0 | M13: 123256.73 | N13: 151873.35 | O13: -28616.62
A14: 3300 | B14: 10040 | C14: All Saints' CE School (NW2) | D14: =[64]AstNW2!$H$71 -> 106584.36 | E14: =VLOOKUP(B14,[65]EOY!$A$3:$F$99,4,0) -> 205150.3 | F14: 0 | G14: -98565.94 | I14: =[64]AstNW2!$H$81 -> 0 | J14: =VLOOKUP(B14,[65]EOY!$A$3:$F$99,6,0) -> 0 | K14: 0 | M14: 106584.36 | N14: 205150.3 | O14: -98565.94
A15: 3500 | B15: 10043 | C15: Annunciation RC Infant School | D15: =[64]AnnI!$H$65 -> 175894.23 | E15: =VLOOKUP(B15,[65]EOY!$A$3:$F$99,4,0) -> 122676.4 | F15: 0 | G15: 53217.83 | I15: 0 | J15: =VLOOKUP(B15,[65]EOY!$A$3:$F$99,6,0) -> 0 | K15: 0 | M15: 175894.23 | N15: 122676.4 | O15: 53217.83
A16: 3514 | B16: 10117 | C16: Annunciation RC Junior School | D16: =[64]AnnJ!$H$70 -> 103114.32 | E16: =VLOOKUP(B16,[65]EOY!$A$3:$F$99,4,0) -> 60712.28 | F16: 0 | G16: 42402.04 | I16: 0 | J16: =VLOOKUP(B16,[65]EOY!$A$3:$F$99,6,0) -> 0 | K16: 0 | M16: 103114.32 | N16: 60712.28 | O16: 42402.04
A17: 2002 | B17: 10044 | C17: Barnfield School | D17: =[64]Barnf!$H$75 -> 411190.28 | E17: =VLOOKUP(B17,[65]EOY!$A$3:$F$99,4,0) -> 375651.24 | F17: 0 | G17: 35539.04 | I17: =[64]Barnf!$H$87 -> -1.09 | J17: =VLOOKUP(B17,[65]EOY!$A$3:$F$99,6,0) -> -1.07 | K17: -0.02 | M17: 411189.19 | N17: 375650.17 | O17: 35539.02
A18: 2079 | B18: 10128 | C18: Beis Yaakov | D18: =[64]BYaak!$H$70 -> 55568.34 | E18: =VLOOKUP(B18,[65]EOY!$A$3:$F$99,4,0) -> 15010.96 | F18: 0 | G18: 40557.38 | I18: 0 | J18: =VLOOKUP(B18,[65]EOY!$A$3:$F$99,6,0) -> 0 | K18: 0 | M18: 55568.34 | N18: 15010.96 | O18: 40557.38
A19: 3524 | B19: 11278 | C19: Beit Shvidler Jewish Primary | D19: =[64]BeitShv!$H$69 -> 72683.38 | E19: =VLOOKUP(B19,[65]EOY!$A$3:$F$99,4,0) -> 58611.57 | F19: 0 | G19: 14071.81 | I19: 0 | J19: 0 | K19: 0 | M19: 72683.38 | N19: 58611.57 | O19: 14071.81
A20: 2003 | B20: 10045 | C20: Bell Lane School | D20: =[64]Bell!$H$76 -> 100729.37 | E20: =VLOOKUP(B20,[65]EOY!$A$3:$F$99,4,0) -> 80741.78 | F20: 0 | G20: 19987.59 | I20: =[64]Bell!$H$89 -> 979.74 | J20: =VLOOKUP(B20,[65]EOY!$A$3:$F$99,6,0) -> 8826.48 | K20: -7846.74 | M20: 101709.11 | N20: 89568.26 | O20: 12140.85
A21: 3511 | B21: 10115 | C21: Blessed Dominic RC School | D21: =[64]BDom!$H$72 -> 214487.75 | E21: =VLOOKUP(B21,[65]EOY!$A$3:$F$99,4,0) -> 74706.87 | F21: 0 | G21: 139780.88 | I21: =[64]BDom!$H$78 -> 1 | J21: =VLOOKUP(B21,[65]EOY!$A$3:$F$99,6,0) -> 1 | K21: 0 | M21: 214488.75 | N21: 74707.87 | O21: 139780.88
A22: 2008 | B22: 10047 | C22: Brookland Infant School | D22: =[64]BrookI!$H$71 -> 118776.9 | E22: =VLOOKUP(B22,[65]EOY!$A$3:$F$99,4,0) -> 49818.02 | F22: 0 | G22: 68958.88 | I22: =[64]BrookI!$H$81 -> 9148 | J22: =VLOOKUP(B22,[65]EOY!$A$3:$F$99,6,0) -> 1423.94 | K22: 7724.06 | M22: 127924.9 | N22: 51241.96 | O22: 76682.94
A23: 2007 | B23: 10046 | C23: Brookland Junior School | D23: =[64]BrookJ!$H$73 -> 154040.27 | E23: =VLOOKUP(B23,[65]EOY!$A$3:$F$99,4,0) -> 181476.19 | F23: 0 | G23: -27435.92 | I23: =[64]BrookJ!$H$84 -> -0.05 | J23: =VLOOKUP(B23,[65]EOY!$A$3:$F$99,6,0) -> 912 | K23: -912.05 | M23: 154040.22 | N23: 182388.19 | O23: -28347.97
A24: 2009 | B24: 10048 | C24: Brunswick Park School | D24: =[64]BrunsP!$H$72 -> 265273.83 | E24: =VLOOKUP(B24,[65]EOY!$A$3:$F$99,4,0) -> 119745.33 | F24: 0 | G24: 145528.5 | I24: =[64]BrunsP!$H$85 -> 1546.3 | J24: =VLOOKUP(B24,[65]EOY!$A$3:$F$99,6,0) -> 0 | K24: 1546.3 | M24: 266820.13 | N24: 119745.33 | O24: 147074.8
A25: 2067 | B25: 10118 | C25: Chalgrove School | D25: =[64]Chal!$H$72 -> 113348.11 | E25: =VLOOKUP(B25,[65]EOY!$A$3:$F$99,4,0) -> 126744.1 | F25: 0 | G25: -13395.99 | I25: =[64]Chal!$H$83 -> 6956.75 | J25: =VLOOKUP(B25,[65]EOY!$A$3:$F$99,6,0) -> -1.5 | K25: 6958.25 | M25: 120304.86 | N25: 126742.6 | O25: -6437.74
A26: 2010 | B26: 10049 | C26: Childs Hill School | D26: =[64]ChildsH!$H$73 -> 6740.54 | E26: =VLOOKUP(B26,[65]EOY!$A$3:$F$99,4,0) -> 39642.4 | F26: 0 | G26: -32901.86 | I26: =[64]ChildsH!$H$84 -> 0 | J26: =VLOOKUP(B26,[65]EOY!$A$3:$F$99,6,0) -> 0 | K26: 0 | M26: 6740.54 | N26: 39642.4 | O26: -32901.86
A27: 3302 | B27: 10050 | C27: Christ Church CE School | D27: =[64]ChristC!$H$69 -> 262448.06 | E27: =VLOOKUP(B27,[65]EOY!$A$3:$F$99,4,0) -> 175744.1 | F27: 0 | G27: 86703.96 | J27: =VLOOKUP(B27,[65]EOY!$A$3:$F$99,6,0) -> 0 | K27: 0 | M27: 262448.06 | N27: 175744.1 | O27: 86703.96
A28: 2011 | B28: 10051 | C28: Church Hill School | D28: =[64]ChurchH!$H$70 -> 71783.81 | E28: =VLOOKUP(B28,[65]EOY!$A$3:$F$99,4,0) -> 89142.43 | F28: 0 | G28: -17358.62 | I28: =[64]ChurchH!$H$81 -> -0.25 | J28: =VLOOKUP(B28,[65]EOY!$A$3:$F$99,6,0) -> 161.5 | K28: -161.75 | M28: 71783.56 | N28: 89303.93 | O28: -17520.37
A29: 3522 | B29: 10953 | C29: Claremont Primary | E29: 0 | F29: 0 | G29: 0 | J29: 0 | K29: 0 | M29: 0 | N29: 0 | O29: 0
A30: 2014 | B30: 10054 | C30: Colindale School | D30: =[64]Colin!$H$72 -> 500697.82 | E30: =VLOOKUP(B30,[65]EOY!$A$3:$F$99,4,0) -> 691029.48 | F30: 0 | G30: -190331.66 | I30: =[64]Colin!$H$85 -> 0 | J30: =VLOOKUP(B30,[65]EOY!$A$3:$F$99,6,0) -> 0 | K30: 0 | M30: 500697.82 | N30: 691029.48 | O30: -190331.66
A31: 2015 | B31: 10055 | C31: Coppetts Wood School | D31: =[64]Coppet!$H$76 -> 445664.48 | E31: =VLOOKUP(B31,[65]EOY!$A$3:$F$99,4,0) -> 416463.8 | F31: 0 | G31: 29200.68 | I31: =[64]Coppet!$H$87 -> 14118 | J31: =VLOOKUP(B31,[65]EOY!$A$3:$F$99,6,0) -> 7066.75 | K31: 7051.25 | M31: 459782.48 | N31: 423530.55 | O31: 36251.93
A32: 2016 | B32: 10056 | C32: Courtland School | D32: =[64]Court!$H$74 -> 92609.3 | E32: =VLOOKUP(B32,[65]EOY!$A$3:$F$99,4,0) -> 12493.33 | F32: 0 | G32: 80115.97 | I32: =[64]Court!$H$86 -> 0.66 | J32: =VLOOKUP(B32,[65]EOY!$A$3:$F$99,6,0) -> 11092.19 | K32: -11091.53 | M32: 92609.96 | N32: 23585.52 | O32: 69024.44
A33: 2017 | B33: 10057 | C33: Cromer Road School | D33: =[64]Cromer!$H$71 -> 173552.5 | E33: =VLOOKUP(B33,[65]EOY!$A$3:$F$99,4,0) -> 137978.37 | F33: 0 | G33: 35574.13 | I33: =[64]Cromer!$H$82 -> 14872.5 | J33: =VLOOKUP(B33,[65]EOY!$A$3:$F$99,6,0) -> 14715.2 | K33: 157.3 | M33: 188425 | N33: 152693.57 | O33: 35731.43
A34: 2073 | B34: 10083 | C34: Danegrove School | D34: =[64]Daneg!$H$72 -> 351920.21 | E34: =VLOOKUP(B34,[65]EOY!$A$3:$F$99,4,0) -> 461078.79 | F34: 0 | G34: -109158.58 | I34: =[64]Daneg!$H$82 -> 647.25 | J34: =VLOOKUP(B34,[65]EOY!$A$3:$F$99,6,0) -> -0.25 | K34: 647.5 | M34: 352567.46 | N34: 461078.54 | O34: -108511.08
A35: 2019 | B35: 10059 | C35: Deansbrook Infant School | D35: =[64]DeansI!$H$70 -> 116843.48 | E35: =VLOOKUP(B35,[65]EOY!$A$3:$F$99,4,0) -> 36222.56 | F35: 0 | G35: 80620.92 | I35: =[64]DeansI!$H$81 -> 13770 | J35: =VLOOKUP(B35,[65]EOY!$A$3:$F$99,6,0) -> 15618.25 | K35: -1848.25 | M35: 130613.48 | N35: 51840.81 | O35: 78772.67
A36: 2021 | B36: 10061 | C36: Dollis Infant School | D36: =[64]DollisI!$H$72 -> 184963.85 | E36: =VLOOKUP(B36,[65]EOY!$A$3:$F$99,4,0) -> 84238.55 | F36: 0 | G36: 100725.3 | I36: =[64]DollisI!$H$82 -> 14581.35 | J36: =VLOOKUP(B36,[65]EOY!$A$3:$F$99,6,0) -> 16523.97 | K36: -1942.62 | M36: 199545.2 | N36: 100762.52 | O36: 98782.68
A37: 5200 | B37: 10060 | C37: Dollis Junior School | D37: =[64]DollisJ!$H$70 -> 61398.24 | E37: =VLOOKUP(B37,[65]EOY!$A$3:$F$99,4,0) -> 32911.35 | F37: 0 | G37: 28486.89 | I37: =[64]DollisJ!$H$81 -> 6403.5 | J37: =VLOOKUP(B37,[65]EOY!$A$3:$F$99,6,0) -> 5264 | K37: 1139.5 | M37: 67801.74 | N37: 38175.35 | O37: 29626.39
A38: 2023 | B38: 10063 | C38: Edgware Primary | D38: =[64]EdgwP!$H$72 -> 56561.46 | E38: =VLOOKUP(B38,[65]EOY!$A$3:$F$99,4,0) -> 16604.28 | F38: 0 | G38: 39957.18 | I38: =[64]EdgwP!$H$85 -> 0.37 | J38: =VLOOKUP(B38,[65]EOY!$A$3:$F$99,6,0) -> 641.6 | K38: -641.23 | M38: 56561.83 | N38: 17245.88 | O38: 39315.95
A39: 2024 | B39: 10064 | C39: Fairway School | D39: =[64]Fair!$H$75 -> 167149.75 | E39: =VLOOKUP(B39,[65]EOY!$A$3:$F$99,4,0) -> 170460.72 | F39: 0 | G39: -3310.97 | I39: =[64]Fair!$H$86 -> 21468.89 | J39: =VLOOKUP(B39,[65]EOY!$A$3:$F$99,6,0) -> 39959.07 | K39: -18490.18 | M39: 188618.64 | N39: 210419.79 | O39: -21801.15
A40: 2025 | B40: 10065 | C40: Foulds School | D40: =[64]Fould!$H$72 -> 171440.37 | E40: =VLOOKUP(B40,[65]EOY!$A$3:$F$99,4,0) -> 96651.58 | F40: 0 | G40: 74788.79 | I40: =[64]Fould!$H$85 -> 10533.75 | J40: =VLOOKUP(B40,[65]EOY!$A$3:$F$99,6,0) -> 9042.85 | K40: 1490.9 | M40: 181974.12 | N40: 105694.43 | O40: 76279.69
A41: 2026 | B41: 10066 | C41: Frith Manor School | D41: =[64]Frith!$H$69 -> -2176.66 | E41: =VLOOKUP(B41,[65]EOY!$A$3:$F$99,4,0) -> 1968.95 | F41: 0 | G41: -4145.61 | I41: =[64]Frith!$H$81 -> 21611.31 | J41: =VLOOKUP(B41,[65]EOY!$A$3:$F$99,6,0) -> 10303.18 | K41: 11308.13 | M41: 19434.65 | N41: 12272.13 | O41: 7162.52
A42: 2028 | B42: 10068 | C42: Garden Suburb Infant School | D42: =[64]GSubI!$H$71 -> 31127.15 | E42: =VLOOKUP(B42,[65]EOY!$A$3:$F$99,4,0) -> 54373.43 | F42: 0 | G42: -23246.28 | I42: =[64]GSubI!$H$83 -> 17070.75 | J42: =VLOOKUP(B42,[65]EOY!$A$3:$F$99,6,0) -> 11223 | K42: 5847.75 | M42: 48197.9 | N42: 65596.43 | O42: -17398.53
A43: 2027 | B43: 10067 | C43: Garden Suburb Junior School | D43: =[64]GSubJ!$H$72 -> 139042.54 | E43: =VLOOKUP(B43,[65]EOY!$A$3:$F$99,4,0) -> 105199.21 | F43: 0 | G43: 33843.33 | I43: =[64]GSubJ!$H$84 -> 10119.25 | J43: =VLOOKUP(B43,[65]EOY!$A$3:$F$99,6,0) -> 3259.23 | K43: 6860.02 | M43: 149161.79 | N43: 108458.44 | O43: 40703.35
A44: 2029 | B44: 10069 | C44: Goldbeaters School | D44: =[64]Gold!$H$72 -> 59289.67 | E44: =VLOOKUP(B44,[65]EOY!$A$3:$F$99,4,0) -> -10195.16 | F44: 0 | G44: 69484.83 | I44: =[64]Gold!$H$84 -> 8467.05 | J44: =VLOOKUP(B44,[65]EOY!$A$3:$F$99,6,0) -> 8969.25 | K44: -502.2 | M44: 67756.72 | N44: -1225.91 | O44: 68982.63
A45: 3516 | B45: 10121 | C45: Hasmonean Primary School | D45: =[64]HasmoP!$H$70 -> -21033.83 | E45: =VLOOKUP(B45,[65]EOY!$A$3:$F$99,4,0) -> -1986.03 | F45: 0 | G45: -19047.8 | I45: 0 | J45: =IFERROR(VLOOKUP(B45,[65]EOY!$A$3:$F$99,6,0),0) -> 0 | K45: 0 | M45: -21033.83 | N45: -1986.03 | O45: -19047.8
A46: 2031 | B46: 10071 | C46: Hollickwood School | D46: =[64]Hollick!$H$71 -> 111210.9 | E46: =VLOOKUP(B46,[65]EOY!$A$3:$F$99,4,0) -> 156272.67 | F46: 0 | G46: -45061.77 | I46: =[64]Hollick!$H$82 -> 14316.75 | J46: =VLOOKUP(B46,[65]EOY!$A$3:$F$99,6,0) -> 7817.05 | K46: 6499.7 | M46: 125527.65 | N46: 164089.72 | O46: -38562.07
A47: 2032 | B47: 10072 | C47: Holly Park School | D47: =[64]HollyP!$H$70 -> 158878.42 | E47: =VLOOKUP(B47,[65]EOY!$A$3:$F$99,4,0) -> 74560.37 | F47: 0 | G47: 84318.05 | I47: =[64]HollyP!$H$80 -> 13 | J47: =VLOOKUP(B47,[65]EOY!$A$3:$F$99,6,0) -> -0.5 | K47: 13.5 | M47: 158891.42 | N47: 74559.87 | O47: 84331.55
A48: 3304 | B48: 10073 | C48: Holy Trinity CE School | D48: =[64]Holy!$H$71 -> 132956.74 | E48: =VLOOKUP(B48,[65]EOY!$A$3:$F$99,4,0) -> 126491.16 | F48: 0 | G48: 6465.58 | I48: =[64]Holy!$H$81 -> -1 | J48: =VLOOKUP(B48,[65]EOY!$A$3:$F$99,6,0) -> -1 | K48: 0 | M48: 132955.74 | N48: 126490.16 | O48: 6465.58
A49: 2036 | B49: 10074 | C49: Livingstone School | D49: =[64]Living!$H$70 -> 528877.25 | E49: =VLOOKUP(B49,[65]EOY!$A$3:$F$99,4,0) -> 452448.91 | F49: 0 | G49: 76428.34 | I49: =[64]Living!$H$81 -> 3.492459655e-12 | J49: =VLOOKUP(B49,[65]EOY!$A$3:$F$99,6,0) -> 0 | K49: 3.492459655e-12 | M49: 528877.25 | N49: 452448.91 | O49: 76428.34
A50: 2037 | B50: 10075 | C50: Manorside School | D50: =[64]Manor!$H$72 -> -10522.6 | E50: =VLOOKUP(B50,[65]EOY!$A$3:$F$99,4,0) -> 13575.99 | F50: 0 | G50: -24098.59 | I50: =[64]Manor!$H$83 -> 15413.75 | J50: =VLOOKUP(B50,[65]EOY!$A$3:$F$99,6,0) -> 7717 | K50: 7696.75 | M50: 4891.15 | N50: 21292.99 | O50: -16401.84
A51: 3523 | B51: 11093 | C51: Martin Primary | D51: =[64]Martin!$H$72 -> 309495.92 | E51: =VLOOKUP(B51,[65]EOY!$A$3:$F$99,4,0) -> 178533.05 | F51: 0 | G51: 130962.87 | I51: =[64]Martin!$H$85 -> 9203.49 | J51: =VLOOKUP(B51,[65]EOY!$A$3:$F$99,6,0) -> 4214.38 | K51: 4989.11 | M51: 318699.41 | N51: 182747.43 | O51: 135951.98
A52: 5948 | B52: 10125 | C52: Mathilda Marks Kennedy School | D52: =[64]MMK!$H$72 -> 29057.67 | E52: =VLOOKUP(B52,[65]EOY!$A$3:$F$99,4,0) -> 24291.07 | F52: 0 | G52: 4766.6 | I52: 0 | J52: =IFERROR(VLOOKUP(B52,[65]EOY!$A$3:$F$99,6,0),0) -> 0 | K52: 0 | M52: 29057.67 | N52: 24291.07 | O52: 4766.6
A53: 5949 | B53: 10126 | C53: Menorah Foundation School | D53: =[64]MenF!$H$73 -> -31959.81 | E53: =VLOOKUP(B53,[65]EOY!$A$3:$F$99,4,0) -> 64642.85 | F53: 0 | G53: -96602.66 | I53: 0 | J53: =IFERROR(VLOOKUP(B53,[65]EOY!$A$3:$F$99,6,0),0) -> 0 | K53: 0 | M53: -31959.81 | N53: 64642.85 | O53: -96602.66
A54: 3513 | B54: 10114 | C54: Menorah Primary School | D54: =[64]MenP!$H$69 -> 53322.3 | E54: =VLOOKUP(B54,[65]EOY!$A$3:$F$99,4,0) -> -1759.57 | F54: 0 | G54: =D54-E54 -> 55081.87 | I54: =[64]MenP!$H$79 -> -0.5 | J54: =VLOOKUP(B54,[65]EOY!$A$3:$F$99,6,0) -> 0.4 | K54: -0.9 | M54: 53321.8 | N54: -1759.17 | O54: 55080.97
A55: 3305 | B55: 10078 | C55: Monken Hadley CE School | D55: =[64]Monken!$H$72 -> 180209.7 | E55: =VLOOKUP(B55,[65]EOY!$A$3:$F$99,4,0) -> 163465.47 | F55: 0 | G55: 16744.23 | J55: =VLOOKUP(B55,[65]EOY!$A$3:$F$99,6,0) -> 0 | K55: 0 | M55: 180209.7 | N55: 163465.47 | O55: 16744.23
A56: 2042 | B56: 10079 | C56: Monkfrith School | D56: =[64]MonkF!$H$69 -> 80105.96 | E56: =VLOOKUP(B56,[65]EOY!$A$3:$F$99,4,0) -> 122305.27 | F56: 0 | G56: -42199.31 | I56: =[64]MonkF!$H$81 -> 0 | J56: =VLOOKUP(B56,[65]EOY!$A$3:$F$99,6,0) -> 0.44 | K56: -0.44 | M56: 80105.96 | N56: 122305.71 | O56: -42199.75
A57: 2044 | B57: 10081 | C57: Moss Hall Infant School | D57: =[64]MHI!$H$73 -> 69525.54 | E57: =VLOOKUP(B57,[65]EOY!$A$3:$F$99,4,0) -> 72560.58 | F57: 0 | G57: -3035.04 | I57: =[64]MHI!$H$83 -> 8083.75 | J57: =VLOOKUP(B57,[65]EOY!$A$3:$F$99,6,0) -> 0.25 | K57: 8083.5 | M57: 77609.29 | N57: 72560.83 | O57: 5048.46
A58: 2043 | B58: 10080 | C58: Moss Hall Junior School | D58: =[64]MHJ!$H$73 -> 192321.01 | E58: =VLOOKUP(B58,[65]EOY!$A$3:$F$99,4,0) -> 208724.8 | F58: 0 | G58: -16403.79 | I58: =[64]MHJ!$H$86 -> 0.43 | J58: =VLOOKUP(B58,[65]EOY!$A$3:$F$99,6,0) -> 8331.25 | K58: -8330.82 | M58: 192321.44 | N58: 217056.05 | O58: -24734.61
A59: 2045 | B59: 10082 | C59: Northside School | D59: =[64]Norths!$H$72 -> 242852.44 | E59: =VLOOKUP(B59,[65]EOY!$A$3:$F$99,4,0) -> 399998.71 | F59: 0 | G59: -157146.27 | I59: =[64]Norths!$H$85 -> 0.23 | J59: =VLOOKUP(B59,[65]EOY!$A$3:$F$99,6,0) -> 13508.96 | K59: -13508.73 | M59: 242852.67 | N59: 413507.67 | O59: -170655
A60: 2077 | B60: 10127 | C60: Orion School | D60: =[64]Orion!$H$73 -> 221791.84 | E60: =VLOOKUP(B60,[65]EOY!$A$3:$F$99,4,0) -> 120926.72 | F60: 0 | G60: 100865.12 | I60: =[64]Orion!$H$85 -> -0.3 | J60: =VLOOKUP(B60,[65]EOY!$A$3:$F$99,6,0) -> -14020.25 | K60: 14019.95 | M60: 221791.54 | N60: 106906.47 | O60: 114885.07
A61: 5201 | B61: 10084 | C61: Osidge School | D61: =[64]Osidge!$H$72 -> 248450.94 | E61: =VLOOKUP(B61,[65]EOY!$A$3:$F$99,4,0) -> 188193.18 | F61: 0 | G61: 60257.76 | I61: =[64]Osidge!$H$83 -> 0.5 | J61: =VLOOKUP(B61,[65]EOY!$A$3:$F$99,6,0) -> 0.25 | K61: 0.25 | M61: 248451.44 | N61: 188193.43 | O61: 60258.01
A62: 3501 | B62: 10085 | C62: Our Lady of Lourdes RC School | D62: =[64]OLOL!$H$70 -> 21391.12 | E62: =VLOOKUP(B62,[65]EOY!$A$3:$F$99,4,0) -> 61777.65 | F62: 0 | G62: -40386.53 | I62: =[64]OLOL!$H$76 -> 1 | J62: =VLOOKUP(B62,[65]EOY!$A$3:$F$99,6,0) -> 1 | K62: 0 | M62: 21392.12 | N62: 61778.65 | O62: -40386.53
A63: 2078 | B63: 10129 | C63: Pardes House School | D63: =[64]Pardes!$H$68 -> 17532.32 | E63: =VLOOKUP(B63,[65]EOY!$A$3:$F$99,4,0) -> 51517.46 | F63: 0 | G63: -33985.14 | I63: 0 | J63: =IFERROR(VLOOKUP(B63,[65]EOY!$A$3:$F$99,6,0),0) -> 0 | K63: 0 | M63: 17532.32 | N63: 51517.46 | O63: -33985.14
A64: 2071 | B64: 10119 | C64: Queenswell Infant School | D64: =[64]QueenI!$H$71 -> 79254.12 | E64: =VLOOKUP(B64,[65]EOY!$A$3:$F$99,4,0) -> 18395.93 | F64: 0 | G64: 60858.19 | I64: =[64]QueenI!$H$82 -> 15090.75 | J64: =VLOOKUP(B64,[65]EOY!$A$3:$F$99,6,0) -> 7691 | K64: 7399.75 | M64: 94344.87 | N64: 26086.93 | O64: 68257.94
A65: 2072 | B65: 10086 | C65: Queenswell Junior School | D65: =[64]QueenJ!$H$71 -> 134490 | E65: =VLOOKUP(B65,[65]EOY!$A$3:$F$99,4,0) -> 66539 | F65: 0 | G65: 67951 | I65: =[64]QueenJ!$H$82 -> 9697 | J65: =VLOOKUP(B65,[65]EOY!$A$3:$F$99,6,0) -> 1872.28 | K65: 7824.72 | M65: 144187 | N65: 68411.28 | O65: 75775.72
A66: 3512 | B66: 10112 | C66: Rosh Pinah School | D66: =[64]RoshP!$H$70 -> 129908.65 | E66: =VLOOKUP(B66,[65]EOY!$A$3:$F$99,4,0) -> 32369.78 | F66: 0 | G66: 97538.87 | I66: 0 | J66: =VLOOKUP(B66,[65]EOY!$A$3:$F$99,6,0) -> 0 | K66: 0 | M66: 129908.65 | N66: 32369.78 | O66: 97538.87
A67: 3510 | B67: 10110 | C67: Sacred Heart RC School | D67: =[64]Sacred!$H$71 -> 147828.54 | E67: =VLOOKUP(B67,[65]EOY!$A$3:$F$99,4,0) -> 144436.76 | F67: 0 | G67: 3391.78 | I67: 0 | J67: =VLOOKUP(B67,[65]EOY!$A$3:$F$99,6,0) -> 0 | K67: 0 | M67: 147828.54 | N67: 144436.76 | O67: 3391.78
A68: 2041 | B68: 11381 | C68: Sacks Morasha | D68: =[64]Morasha!$H$69 -> 87789.62 | E68: =VLOOKUP(B68,[65]EOY!$A$3:$F$99,4,0) -> 64165.84 | F68: 0 | G68: 23623.78 | I68: =[64]Morasha!$H$75 -> 1 | J68: =VLOOKUP(B68,[65]EOY!$A$3:$F$99,6,0) -> 1 | K68: 0 | M68: 87790.62 | N68: 64166.84 | O68: 23623.78
A69: 3502 | B69: 10087 | C69: St. Agnes' RC School | D69: =[64]StAgnes!$H$72 -> 407523.54 | E69: =VLOOKUP(B69,[65]EOY!$A$3:$F$99,4,0) -> 300440.3 | F69: 0 | G69: 107083.24 | I69: =[64]StAgnes!$H$78 -> 1 | J69: =VLOOKUP(B69,[65]EOY!$A$3:$F$99,6,0) -> 1 | K69: 0 | M69: 407524.54 | N69: 300441.3 | O69: 107083.24
A70: 3315 | B70: 10099 | C70: St. Andrew's CE School | D70: =[64]StAndrew!$H$68 -> 201563.22 | E70: =VLOOKUP(B70,[65]EOY!$A$3:$F$99,4,0) -> 172133.77 | F70: 0 | G70: 29429.45 | I70: =[64]StAndrew!$H$78 -> 0 | J70: =IFERROR(VLOOKUP(B70,[65]EOY!$A$3:$F$99,6,0),0) -> 0 | K70: 0 | M70: 201563.22 | N70: 172133.77 | O70: 29429.45
A71: 3504 | B71: 10088 | C71: St. Catherine's RC School | D71: =[64]StCath!$H$72 -> 247130.8 | E71: =VLOOKUP(B71,[65]EOY!$A$3:$F$99,4,0) -> 231122.71 | F71: 0 | G71: 16008.09 | I71: 0 | J71: =VLOOKUP(B71,[65]EOY!$A$3:$F$99,6,0) -> 0 | K71: 0 | M71: 247130.8 | N71: 231122.71 | O71: 16008.09
A72: 3307 | B72: 10089 | C72: St. John's CE School (N11) | D72: =[64]StJohnN11!$H$71 -> 81701.42 | E72: =VLOOKUP(B72,[65]EOY!$A$3:$F$99,4,0) -> 49400.71 | F72: 0 | G72: 32300.71 | I72: 0 | J72: =VLOOKUP(B72,[65]EOY!$A$3:$F$99,6,0) -> 0 | K72: 0 | M72: 81701.42 | N72: 49400.71 | O72: 32300.71
A73: 3309 | B73: 10116 | C73: St. John's CE School (N20) | D73: =[64]StJohnN20!$H$69 -> 69137.14 | E73: =VLOOKUP(B73,[65]EOY!$A$3:$F$99,4,0) -> 27280.65 | F73: 0 | G73: 41856.49 | I73: 0 | J73: =VLOOKUP(B73,[65]EOY!$A$3:$F$99,6,0) -> 0 | K73: 0 | M73: 69137.14 | N73: 27280.65 | O73: 41856.49
A74: 3509 | B74: 10107 | C74: St. Joseph's RC Primary | D74: =[64]StJosJ!$H$70 -> -122777.46 | E74: =VLOOKUP(B74,[65]EOY!$A$3:$F$99,4,0) -> -101168.42 | F74: 0 | G74: -21609.04 | I74: 0 | J74: =VLOOKUP(B74,[65]EOY!$A$3:$F$99,6,0) -> 0 | K74: 0 | M74: -122777.46 | N74: -101168.42 | O74: -21609.04
A75: 3521 | B75: 10698 | C75: St. Mary's & St. Johns Primary | D75: =[64]StMarStJon!$H$70 -> 309311.54 | E75: =VLOOKUP(B75,[65]EOY!$A$3:$F$99,4,0) -> 370562.22 | F75: 0 | G75: -61250.68 | I75: =[64]StMarStJon!$H$80 -> 0 | J75: =VLOOKUP(B75,[65]EOY!$A$3:$F$99,6,0) -> 2371.77 | K75: -2371.77 | M75: 309311.54 | N75: 372933.99 | O75: -63622.45
A76: 3312 | B76: 10093 | C76: St. Mary's CE School (EN4) | D76: =[64]StMarEN4!$H$70 -> 139925.72 | E76: =VLOOKUP(B76,[65]EOY!$A$3:$F$99,4,0) -> 62592.8 | F76: 0 | G76: =D76-E76 -> 77332.92 | J76: =VLOOKUP(B76,[65]EOY!$A$3:$F$99,6,0) -> 0 | K76: =I76-J76 -> 0 | M76: =D76+I76 -> 139925.72 | N76: 62592.8 | O76: =M76-N76 -> 77332.92
A77: 3311 | B77: 10092 | C77: St. Mary's CE School (N3) | D77: =[64]StMarN3!$H$69 -> 104321.73 | E77: =VLOOKUP(B77,[65]EOY!$A$3:$F$99,4,0) -> 78078.32 | F77: 0 | G77: 26243.41 | J77: =VLOOKUP(B77,[65]EOY!$A$3:$F$99,6,0) -> 0 | K77: 0 | M77: 104321.73 | N77: 78078.32 | O77: 26243.41
A78: 3313 | B78: 10094 | C78: St. Paul's CE School (N11) | D78: =[64]StPaulN11!$H$71 -> 61679.57 | E78: =VLOOKUP(B78,[65]EOY!$A$3:$F$99,4,0) -> 253746.14 | F78: 0 | G78: -192066.57 | I78: =[64]StPaulN11!$H$81 -> 0 | J78: =VLOOKUP(B78,[65]EOY!$A$3:$F$99,6,0) -> 0 | K78: 0 | M78: 61679.57 | N78: 253746.14 | O78: -192066.57
A79: 3314 | B79: 10095 | C79: St. Paul's CE School (NW7) | D79: =[64]StPaulNW7!$H$70 -> 22193.69 | E79: =VLOOKUP(B79,[65]EOY!$A$3:$F$99,4,0) -> 23741.94 | F79: 0 | G79: -1548.25 | I79: 0 | J79: =VLOOKUP(B79,[65]EOY!$A$3:$F$99,6,0) -> 0 | K79: 0 | M79: 22193.69 | N79: 23741.94 | O79: -1548.25
A80: 3507 | B80: 10108 | C80: St. Theresa's RC School | D80: =[64]StThere!$H$70 -> 95043.09 | E80: =VLOOKUP(B80,[65]EOY!$A$3:$F$99,4,0) -> 23559.1 | F80: 0 | G80: 71483.99 | I80: 0 | J80: =VLOOKUP(B80,[65]EOY!$A$3:$F$99,6,0) -> 0 | K80: 0 | M80: 95043.09 | N80: 23559.1 | O80: 71483.99
A81: 3506 | B81: 10096 | C81: St. Vincent's RC School | D81: =[64]StVin!$H$70 -> 69001.74 | E81: =VLOOKUP(B81,[65]EOY!$A$3:$F$99,4,0) -> 115609.13 | F81: 0 | G81: -46607.39 | I81: =[64]StVin!$H$81 -> -1 | J81: =VLOOKUP(B81,[65]EOY!$A$3:$F$99,6,0) -> -1 | K81: 2.328359727e-12 | M81: 69000.74 | N81: 115608.13 | O81: -46607.39
A82: 2052 | B82: 10098 | C82: Summerside School | D82: =[64]Summer!$H$78 -> -0.2 | E82: =VLOOKUP(B82,[65]EOY!$A$3:$F$99,4,0) -> 100079.32 | F82: 0 | G82: -100079.52 | I82: =[64]Summer!$H$89 -> 0 | J82: =VLOOKUP(B82,[65]EOY!$A$3:$F$99,6,0) -> 2374.24 | K82: -2374.24 | M82: -0.2 | N82: 102453.56 | O82: -102453.76
A83: 2070 | B83: 10097 | C83: Sunnyfields School | D83: =[64]Sunny!$H$73 -> 229601.44 | E83: =VLOOKUP(B83,[65]EOY!$A$3:$F$99,4,0) -> 143408.13 | F83: 0 | G83: 86193.31 | I83: =[64]Sunny!$H$86 -> -0.25 | J83: =VLOOKUP(B83,[65]EOY!$A$3:$F$99,6,0) -> 6674 | K83: -6674.25 | M83: 229601.19 | N83: 150082.13 | O83: 79519.06
A84: 3316 | B84: 10100 | C84: Trent CE School | D84: =[64]Trent!$H$72 -> 25795.14 | E84: =VLOOKUP(B84,[65]EOY!$A$3:$F$99,4,0) -> 13208.27 | F84: 0 | G84: 12586.87 | I84: 0 | J84: =VLOOKUP(B84,[65]EOY!$A$3:$F$99,6,0) -> 0 | K84: 0 | M84: 25795.14 | N84: 13208.27 | O84: 12586.87
A85: 2055 | B85: 10101 | C85: Tudor School | D85: =[64]Tudor!$H$71 -> -87918.54 | E85: =VLOOKUP(B85,[65]EOY!$A$3:$F$99,4,0) -> -48708.08 | F85: 0 | G85: -39210.46 | I85: =[64]Tudor!$H$81 -> 8084 | J85: =VLOOKUP(B85,[65]EOY!$A$3:$F$99,6,0) -> 1483.29 | K85: 6600.71 | M85: -79834.54 | N85: -47224.79 | O85: -32609.75
A86: 2057 | B86: 10103 | C86: Underhill School | D86: =[64]UnderP!$H$75 -> 253321.96 | E86: =VLOOKUP(B86,[65]EOY!$A$3:$F$99,4,0) -> 184595.15 | F86: 0 | G86: 68726.81 | I86: =[64]UnderP!$H$88 -> 343.7 | J86: =VLOOKUP(B86,[65]EOY!$A$3:$F$99,6,0) -> 0.34 | K86: 343.36 | M86: 253665.66 | N86: 184595.49 | O86: 69070.17
A87: 2076 | B87: 10124 | C87: Wessex Gardens School | D87: =[64]Wessex!$H$74 -> 177511.5 | E87: =VLOOKUP(B87,[65]EOY!$A$3:$F$99,4,0) -> 192232.31 | F87: 0 | G87: -14720.81 | I87: =[64]Wessex!$H$86 -> 18756.13 | J87: =VLOOKUP(B87,[65]EOY!$A$3:$F$99,6,0) -> 16066 | K87: 2690.13 | M87: 196267.63 | N87: 208298.31 | O87: -12030.68
A88: 2060 | B88: 10105 | C88: Whitings Hill School | D88: =[64]Whiting!$H$71 -> 253134.39 | E88: =VLOOKUP(B88,[65]EOY!$A$3:$F$99,4,0) -> 141636.05 | F88: 0 | G88: 111498.34 | I88: =[64]Whiting!$H$83 -> 7349.5 | J88: =VLOOKUP(B88,[65]EOY!$A$3:$F$99,6,0) -> -1669.75 | K88: 9019.25 | M88: 260483.89 | N88: 139966.3 | O88: 120517.59
A89: 3518 | B89: 10123 | C89: Woodcroft Primary | D89: =[64]Woodcrft!$H$73 -> 100906.23 | E89: =VLOOKUP(B89,[65]EOY!$A$3:$F$99,4,0) -> 97408.86 | F89: 0 | G89: 3497.37 | I89: =[64]Woodcrft!$H$84 -> 0.5 | J89: =VLOOKUP(B89,[65]EOY!$A$3:$F$99,6,0) -> 2919.21 | K89: -2918.71 | M89: 100906.73 | N89: 100328.07 | O89: 578.66
A90: 2054 | B90: 10109 | C90: Woodridge School | D90: =[64]Woodrdge!$H$71 -> 29921.24 | E90: =VLOOKUP(B90,[65]EOY!$A$3:$F$99,4,0) -> 70041.06 | F90: 0 | G90: -40119.82 | I90: =[64]Woodrdge!$H$84 -> 11446.75 | J90: =VLOOKUP(B90,[65]EOY!$A$3:$F$99,6,0) -> 4757.5 | K90: 6689.25 | M90: 41367.99 | N90: 74798.56 | O90: -33430.57
M91: 0
C92: Sub Total - Primary Sector | D92: =SUM(D12:D90) -> 10725312.7 | E92: =SUM(E12:E90) -> 9503963.09 | F92: 0 | G92: 1221349.61 | H92: 0 | I92: 290095.21 | J92: 237110.75 | K92: 52984.46 | L92: 0 | M92: 11015407.91 | N92: 9741073.84 | O92: 1274334.07
M93: 0
A94: 5408 | B94: 10137 | C94: Bishop Douglass RC High | D94: =VLOOKUP(B94,[66]check!$B$6:$X$101,20,0) -> 0 | E94: =VLOOKUP(B94,[65]EOY!$A$3:$F$99,4,0) -> -0.1 | F94: 0 | G94: =D94-E94 -> 0.1 | J94: =VLOOKUP(B94,[65]EOY!$A$3:$F$99,6,0) -> 0 | K94: =I94-J94 -> 0 | M94: 0 | N94: -0.1 | O94: =M94-N94 -> 0.1
A95: 5405 | B95: 10145 | C95: Finchley Catholic High School | D95: =[64]FinchleyC!$H$73 -> 543829.36 | E95: =VLOOKUP(B95,[65]EOY!$A$3:$F$99,4,0) -> 514620.15 | F95: 0 | G95: 29209.21 | I95: =[64]FinchleyC!$H$79 -> 1 | J95: =VLOOKUP(B95,[65]EOY!$A$3:$F$99,6,0) -> 0.82 | K95: 0.18 | M95: 543830.36 | N95: 514620.97 | O95: 29209.39
A96: 4003 | B96: 10139 | C96: Friern Barnet School | D96: =[64]FBarnet!$H$69 -> 174783.78 | E96: =VLOOKUP(B96,[65]EOY!$A$3:$F$99,4,0) -> 220868.72 | F96: 0 | G96: -46084.94 | I96: =[64]FBarnet!$H$80 -> 25216.71 | J96: =VLOOKUP(B96,[65]EOY!$A$3:$F$99,6,0) -> 29130.79 | K96: -3914.08 | M96: 200000.49 | N96: 249999.51 | O96: -49999.02
A97: 5427 | B97: 11174 | C97: JCoSS | D97: =[64]JCoSS!$H$72 -> 89342.74 | E97: =VLOOKUP(B97,[65]EOY!$A$3:$F$99,4,0) -> -1427.17 | F97: 0 | G97: 90769.91 | I97: 0 | J97: =IFERROR(VLOOKUP(B97,[65]EOY!$A$3:$F$99,6,0),0) -> 0 | K97: 0 | M97: 89342.74 | N97: -1427.17 | O97: 90769.91
B98: 11513 | C98: Menorah High | D98: ='[64]MenorahHigh '!$H$69 -> 37247.42 | E98: =VLOOKUP(B98,[65]EOY!$A$3:$F$99,4,0) -> 30055.44 | G98: 7191.98 | I98: 0 | J98: =IFERROR(VLOOKUP(B98,[65]EOY!$A$3:$F$99,6,0),0) -> 0 | K98: 0 | M98: 37247.42 | N98: 30055.44 | O98: 7191.98
A99: 5407 | B99: 10142 | C99: St James' Catholic High School | D99: =[64]StJames!$H$71 -> -333259.72 | E99: =VLOOKUP(B99,[65]EOY!$A$3:$F$99,4,0) -> 124247.52 | F99: 0 | G99: -457507.24 | I99: 0 | J99: =IFERROR(VLOOKUP(B99,[65]EOY!$A$3:$F$99,6,0),0) -> 0 | K99: 0 | M99: -333259.72 | N99: 124247.52 | O99: -457507.24
A100: 5403 | B100: 10143 | C100: St Mary's CE High | E100: =VLOOKUP(B100,[65]EOY!$A$3:$F$99,4,0) -> 6181.68 | F100: 0 | G100: -6181.68 | J100: =IFERROR(VLOOKUP(B100,[65]EOY!$A$3:$F$99,6,0),0) -> 0 | K100: 0 | M100: 0 | N100: 6181.68 | O100: -6181.68
A101: 5404 | B101: 10148 | C101: St. Michael's Catholic Gram'r Sch. | D101: =[64]StMichael!$H$73 -> -359987.74 | E101: =VLOOKUP(B101,[65]EOY!$A$3:$F$99,4,0) -> -98516.75 | F101: 0 | G101: -261470.99 | I101: =[64]StMichael!$H$79 -> 4443 | J101: =VLOOKUP(B101,[65]EOY!$A$3:$F$99,6,0) -> 4443 | K101: 0 | M101: -355544.74 | N101: -94073.75 | O101: -261470.99
D102: 0 | M102: 0
C103: Sub Total - Secondary Sector | D103: =SUM(D94:D102) -> 151955.84 | E103: =SUM(E94:E102) -> 796029.49 | F103: 0 | G103: -644073.65 | H103: 0 | I103: 29660.71 | J103: 33574.61 | K103: -3913.9 | L103: 0 | M103: 181616.55 | N103: 829604.1 | O103: -647987.55
M104: 0
A105: 7010 | B105: 10159 | C105: Mapledown School | D105: =[64]Mpldwn!$H$70 -> 149681.7 | E105: =VLOOKUP(B105,[65]EOY!$A$3:$F$99,4,0) -> 77439.45 | F105: 0 | G105: =D105-E105 -> 72242.25 | I105: =[64]Mpldwn!$H$83 -> 0.25 | J105: =VLOOKUP(B105,[65]EOY!$A$3:$F$99,6,0) -> 6463.75 | K105: =I105-J105 -> -6463.5 | M105: 149681.95 | N105: =E105+J105 -> 83903.2 | O105: =M105-N105 -> 65778.75
A106: 7005 | B106: 10157 | C106: Northway School | D106: =[64]Nrthwy!$H$70 -> 185976.54 | E106: =VLOOKUP(B106,[65]EOY!$A$3:$F$99,4,0) -> 182559.21 | F106: 0 | G106: =D106-E106 -> 3417.33 | I106: =[64]Nrthwy!$H$82 -> 0.79 | J106: =VLOOKUP(B106,[65]EOY!$A$3:$F$99,6,0) -> -0.08 | K106: =I106-J106 -> 0.87 | M106: 185977.33 | N106: =E106+J106 -> 182559.13 | O106: =M106-N106 -> 3418.2
A107: 7000 | B107: 10156 | C107: Oak Lodge School | E107: =VLOOKUP(B107,[65]EOY!$A$3:$F$99,4,0) -> 163008.26 | F107: 0 | G107: =D107-E107 -> -163008.26 | J107: =VLOOKUP(B107,[65]EOY!$A$3:$F$99,6,0) -> 2579.31 | K107: =I107-J107 -> -2579.31 | M107: 0 | N107: =E107+J107 -> 165587.57 | O107: =M107-N107 -> -165587.57
A108: 7009 | B108: 10158 | C108: Oakleigh School | D108: =[64]Oklgh!$H$73 -> 214291.17 | E108: =VLOOKUP(B108,[65]EOY!$A$3:$F$99,4,0) -> 203251.04 | F108: 0 | G108: =D108-E108 -> 11040.13 | I108: =[64]Oklgh!$H$84 -> 0 | J108: =VLOOKUP(B108,[65]EOY!$A$3:$F$99,6,0) -> 1790.13 | K108: =I108-J108 -> -1790.13 | M108: 214291.17 | N108: =E108+J108 -> 205041.17 | O108: =M108-N108 -> 9250
M109: 0
C110: Sub Total - Special Sector | D110: =SUM(D105:D109) -> 549949.41 | E110: =SUM(E105:E109) -> 626257.96 | F110: 0 | G110: -76308.55 | H110: 0 | I110: 1.04 | J110: 10833.11 | K110: -10832.07 | L110: 0 | M110: 549950.45 | N110: 637091.07 | O110: -87140.62
M111: 0
B112: 10185 | C112: Northgate School | D112: =[64]Northg!$H$64 -> 100275.2 | E112: =VLOOKUP(B112,[65]EOY!$A$3:$F$99,4,0) -> 130915.42 | F112: 0 | G112: =D112-E112 -> -30640.22 | I112: =[64]Northg!$H$74 -> 10655.39 | J112: =VLOOKUP(B112,[65]EOY!$A$3:$F$99,6,0) -> 13665.38 | K112: =I112-J112 -> -3009.99 | M112: 110930.59 | N112: =E112+J112 -> 144580.8 | O112: =M112-N112 -> -33650.21
B113: 10188 | C113: Pavilion Study Centre | D113: =[64]Pavilion!$H$73 -> 114164.9 | E113: =VLOOKUP(B113,[65]EOY!$A$3:$F$99,4,0) -> 59022.41 | F113: 0 | G113: =D113-E113 -> 55142.49 | I113: =[64]Pavilion!$H$86 -> 8036.56 | J113: =VLOOKUP(B113,[65]EOY!$A$3:$F$99,6,0) -> 10651.25 | K113: =I113-J113 -> -2614.69 | M113: 122201.46 | N113: =E113+J113 -> 69673.66 | O113: =M113-N113 -> 52527.8
C114: Sub Total - Pupil referral units | D114: =SUM(D112:D113) -> 214440.1 | E114: 189937.83 | F114: 0 | G114: 24502.27 | H114: 0 | I114: 18691.95 | J114: 24316.63 | K114: -5624.68 | L114: 0 | M114: 233132.05 | N114: 214254.46 | O114: 18877.59
C116: Sub Total All Sectors | D116: =D110+D103+D92+D10+D114 -> 12285599.46 | E116: 11732089.52 | F116: 0 | G116: 553509.94 | H116: 0 | I116: 362002.65 | J116: 324951.9 | K116: 37050.75 | L116: 0 | M116: 12647602.11 | N116: 12057041.42 | O116: 590560.69
G121: Opening Balance | M121: ='[67]Integra Download 2017-18'!F11 -> -11252208.44
G122: St Mary's CE High Surplus balance | M122: 5405 | N122: to DSG
G123: clearance of balance sheet | M123: -23.8 | N123: from cash at bank
G124: clearance of balance sheet | M124: -1.66 | N124: from cash at bank
G125: clearance of balance sheet | M125: 165586.4 | N125: oak lodge cash at bank
G126: R/2016-17 licensed deficits to bal sheet | M126: -669206 | N126: to schools cc
G127: Schools Outturn 2017-18 | M127: -701250.72
G128: TRANSFER OF 17/18 ACTUALS TO BALANCE SHE | M128: -37379.52
G129: Balance carried forward | M129: =SUM(M121:M128) -> -12489078.74
G130: Net movement in school balances
K131: control | M131: ='[67]Integra Download 2017-18'!F30 -> -12489078.74
M132: =M129-M131 -> 0

Sheet I01 I02 I03 FUNDING 2017-18
A1: Sum of Funding | B1: 1 | C1: 2 | D1: 3 | E1: 4 | F1: 5 | G1: 6 | H1: 7 | I1: 8 | J1: 9 | K1: 10 | L1: 11
A2: DfE Number | B2: SchoolCC | C2: Option | D2: School | E2: I01 | F2: I01 convert | G2: I02 | H2: I03 | I2: I03 convert | J2: Total Funding | K2: Local Bank A/c | L2: Central Salaries A/c
A3: 3023300 | B3: 10040 | C3: A | D3: All Saints' CE Primary School NW2 | E3: 994420.92 | H3: 52047 | J3: =SUM(E3:I3) -> 1046467.92 | K3: 207856 | L3: =J3-K3 -> 838611.92
A4: 3023317 | B4: 10042 | C4: A | D4: All Saints' CE Primary School, N20 | E4: 1173646.22 | H4: 30922.16 | J4: =SUM(E4:I4) -> 1204568.38 | K4: 236637 | L4: =J4-K4 -> 967931.38
A5: 3023500 | B5: 10043 | C5: A | D5: Annunciation Catholic Infant School | E5: 938213.8 | H5: 16547.25 | J5: 954761.05 | K5: 189388 | L5: 765373.05
A6: 3023514 | B6: 10117 | C6: A | D6: Annunciation Catholic Junior School | E6: 978153.19 | H6: 22518.42 | J6: 1000671.61 | K6: 201254 | L6: 799417.61
A7: 3022079 | B7: 10128 | C7: A | D7: Beis Yaakov | E7: 1905651.57 | H7: 8137 | J7: 1913788.57 | K7: 273034 | L7: 1640754.57
A8: 3022003 | B8: 10045 | C8: A | D8: Bell Lane Primary School | E8: 1988869.08 | H8: 61867 | J8: 2050736.08 | K8: 408677 | L8: 1642059.08
A9: 3023511 | B9: 10115 | C9: A | D9: Blessed Dominic School | E9: 1988263.23 | H9: 105762.17 | J9: 2094025.4 | K9: 417842 | L9: 1676183.4
A10: 3021000 | B10: 10130 | C10: A | D10: Brookhill Nursery | E10: 392473.24 | H10: 6769.29 | J10: 399242.53 | K10: 64487 | L10: 334755.53
A11: 3022008 | B11: 10047 | C11: A | D11: Brookland Infant & Nursery School | E11: 1312512.58 | H11: 87537.6 | J11: 1400050.18 | K11: 278032 | L11: 1122018.18
A12: 3022007 | B12: 10046 | C12: A | D12: Brookland Junior School | E12: 1440569.9 | H12: 72905.08 | J12: 1513474.98 | K12: 303585 | L12: 1209889.98
A13: 3022009 | B13: 10048 | C13: A | D13: Brunswick Park Primary & Nursery School | E13: 1978601.61 | H13: 64337.15 | J13: 2042938.76 | K13: 395677 | L13: 1647261.76
A14: 3022067 | B14: 10118 | C14: A | D14: Chalgrove Primary School | E14: 1180556.77 | H14: 50300.5 | J14: 1230857.27 | K14: 243746 | L14: 987111.27
A15: 3022010 | B15: 10049 | C15: A | D15: Child's Hill School | E15: 1825375.69 | H15: 297959.17 | J15: 2123334.86 | K15: 428681 | L15: 1694653.86
A16: 3022011 | B16: 10051 | C16: A | D16: Church Hill Primary School | E16: 973843.08 | H16: 54069.33 | J16: 1027912.41 | K16: 203949 | L16: 823963.41
A17: 3022014 | B17: 10054 | C17: A | D17: Colindale School | E17: 3222886.08 | H17: 286981.21 | J17: 3509867.29 | K17: 705864 | L17: 2804003.29
A18: 3022015 | B18: 10055 | C18: A | D18: Coppetts Wood | E18: 1445860.51 | H18: 105568.41 | J18: 1551428.92 | K18: 312819 | L18: 1238609.92
A19: 3022016 | B19: 10056 | C19: A | D19: Courtland School | E19: 933227.34 | H19: 41108 | J19: 974335.34 | K19: 194511 | L19: 779824.34
A20: 3022017 | B20: 10057 | C20: A | D20: Cromer Road Primary School | E20: 1753279.69 | H20: 22230.33 | J20: 1775510.02 | K20: 357025 | L20: 1418485.02
A21: 3022019 | B21: 10059 | C21: A | D21: Deansbrook Infant School | E21: 1455899.62 | H21: 23222.67 | J21: 1479122.29 | K21: 297991 | L21: 1181131.29
A22: 3022021 | B22: 10061 | C22: A | D22: Dollis Infant School | E22: 1344387.63 | H22: 60646.07 | J22: 1405033.7 | K22: 284895 | L22: 1120138.7
A23: 3022024 | B23: 10064 | C23: A | D23: Fairway Primary School | E23: 1362162.44 | H23: 67821.17 | J23: 1429983.61 | K23: 274642 | L23: 1155341.61
A24: 3022026 | B24: 10066 | C24: A | D24: Frith Manor School | E24: 2661532.01 | H24: 89452.41 | J24: 2750984.42 | K24: 553983 | L24: 2197001.42
A25: 3022028 | B25: 10068 | C25: A | D25: Garden Suburb Infant School | E25: 1161875.11 | H25: 37763.92 | J25: 1199639.03 | K25: 237471 | L25: 962168.03
A26: 3022027 | B26: 10067 | C26: A | D26: Garden Suburb Junior | E26: 1483814.12 | H26: 92438.75 | J26: 1576252.87 | K26: 318859 | L26: 1257393.87
A27: 3022029 | B27: 10069 | C27: A | D27: Goldbeaters Primary School | E27: 2261213.58 | H27: 59910.68 | J27: 2321124.26 | K27: 458599 | L27: 1862525.26
A28: 3021001 | B28: 10131 | C28: A | D28: Hampden Way Nursery | E28: 353126.1 | H28: 10783.78 | J28: 363909.88 | K28: 55775 | L28: 308134.88
A29: 3023516 | B29: 10121 | C29: A | D29: Hasmonean Primary School | E29: 977364.47 | H29: 49138.75 | J29: 1026503.22 | K29: =27671+25000 -> 52671 | L29: 973832.22
A30: 3022031 | B30: 10071 | C30: A | D30: Hollickwood JMI School | E30: 1108292.52 | H30: 19832.25 | J30: 1128124.77 | K30: 228425 | L30: 899699.77
A31: 3022032 | B31: 10072 | C31: A | D31: Holly Park School | E31: 2201725.85 | H31: 82306.5 | J31: 2284032.35 | K31: 455572 | L31: 1828460.35
A32: 3023304 | B32: 10073 | C32: A | D32: Holy Trinity School | E32: 1089781.81 | H32: 52052.5 | J32: 1141834.31 | K32: 232750 | L32: 909084.31
A33: 3025427 | B33: 11174 | C33: A | D33: JCoSS | E33: 5873648.52 | G33: 1584376 | H33: 1025626.21 | J33: 8483650.73 | K33: 123085 | L33: 8360565.73
A34: 3022036 | B34: 10074 | C34: A | D34: Livingstone School | E34: 1718926.37 | H34: 320773.83 | J34: 2039700.2 | K34: 408319 | L34: 1631381.2
A35: 3022037 | B35: 10075 | C35: A | D35: Manorside Primary School | E35: 1494144.09 | H35: 74781.92 | J35: 1568926.01 | K35: 316902 | L35: 1252024.01
A36: 3023513 | B36: 10114 | C36: A | D36: Menorah Primary School | E36: 1632796.75 | H36: 126599.27 | J36: 1759396.02 | K36: 207052 | L36: 1552344.02
A37: 3023305 | B37: 10078 | C37: A | D37: Monken Hadley C E Primary School | E37: 623661.6 | H37: 10990 | J37: 634651.6 | K37: 127174 | L37: 507477.6
A38: 3022044 | B38: 10081 | C38: A | D38: Moss Hall Infant School | E38: 1534079.15 | H38: 71314.25 | J38: 1605393.4 | K38: 326927 | L38: 1278466.4
A39: 3022043 | B39: 10080 | C39: A | D39: Moss Hall Junior School | E39: 1710731.1 | H39: 175059 | J39: 1885790.1 | K39: 377465 | L39: 1508325.1
A40: 3021002 | B40: 10132 | C40: A | D40: Moss Hall Nursery | E40: 475234.68 | H40: 10602.5 | J40: 485837.18 | K40: 92542 | L40: 393295.18
A41: 3021102 | B41: 10185 | C41: A | D41: Northgate | E41: 406306 | H41: 0 | J41: 406306 | K41: 81663 | L41: 324643
A42: 3022045 | B42: 10082 | C42: A | D42: Northside School | E42: 1347390.19 | H42: 31964.67 | J42: 1379354.86 | K42: 267761 | L42: 1111593.86
A43: 3027005 | B43: 10157 | C43: A | D43: Northway | E43: 1058333.33 | H43: 1235666.34 | J43: 2293999.67 | K43: 437096 | L43: 1856903.67
A44: 3022077 | B44: 10127 | C44: A | D44: Orion Primary School | E44: 4703563.03 | H44: 639391.38 | J44: 5342954.41 | K44: 1033538 | L44: 4309416.41
A45: 3023501 | B45: 10085 | C45: A | D45: Our Lady of Lourdes School | E45: 1035417.28 | H45: 33301.46 | J45: 1068718.74 | K45: 216932 | L45: 851786.74
A46: 3022078 | B46: 10129 | C46: A | D46: Pardes House School | E46: 1217874.99 | H46: 26867.25 | J46: 1244742.24 | K46: 191967 | L46: 1052775.24
A47: 3021100 | B47: 10188 | C47: A | D47: Pavilion | E47: 1469256.91 | H47: 801317 | J47: 2270573.91 | K47: 431095 | L47: 1839478.91
A48: 3023510 | B48: 10110 | C48: A | D48: Sacred Heart School | E48: 1613665.78 | H48: 52748.92 | J48: 1666414.7 | K48: 330965 | L48: 1335449.7
A49: 3023502 | B49: 10087 | C49: A | D49: St Agnes RC Primary School | E49: 1573087.39 | H49: 21567.5 | J49: 1594654.89 | K49: 312136 | L49: 1282518.89
A50: 3023315 | B50: 10099 | C50: A | D50: St Andrew's C E | E50: 880782.92 | H50: 18589.58 | J50: 899372.5 | K50: 181232 | L50: 718140.5
A51: 3023504 | B51: 10088 | C51: A | D51: St Catherines R C Primary | E51: 1946352.5 | H51: 128027.58 | J51: 2074380.08 | K51: 411414 | L51: 1662966.08
A52: 3023307 | B52: 10089 | C52: A | D52: St John's CE School N11 | E52: 1001482.52 | H52: 10347.08 | J52: 1011829.6 | K52: 202116 | L52: 809713.6
A53: 3023509 | B53: 10107 | C53: A | D53: St Joseph's Primary School | E53: 2159859.54 | H53: 43353.54 | J53: 2203213.08 | K53: 441208 | L53: 1762005.08
A54: 3021003 | B54: 10133 | C54: A | D54: St Margaret's Nursery | E54: 408290.27 | H54: 9682.49 | J54: 417972.76 | K54: 86072 | L54: 331900.76
A55: 3023311 | B55: 10092 | C55: A | D55: St Mary's C E Primary School N3 | E55: 1835826.11 | H55: 54564.92 | J55: 1890391.03 | K55: 372317 | L55: 1518074.03
A56: 3023312 | B56: 10093 | C56: A | D56: St Mary's School EN4 | E56: 889989.16 | H56: 50769.5 | J56: 940758.66 | K56: 190078 | L56: 750680.66
A57: 3023313 | B57: 10094 | C57: A | D57: St Paul's School, N11 | E57: 992364.45 | H57: 17303.75 | J57: 1009668.2 | K57: 206410 | L57: 803258.2
A58: 3023507 | B58: 10108 | C58: A | D58: St Theresa's R.C. Primary School | E58: 998154.75 | J58: 998154.75 | K58: 199682 | L58: 798472.75
A59: 3023506 | B59: 10096 | C59: A | D59: St Vincent's Catholic Primary School | E59: 1353354.17 | H59: 41497.67 | J59: 1394851.84 | K59: 278754 | L59: 1116097.84
A60: 3023316 | B60: 10100 | C60: A | D60: Trent C of E Primary School | E60: 851404.17 | J60: 851404.17 | K60: 170331 | L60: 681073.17
A61: 3022055 | B61: 10101 | C61: A | D61: Tudor School | E61: 1264072.2 | H61: 46840.08 | J61: 1310912.28 | K61: 268751 | L61: 1042161.28
A62: 3022060 | B62: 10105 | C62: A | D62: Whitings Hill Primary School | E62: 2386700.13 | H62: 35967.17 | J62: 2422667.3 | K62: 465477 | L62: 1957190.3
A63: 3023518 | B63: 10123 | C63: A | D63: Woodcroft Primary School | E63: 2205226.16 | H63: 54810.33 | J63: 2260036.49 | K63: 459161 | L63: 1800875.49
A64: 3022054 | B64: 10109 | C64: A | D64: Woodridge Primary School | E64: 995353.95 | H64: 20218.67 | J64: 1015572.62 | K64: 206505 | L64: 809067.62
A65: 3023520 | B65: 11094 | C65: C | D65: Akiva School | E65: 1544851.39 | H65: 92722.08 | J65: 1637573.47 | K65: 338863 | L65: 1298710.47
A66: 3023524 | B66: 11278 | C66: C | D66: Beit Shvidler Primary School | E66: 972810.2 | H66: 70343.92 | J66: 1043154.12 | K66: 223571 | L66: 819583.12
A67: 3022023 | B67: 10063 | C67: C | D67: Edgware Primary School | E67: 2845304.84 | H67: 132763.34 | J67: 2978068.18 | K67: 587024 | L67: 2391044.18
A68: 3022025 | B68: 10065 | C68: C | D68: Foulds | E68: 1231414.2 | H68: 72704.25 | J68: =SUM(E68:I68) -> 1304118.45 | K68: 252931 | L68: =J68-K68 -> 1051187.45
A69: 3022071 | B69: 10119 | C69: C | D69: Queenswell Infant and Nursery School | E69: 1420209.58 | H69: 44296.01 | J69: 1464505.59 | K69: 301696 | L69: 1162809.59
A70: 3022041 | B70: 11381 | C70: C | D70: Sacks Morasha Jewish Primary School | E70: 826632.72 | H70: 2202.08 | J70: 828834.8 | K70: 166509 | L70: 662325.8
A71: 3023309 | B71: 10116 | C71: C | D71: St Johns CE N20 | E71: 977201.03 | H71: 11426.96 | J71: 988627.99 | K71: 195660 | L71: 792967.99
A72: 3022073 | B72: 10083 | C72: B | D72: Danegrove JMI School | E72: 2745658.32 | H72: 156600.67 | J72: 2902258.99 | K72: =J72 -> 2902258.99 | L72: 0
A73: 3025200 | B73: 10060 | C73: B | D73: Dollis Junior School | E73: 1553337.4 | H73: 132566.5 | J73: 1685903.9 | K73: =J73 -> 1685903.9 | L73: 0
A74: 3025405 | B74: 10145 | C74: B | D74: Finchley Catholic High School | E74: 4630116.85 | G74: 1376343 | H74: 127540.75 | J74: 6134000.6 | K74: 6134000.6 | L74: 0
A75: 3023523 | B75: 11093 | C75: B | D75: Martin Primary School | E75: 2831845.33 | H75: 150675.67 | J75: 2982521 | K75: 2982521 | L75: 0
A76: 3025948 | B76: 10125 | C76: B | D76: Mathilda Marks-Kennedy School | E76: 931257.13 | H76: 55487.42 | J76: 986744.55 | K76: 986744.55 | L76: 0
A77: 3025949 | B77: 10126 | C77: B | D77: Menorah Foundation School | E77: 1510493.55 | H77: 49727.92 | J77: 1560221.47 | K77: 1560221.47 | L77: 0
A78: 3025201 | B78: 10084 | C78: B | D78: Osidge Primary School | E78: 1680105.13 | H78: 75663.66 | J78: 1755768.79 | K78: 1755768.79 | L78: 0
A79: 3022072 | B79: 10086 | C79: B | D79: Queenswell Junior School | E79: 1638257.62 | H79: 115010.58 | J79: 1753268.2 | K79: 1753268.2 | L79: 0
A80: 3023521 | B80: 10698 | C80: B | D80: St Mary's & St John's CE School | E80: 5112450.35 | H80: 155571.22 | J80: 5268021.57 | K80: 5268021.57 | L80: 0
A81: 3025404 | B81: 10148 | C81: B | D81: St Michaels Catholic Grammar School | E81: 2672498.48 | G81: 1357386 | J81: 4029884.48 | K81: 4029884.48 | L81: 0
A82: 3023314 | B82: 10095 | C82: B | D82: St Pauls CE Primary, NW7 | E82: 877673.43 | H82: 52581.92 | J82: 930255.35 | K82: 930255.35 | L82: 0
A83: 3025407 | B83: 10142 | C83: B | D83: St. James' Catholic High School | E83: 5036046.36 | G83: 971696.67 | H83: 122485.25 | J83: 6130228.28 | K83: 6130228.28 | L83: 0
A84: 3022057 | B84: 10103 | C84: B | D84: Underhill School | E84: 2726487.53 | H84: 122545.98 | J84: 2849033.51 | K84: 2849033.51 | L84: 0
A85: 3022002 | B85: 10044 | C85: D | D85: Barnfield School | E85: 2380133.88 | H85: 80623.1 | J85: 2460756.98 | K85: 2460756.98 | L85: 0
A86: 3023302 | B86: 10050 | C86: D | D86: Christ Church CE Primary School | E86: 945150.64 | H86: 42182.83 | J86: 987333.47 | K86: 987333.47 | L86: 0
A87: 3024003 | B87: 10139 | C87: D | D87: Friern Barnet School | E87: 4689512.02 | H87: 172004.25 | J87: 4861516.27 | K87: 4861516.27 | L87: 0
A88: 3027010 | B88: 10159 | C88: D | D88: Mapledown | E88: 489883.15 | G88: 410393.33 | H88: 1654556.75 | J88: 2554833.23 | K88: 2554833.23 | L88: 0
A89: 3024004 | B89: 11513 | C89: D | D89: Menorah High School (Girls) | E89: 1144772.22 | G89: 148104.66 | H89: 43729.08 | J89: 1336605.96 | K89: 1336605.96 | L89: 0
A90: 3022042 | B90: 10079 | C90: D | D90: Monkfrith School | E90: 1345988.87 | H90: 91744 | J90: 1437732.87 | K90: 1437732.87 | L90: 0
A91: 3027009 | B91: 10158 | C91: D | D91: Oakleigh | E91: 808561.36 | F91: 597072 | H91: 466303.84 | I91: 1148062 | J91: 3019999.2 | K91: 3019999.2 | L91: 0
A92: 3023512 | B92: 10112 | C92: D | D92: Rosh Pinah | E92: 1050948.13 | F92: 598472.25 | H92: 75638.92 | J92: 1725059.3 | K92: 1725059.3 | L92: 0
A93: 3022070 | B93: 10097 | C93: D | D93: Sunnyfields Primary School | E93: 648633.82 | F93: 532767.41 | H93: 102119.6 | J93: 1283520.83 | K93: 1283520.83 | L93: 0
A94: 3022076 | B94: 10124 | C94: D | D94: Wessex Gardens Primary School | E94: 2086234.97 | H94: 62007.11 | J94: 2148242.08 | K94: 2148242.08 | L94: 0
A95: Grand Total | E95: =SUM(E3:E94) -> 152899380.4 | G95: =SUM(G3:G94) -> 5848299.66 | H95: 11757306.04 | I95: 1148062 | J95: 173381359.8 | K95: 81146788.88 | L95: 92234570.9

Sheet Payment Schedule
C1: DETAILS OF SCHOOL BANK ACCOUNT FUNDING
D3: OPTION A SCHOOLS | F3: YEAR 2017/2018
C5: PAYMENTS TO BE PAID TO SCHOOLS ON | E5: Monday 3rd April 2017
C7: DATE | D7: PAYMENT | E7: INTERNAL | G7: EXTERNAL
D8: REF | E8: REF | G8: DESCRIPTION
C10: =NOW() -> 2018-05-24T15:07:43.530 | D10: April Funding | E10: OPTION A | G10: April Funding
B11: 1 | C11: 2 | D11: 3 | E11: 4 | F11: 5 | G11: 6
C12: SCHOOL | D12: VENDOR NO. | E12: GL CODE | F12: COST CENTRE | G12: PAYMENT DUE £ | H12: Document No.
A13: A | B13: 3300 | C13: All Saints' CE School (NW2) | D13: 400069 | E13: 543965 | F13: 10162 | G13: 207856
A14: A | B14: 3317 | C14: All Saints' CE School (N20) | D14: 400015 | E14: 543965 | F14: 10162 | G14: 236637
A15: A | B15: 3514 | C15: Annunciation RC Junior | D15: 400107 | E15: 543965 | F15: 10162 | G15: 201254
A16: A | B16: 3500 | C16: Annunciation RC Infant | D16: 400023 | E16: 543965 | F16: 10162 | G16: 189388
A17: A | B17: 2003 | C17: Bell Lane | D17: 400051 | E17: 543965 | F17: 10162 | G17: 408677
A18: A | B18: 3511 | C18: Blessed Dominic | D18: 400024 | E18: 543965 | F18: 10162 | G18: 417842
A19: A | B19: 2079 | C19: Beis Yaakov | D19: 400070 | E19: 543965 | F19: 10162 | G19: 273034
A20: A | B20: 2007 | C20: Brookland Junior | D20: 400040 | E20: 543965 | F20: 10162 | G20: 303585
A21: A | B21: 2008 | C21: Brookland Infant | D21: 400057 | E21: 543965 | F21: 10162 | G21: 278032
A22: A | B22: 2009 | C22: Brunswick Park | D22: 400061 | E22: 543965 | F22: 10162 | G22: 395677
A23: A | B23: 2067 | C23: Chalgrove | D23: 400065 | E23: 543965 | F23: 10162 | G23: 243746
A24: A | B24: 2010 | C24: Childs Hill | D24: 400043 | E24: 543965 | F24: 10162 | G24: 428681
A25: A | B25: 2011 | C25: Church Hill | D25: 400020 | E25: 543965 | F25: 10162 | G25: 203949
A26: A | B26: 2014 | C26: Colindale | D26: 400050 | E26: 543965 | F26: 10162 | G26: 705864
A27: A | B27: 2016 | C27: Coppetts Wood | D27: 400059 | E27: 543965 | F27: 10162 | G27: 312819
A28: A | B28: 2016 | C28: Courtland | D28: 400049 | E28: 543965 | F28: 10162 | G28: 194511
A29: A | B29: 2017 | C29: Cromer Road | D29: 400080 | E29: 543965 | F29: 10162 | G29: 357025
A30: A | B30: 2019 | C30: Deansbrook Infant | D30: 400036 | E30: 543965 | F30: 10162 | G30: 297991
A31: A | B31: 2021 | C31: Dollis Infants | D31: 400042 | E31: 543965 | F31: 10162 | G31: 284895
A32: A | B32: 2024 | C32: Fairway | D32: 400047 | E32: 543965 | F32: 10162 | G32: 274642
A33: A | B33: 2026 | C33: Frith Manor School | D33: 400082 | E33: 543965 | F33: 10162 | G33: 553983
A34: A | B34: 2027 | C34: Garden Suburb Junior School | D34: 400002 | E34: 543965 | F34: 10162 | G34: 318859
A35: A | B35: 2028 | C35: Garden Suburb Infant School | D35: 400067 | E35: 543965 | F35: 10162 | G35: 237471
A36: A | B36: 2029 | C36: Goldbeaters School | D36: 400035 | E36: 543965 | F36: 10162 | G36: 458599
A37: A | B37: 3516 | C37: Hasmonean Primary School | D37: 400108 | E37: 543965 | F37: 10162 | G37: 27671
A38: A | B38: 2031 | C38: Hollickwood | D38: 400026 | E38: 543965 | F38: 10162 | G38: 228425
A39: A | B39: 2032 | C39: Holly Park | D39: 400084 | E39: 543965 | F39: 10162 | G39: 455572
A40: A | B40: 3304 | C40: Holy Trinity | D40: 400008 | E40: 543965 | F40: 10162 | G40: 232750
A41: A | B41: 2036 | C41: Livingstone | D41: 400046 | E41: 543965 | F41: 10162 | G41: 408319
A42: A | B42: 2037 | C42: Manorside | D42: 400030 | E42: 543965 | F42: 10162 | G42: 316902
A43: A | B43: 3513 | C43: Menorah Primary | D43: 400007 | E43: 543965 | F43: 10162 | G43: 207052
A44: A | B44: 3305 | C44: Monken Hadley | D44: 400086 | E44: 543965 | F44: 10162 | G44: 127174
A45: A | B45: 2043 | C45: Moss Hall Junior | D45: 400088 | E45: 543965 | F45: 10162 | G45: 377465
A46: A | B46: 2044 | C46: Moss Hall Infant | D46: 400087 | E46: 543965 | F46: 10162 | G46: 326927
A47: A | B47: 2045 | C47: Northside School | D47: 400089 | E47: 543965 | F47: 10162 | G47: 267761
A48: A | B48: 3501 | C48: Our Lady of Lourdes | D48: 400003 | E48: 543965 | F48: 10162 | G48: 216932
A49: A | B49: 2077 | C49: The Orion School | D49: 400113 | E49: 543965 | F49: 10162 | G49: 1033538
A50: A | B50: 2078 | C50: Pardes House | D50: 400014 | E50: 543965 | F50: 10162 | G50: 191967
A51: A | B51: 3510 | C51: Sacred Heart | D51: 400071 | E51: 543965 | F51: 10162 | G51: 330965
A52: A | B52: 3502 | C52: St. Agnes' | D52: 400096 | E52: 543965 | F52: 10162 | G52: 312136
A53: A | B53: 3315 | C53: St. Andrew's | D53: 400062 | E53: 543965 | F53: 10162 | G53: 181232
A54: A | B54: 3504 | C54: St. Catherine's | D54: 400064 | E54: 543965 | F54: 10162 | G54: 411414
A55: A | B55: 3307 | C55: St. John's CE (N11) | D55: 400114 | E55: 543965 | F55: 10162 | G55: 202116
A56: A | B56: 3509 | C56: St. Joseph's RC Primary | D56: 400066 | E56: 543965 | F56: 10162 | G56: 441208
A57: A | B57: 3311 | C57: St. Mary's CE (N3) | D57: 400058 | E57: 543965 | F57: 10162 | G57: 372317
A58: A | B58: 3312 | C58: St. Mary's CE (EN4) | D58: 400017 | E58: 543965 | F58: 10162 | G58: 190078
A59: A | B59: 3313 | C59: St Paul's CE (N11) | D59: 400006 | E59: 543965 | F59: 10162 | G59: 206410
A60: A | B60: 3507 | C60: St. Theresa's | D60: 400037 | E60: 543965 | F60: 10162 | G60: 199682
A61: A | B61: 3506 | C61: St. Vincent's | D61: 400009 | E61: 543965 | F61: 10162 | G61: 278754
A62: A | B62: 3316 | C62: Trent | D62: 400100 | E62: 543965 | F62: 10162 | G62: 170331
A63: A | B63: 2055 | C63: Tudor | D63: 400101 | E63: 543965 | F63: 10162 | G63: 268751
A64: A | B64: 2060 | C64: Whitings Hill | D64: 400011 | E64: 543965 | F64: 10162 | G64: 465477
A65: A | B65: 3518 | C65: Woodcroft Primary | D65: 400117 | E65: 543965 | F65: 10162 | G65: 459161
A66: A | B66: 2054 | C66: Woodridge | D66: 400004 | E66: 543965 | F66: 10162 | G66: 206505 | I66: =COUNT(G14:G66) -> 53
A67: A | B67: 5427 | C67: JCoSS | D67: 400140 | E67: 543965 | F67: 10163 | G67: 123085 | I67: =COUNT(G67:G67) -> 1
A68: A | B68: 7005 | C68: Northway | D68: 400034 | E68: 543965 | F68: 10161 | G68: 437096
A69: A | B69: 1000 | C69: Brookhill Nursery | D69: 400102 | E69: 543965 | F69: 10284 | G69: 64487
A70: A | B70: 1001 | C70: Hampden Way Nursery | D70: 400103 | E70: 543965 | F70: 10284 | G70: 55775
A71: A | B71: 1002 | C71: Moss Hall Nursery | D71: 400072 | E71: 543965 | F71: 10284 | G71: 92542
A72: A | B72: 1003 | C72: St Margaret's Nursery | D72: 400104 | E72: 543965 | F72: 10284 | G72: 86072 | I72: =COUNT(G69:G72) -> 4
A73: A | B73: 1102 | C73: Northgate | D73: ='[21]school list'!F102 -> 400157 | E73: 543965 | F73: 11392 | G73: 81663
A74: A | B74: 1100 | C74: The Pavillion | D74: ='[21]school list'!F103 -> 400156 | E74: 543965 | F74: 11392 | G74: 431095 | I74: =COUNT(G73:G74) -> 2
E76: GRAND TOTAL | G76: =SUM(G13:G75) -> 18271824 | I76: =+I68+I66+I65+I72+I74 -> 59
B77: * | C77: Rosh Pinah | D77: 400093 | E77: 543965 | F77: 10162 | G77: 176270
B78: * | C78: Summerside | D78: 400099 | E78: 543965 | F78: 10162 | G78: 534022
B79: * | C79: Sunnyfields | D79: 400038 | E79: 543965 | F79: 10162 | G79: 247415
B80: * | C80: Oakleigh | D80: 400091 | E80: 543965 | F80: 10161 | G80: 597072 | I80: =COUNT(G79:G80) -> 2
C82: Amounts checked & unpaid to date ___________________ | F82: Certified for Payment ________________________
C83: Checked by | D83: ___________________ | F83: Date ______________________
C85: School's Accountancy Section, B15, Ground Floor, Building 4, N.L.P.B Tel: 020 8359 7223
A88: Option | B88: DfE NO. | C88: School | D88: Cost Centre | E88: DfE NO.
A89: A | B89: 1000 | C89: Brookhill Nursery | D89: 10130 | E89: 1000
A90: A | B90: 1001 | C90: Hampden Way Nursery | D90: 10131 | E90: 1001
A91: A | B91: 1002 | C91: Moss Hall Nursery | D91: 10132 | E91: 1002
A92: A | B92: 1003 | C92: St Margaret's Nursery | D92: 10133 | E92: 1003
C93: Total Nursery Schools
A94: C | B94: 3520 | C94: Akiva | D94: 11094 | E94: 3520
A95: A | B95: 3317 | C95: All Saints' CE (N20) | D95: 10042 | E95: 3317
A96: A | B96: 3300 | C96: All Saints' CE (NW2) | D96: 10040 | E96: 3300
A97: A | B97: 3500 | C97: Annunciation RC Infant | D97: 10043 | E97: 3500
A98: A | B98: 3514 | C98: Annunciation RC Junior | D98: 10117 | E98: 3514
A99: D | B99: 2002 | C99: Barnfield | D99: 10044 | E99: 2002
A100: A | B100: 2079 | C100: Beis Yaakov | D100: 10128 | E100: 2079
A101: C | B101: 3524 | C101: Beit Shvidler | D101: 11278 | E101: 3524
A102: A | B102: 2003 | C102: Bell Lane | D102: 10045 | E102: 2003
A103: A | B103: 3511 | C103: Blessed Dominic RC School | D103: 10115 | E103: 3511
A104: A | B104: 2008 | C104: Brookland Infant | D104: 10047 | E104: 2008
A105: A | B105: 2007 | C105: Brookland Junior | D105: 10046 | E105: 2007
A106: A | B106: 2009 | C106: Brunswick Park | D106: 10048 | E106: 2009
A107: A | B107: 2067 | C107: Chalgrove | D107: 10118 | E107: 2067
A108: A | B108: 2010 | C108: Childs Hill | D108: 10049 | E108: 2010
A109: D | B109: 3302 | C109: Christ Church | D109: 10050 | E109: 3302
A110: A | B110: 2011 | C110: Church Hill | D110: 10051 | E110: 2011
A111: A | B111: 2014 | C111: Colindale | D111: 10054 | E111: 2014
A112: A | B112: 2015 | C112: Coppetts Wood | D112: 10055 | E112: 2015
A113: A | B113: 2016 | C113: Courtland | D113: 10056 | E113: 2016
A114: A | B114: 2017 | C114: Cromer Road | D114: 10057 | E114: 2017
A115: B | B115: 2073 | C115: Danegrove | D115: 10083 | E115: 2073
A116: A | B116: 2019 | C116: Deansbrook Infant | D116: 10059 | E116: 2019
A117: A | B117: 2021 | C117: Dollis Infant | D117: 10061 | E117: 2021
A118: B | B118: 5200 | C118: Dollis Junior | D118: 10060 | E118: 5200
A119: C | B119: 2023 | C119: Edgware Primary | D119: 10063 | E119: 2023
A120: A | B120: 2024 | C120: Fairway | D120: 10064 | E120: 2024
A121: C | B121: 2025 | C121: Foulds | D121: 10065 | E121: 2025
A122: A | B122: 2026 | C122: Frith Manor | D122: 10066 | E122: 2026
A123: A | B123: 2028 | C123: Garden Suburb Infant | D123: 10068 | E123: 2028
A124: A | B124: 2027 | C124: Garden Suburb Junior | D124: 10067 | E124: 2027
A125: A | B125: 2029 | C125: Goldbeaters | D125: 10069 | E125: 2029
A126: A | B126: 3516 | C126: Hasmonean Primary | D126: 10121 | E126: 3516
A127: A | B127: 2031 | C127: Hollickwood | D127: 10071 | E127: 2031
A128: A | B128: 2032 | C128: Holly Park | D128: 10072 | E128: 2032
A129: A | B129: 3304 | C129: Holy Trinity | D129: 10073 | E129: 3304
A130: A | B130: 2036 | C130: Livingstone | D130: 10074 | E130: 2036
A131: A | B131: 2037 | C131: Manorside | D131: 10075 | E131: 2037
A132: B | B132: 3523 | C132: Martin Primary | D132: 11093 | E132: 3523
A133: B | B133: 5948 | C133: Mathilda Marks Kennedy | D133: 10125 | E133: 5948
A134: B | B134: 5949 | C134: Menorah Foundation | D134: 10126 | E134: 5949
A135: A | B135: 3513 | C135: Menorah Primary | D135: 10114 | E135: 3513
A136: A | B136: 3305 | C136: Monken Hadley | D136: 10078 | E136: 3305
A137: D | B137: 2042 | C137: Monkfrith | D137: 10079 | E137: 2042
A138: A | B138: 2044 | C138: Moss Hall Infant | D138: 10081 | E138: 2044
A139: A | B139: 2043 | C139: Moss Hall Junior | D139: 10080 | E139: 2043
A140: A | B140: 2045 | C140: Northside | D140: 10082 | E140: 2045
A141: A | B141: 2077 | C141: Orion | D141: 10127 | E141: 2077
A142: B | B142: 5201 | C142: Osidge | D142: 10084 | E142: 5201
A143: A | B143: 3501 | C143: Our Lady of Lourdes | D143: 10085 | E143: 3501
A144: A | B144: 2078 | C144: Pardes House | D144: 10129 | E144: 2078
A145: C | B145: 2071 | C145: Queenswell Infant | D145: 10119 | E145: 2071
A146: C | B146: 2072 | C146: Queenswell Junior | D146: 10086 | E146: 2072
A147: D | B147: 3512 | C147: Rosh Pinah | D147: 10112 | E147: 3512
A148: C | B148: 2041 | C148: Sacks Morasha | D148: 11381 | E148: 2041
A149: A | B149: 3510 | C149: Sacred Heart RC | D149: 10110 | E149: 3510
A150: A | B150: 3502 | C150: St. Agnes' RC | D150: 10087 | E150: 3502
A151: A | B151: 3315 | C151: St. Andrew's CE | D151: 10099 | E151: 3315
A152: A | B152: 3504 | C152: St. Catherine's RC | D152: 10088 | E152: 3504
A153: A | B153: 3307 | C153: St. John's CE (N11) | D153: 10089 | E153: 3307
A154: C | B154: 3309 | C154: St. John's CE (N20) | D154: 10116 | E154: 3309
A155: A | B155: 3509 | C155: St. Joseph's RC Primary | D155: 10107 | E155: 3509
A156: B | B156: 3521 | C156: St. Mary's & St. Johns Primary | D156: 10698 | E156: 3521
A157: A | B157: 3312 | C157: St. Mary's CE (EN4) | D157: 10093 | E157: 3312
A158: A | B158: 3311 | C158: St. Mary's CE (N3) | D158: 10092 | E158: 3311
A159: A | B159: 3313 | C159: St. Paul's CE (N11) | D159: 10094 | E159: 3313
A160: B | B160: 3314 | C160: St. Paul's CE (NW7) | D160: 10095 | E160: 3314
A161: A | B161: 3507 | C161: St. Theresa's | D161: 10108 | E161: 3507
A162: A | B162: 3506 | C162: St. Vincent's | D162: 10096 | E162: 3506
A163: D | B163: 2070 | C163: Sunnyfields | D163: 10097 | E163: 2070
A164: A | B164: 3316 | C164: Trent CE | D164: 10100 | E164: 3316
A165: A | B165: 2055 | C165: Tudor | D165: 10101 | E165: 2055
A166: B | B166: 2057 | C166: Underhill School | D166: 10103 | E166: 2057
A167: D | B167: 2076 | C167: Wessex Gardens | D167: 10124 | E167: 2076
A168: A | B168: 2060 | C168: Whitings Hill | D168: 10105 | E168: 2060
A169: A | B169: 3518 | C169: Woodcroft | D169: 10123 | E169: 3518
A170: A | B170: 2054 | C170: Woodridge | D170: 10109 | E170: 2054
C171: Total Primary Schools
A172: B | B172: 5405 | C172: Finchley Catholic High | D172: 10145 | E172: 5405
A173: D | B173: 4003 | C173: Friern Barnet School | D173: 10139 | E173: 4003
A174: A | B174: 5427 | C174: JCoSS | D174: 11174 | E174: 5427
A175: D | B175: 4004 | C175: Menorah High School for Girls | D175: 11513 | E175: 4004
A176: B | B176: 5407 | C176: St James' Catholic High | D176: 10142 | E176: 5407
A177: B | B177: 5404 | C177: St. Michael's Catholic Grammar | D177: 10148 | E177: 5404
C178: Total Secondary Schools
A179: D | B179: 7010 | C179: Mapledown | D179: 10159 | E179: 7010
A180: A | B180: 7005 | C180: Northway | D180: 10157 | E180: 7005
A181: D | B181: 7009 | C181: Oakleigh | D181: 10158 | E181: 7009
C182: Total Special Schools
A183: A | B183: 1102 | C183: Northgate | D183: 10185 | E183: 1102
A184: A | B184: 1100 | C184: Pavillion | D184: 10188 | E184: 1100
C185: Total PRU's

Sheet Integra Salaries A to C Summary
A2: 1 | B2: 2 | C2: 3 | D2: 4
A3: Sum of Actual
A4: Profit Centre | B4: School | C4: Option | D4: Total
A5: 10040 | B5: All Saints' CE NW2 | C5: A | D5: 852024.02
A6: 10042 | B6: All Saints' CE N20 | C6: A | D6: 1054040.02
A7: 10043 | B7: Annunciation RC Infant | C7: A | D7: 862983.26
A8: 10045 | B8: Bell Lane School | C8: A | D8: 1740532.37
A9: 10046 | B9: Brookland Junior School | C9: A | D9: 1375115.91
A10: 10047 | B10: Brookland Infant School | C10: A | D10: 1090887.44
A11: 10048 | B11: Brunswick Park School | C11: A | D11: 1725623.22
A12: 10049 | B12: Childs Hill School | C12: A | D12: 1985840.21
A13: 10051 | B13: Church Hill School | C13: A | D13: 903758.2
A14: 10054 | B14: Colindale School | C14: A | D14: 2858616.48
A15: 10055 | B15: Coppetts Wood School | C15: A | D15: 1442105.06
A16: 10056 | B16: Courtland School | C16: A | D16: 798768.53
A17: 10057 | B17: Cromer Road School | C17: A | D17: 1548899.2
A18: 10059 | B18: Deansbrook Infant School | C18: A | D18: 1343334.39
A19: 10061 | B19: Dollis Infant School | C19: A | D19: 1318408.3
A20: 10063 | B20: Edgware Primary | C20: C | D20: 2398171.86
A21: 10064 | B21: Fairway School | C21: A | D21: 1438638.2
A22: 10065 | B22: Foulds School | C22: C | D22: 1128000.22
A23: 10066 | B23: Frith Manor School | C23: A | D23: 2548279.63
A24: 10067 | B24: Garden Suburb Junior | C24: A | D24: 1216090.86
A25: 10068 | B25: Garden Suburb Infant | C25: A | D25: 1092951.83
A26: 10069 | B26: Goldbeaters School | C26: A | D26: 2053452.19
A27: 10071 | B27: Hollickwood School | C27: A | D27: 1048064.89
A28: 10072 | B28: Holly Park School | C28: A | D28: 2004344.17
A29: 10073 | B29: Holy Trinity CE School | C29: A | D29: 968222.74
A30: 10074 | B30: Livingstone School | C30: A | D30: 1790458.94
A31: 10075 | B31: Manorside School | C31: A | D31: 1381182.04
A32: 10078 | B32: Monken Hadley CE School | C32: A | D32: 535930.84
A33: 10080 | B33: Moss Hall Junior School | C33: A | D33: 1492107.28
A34: 10081 | B34: Moss Hall Infant School | C34: A | D34: 1460543.01
A35: 10082 | B35: Northside School | C35: A | D35: 1252554.06
A36: 10085 | B36: Our Lady Of Lourdes | C36: A | D36: 925946.42
A37: 10087 | B37: St Agnes' RC School | C37: A | D37: 1319742.03
A38: 10088 | B38: St Catherine's RC School | C38: A | D38: 1942548.38
A39: 10089 | B39: St John's CE N11 | C39: A | D39: 910734.64
A40: 10092 | B40: St Mary's CE N3 | C40: A | D40: 1626282.31
A41: 10093 | B41: St Mary's CE EN4 | C41: A | D41: 807202.32
A42: 10094 | B42: St Paul's CE N11 | C42: A | D42: 872929.76
A43: 10096 | B43: St Vincent's RC School | C43: A | D43: 1207009.82
A44: 10099 | B44: St Andrew's CE School | C44: A | D44: 815176.24
A45: 10100 | B45: Trent CE School | C45: A | D45: 766181.64
A46: 10101 | B46: Tudor School | C46: A | D46: 1160681.6
A47: 10105 | B47: Whitings Hill School | C47: A | D47: 1995882.28
A48: 10107 | B48: St Joseph's RC Primary | C48: A | D48: 1897565.82
A49: 10108 | B49: St Theresa's RC School | C49: A | D49: 769327.85
A50: 10109 | B50: Woodridge School | C50: A | D50: 905297.83
A51: 10110 | B51: Sacred Heart RC School | C51: A | D51: 1440669.75
A52: 10114 | B52: Menorah Primary School | C52: A | D52: 1516740.68
A53: 10115 | B53: Blessed Dominic RC | C53: A | D53: 1559731.16
A54: 10116 | B54: St John's CE N20 | C54: C | D54: 857232.25
A55: 10117 | B55: Annunciation RC Junior | C55: A | D55: 846297.4
A56: 10118 | B56: Chalgrove School | C56: A | D56: 1058377.79
A57: 10119 | B57: Queenswell Infant School | C57: C | D57: 1193192.58
A58: 10121 | B58: Hasmonean Primary School | C58: A | D58: 957265.15
A59: 10123 | B59: Woodcroft Primary | C59: A | D59: 2002033.25
A60: 10127 | B60: Orion School | C60: A | D60: 4700374.09
A61: 10128 | B61: Beis Yaakov School | C61: A | D61: 1596518.81
A62: 10129 | B62: Pardes House School | C62: A | D62: 1076178.99
A63: 10130 | B63: Brookhill Nursery School | C63: A | D63: 622347.8
A64: 10131 | B64: Hampden Way Nursery | C64: A | D64: 513774.45
A65: 10132 | B65: Moss Hall Nursery School | C65: A | D65: 584815.59
A66: 10133 | B66: St Margret's Nursery | C66: A | D66: 674235.89
A67: 10157 | B67: Northway School | C67: A | D67: 1803883.68
A68: 10185 | B68: Northgate PRU | C68: A | D68: 339987.66
A69: 10188 | B69: Pavilion StudyCt PRU | C69: A | D69: 1882703.33
A70: 11094 | B70: Akiva | C70: C | D70: 1633311.75
A71: 11174 | B71: JCOSS | C71: A | D71: 7991382.18
A72: 11278 | B72: Beit Schvidler | C72: C | D72: 1076472.94
A73: 11381 | B73: Sacks Morasha | C73: C | D73: 668499.45
A74: (blank) | B74: (blank) | C74: (blank) | D74: 0
A75: Grand Total | D75: 99228464.93

Sheet In year Outturn
A1: 1 | B1: 2 | C1: 3 | D1: 4 | E1: 5 | F1: 6
D2: Total in year | E2: Total in year | F2: In-year
A3: CC | B3: DfE No | C3: School | D3: Income | E3: Revenue | F3: Outturn
A4: 10040 | B4: =VLOOKUP(A4,'[70]April 2018'!$E$5:$F$101,2,0) -> 3300 | C4: All Saints' CE NW2 | D4: -1269147.22 | E4: 1367712.86 | F4: =SUM(D4:E4) -> 98565.64
A5: 10042 | B5: =VLOOKUP(A5,'[70]April 2018'!$E$5:$F$101,2,0) -> 3317 | C5: All Saints' CE N20 | D5: -1492557.03 | E5: 1521173.3 | F5: =SUM(D5:E5) -> 28616.27
A6: 10043 | B6: =VLOOKUP(A6,'[70]April 2018'!$E$5:$F$101,2,0) -> 3500 | C6: Annunciation RC Infant | D6: -1074299.5 | E6: 1021081.27 | F6: -53218.23
A7: 10044 | B7: =VLOOKUP(A7,'[70]April 2018'!$E$5:$F$101,2,0) -> 2002 | C7: Barnfield School | D7: -3307746.88 | E7: 2999821.02 | F7: -307925.86
A8: 10045 | B8: =VLOOKUP(A8,'[70]April 2018'!$E$5:$F$101,2,0) -> 2003 | C8: Bell Lane School | D8: -2744250.48 | E8: 2498050.82 | F8: -246199.66
A9: 10046 | B9: =VLOOKUP(A9,'[70]April 2018'!$E$5:$F$101,2,0) -> 2007 | C9: Brookland Junior School | D9: -1882407.74 | E9: 1910755.52 | F9: 28347.78
A10: 10047 | B10: =VLOOKUP(A10,'[70]April 2018'!$E$5:$F$101,2,0) -> 2008 | C10: Brookland Infant School | D10: -1711525.81 | E10: 1634842.91 | F10: -76682.9
A11: 10048 | B11: =VLOOKUP(A11,'[70]April 2018'!$E$5:$F$101,2,0) -> 2009 | C11: Brunswick Park School | D11: -2624717.45 | E11: 2477642.32 | F11: -147075.13
A12: 10049 | B12: =VLOOKUP(A12,'[70]April 2018'!$E$5:$F$101,2,0) -> 2010 | C12: Childs Hill School | D12: -2644150.61 | E12: 2677052.07 | F12: 32901.46
A13: 10050 | B13: =VLOOKUP(A13,'[70]April 2018'!$E$5:$F$101,2,0) -> 3302 | C13: Christ Church CE School | D13: -1241995.02 | E13: 1155290.96 | F13: -86704.06
A14: 10051 | B14: =VLOOKUP(A14,'[70]April 2018'!$E$5:$F$101,2,0) -> 2011 | C14: Church Hill School | D14: -1247168.58 | E14: 1264689.02 | F14: 17520.44
A15: 10054 | B15: =VLOOKUP(A15,'[70]April 2018'!$E$5:$F$101,2,0) -> 2014 | C15: Colindale School | D15: -4193505.48 | E15: 4383836.66 | F15: 190331.18
A16: 10055 | B16: =VLOOKUP(A16,'[70]April 2018'!$E$5:$F$101,2,0) -> 2015 | C16: Coppetts Wood School | D16: -2177968.92 | E16: 1843340.39 | F16: -334628.53
A17: 10056 | B17: =VLOOKUP(A17,'[70]April 2018'!$E$5:$F$101,2,0) -> 2016 | C17: Courtland School | D17: -1170758.94 | E17: 1101733.98 | F17: -69024.96
A18: 10057 | B18: =VLOOKUP(A18,'[70]April 2018'!$E$5:$F$101,2,0) -> 2017 | C18: Cromer Road School | D18: -2230936.71 | E18: 2195204.71 | F18: -35732
A19: 10059 | B19: =VLOOKUP(A19,'[70]April 2018'!$E$5:$F$101,2,0) -> 2019 | C19: Deansbrook Infant School | D19: -1745004.83 | E19: 1666232.35 | F19: -78772.48
A20: 10060 | B20: =VLOOKUP(A20,'[70]April 2018'!$E$5:$F$101,2,0) -> 5200 | C20: Dollis Junior School | D20: -2041797.74 | E20: 2012171 | F20: -29626.74
A21: 10061 | B21: =VLOOKUP(A21,'[70]April 2018'!$E$5:$F$101,2,0) -> 2021 | C21: Dollis Infant School | D21: -1737508.34 | E21: 1638726.14 | F21: -98782.2
A22: 10063 | B22: =VLOOKUP(A22,'[70]April 2018'!$E$5:$F$101,2,0) -> 2023 | C22: Edgware Primary | D22: -3493133.47 | E22: 3453817.64 | F22: -39315.83
A23: 10064 | B23: =VLOOKUP(A23,'[70]April 2018'!$E$5:$F$101,2,0) -> 2024 | C23: Fairway School | D23: -2117875.81 | E23: 1901242.52 | F23: -216633.29
A24: 10065 | B24: =VLOOKUP(A24,'[70]April 2018'!$E$5:$F$101,2,0) -> 2025 | C24: Foulds School | D24: -1620265.33 | E24: 1543986.21 | F24: -76279.12
A25: 10066 | B25: =VLOOKUP(A25,'[70]April 2018'!$E$5:$F$101,2,0) -> 2026 | C25: Frith Manor School | D25: -3304928.39 | E25: 3297765.74 | F25: -7162.65
A26: 10067 | B26: =VLOOKUP(A26,'[70]April 2018'!$E$5:$F$101,2,0) -> 2027 | C26: Garden Suburb Junior | D26: -1933360.39 | E26: 1892656.6 | F26: -40703.79
A27: 10068 | B27: =VLOOKUP(A27,'[70]April 2018'!$E$5:$F$101,2,0) -> 2028 | C27: Garden Suburb Infant | D27: -1422939.16 | E27: 1440337.26 | F27: 17398.1
A28: 10069 | B28: =VLOOKUP(A28,'[70]April 2018'!$E$5:$F$101,2,0) -> 2029 | C28: Goldbeaters School | D28: -2770579.16 | E28: 2701596.44 | F28: -68982.72
A29: 10071 | B29: =VLOOKUP(A29,'[70]April 2018'!$E$5:$F$101,2,0) -> 2031 | C29: Hollickwood School | D29: -1398010.63 | E29: 1436572.98 | F29: 38562.35
A30: 10072 | B30: =VLOOKUP(A30,'[70]April 2018'!$E$5:$F$101,2,0) -> 2032 | C30: Holly Park School | D30: -2780400.7 | E30: 2696068.28 | F30: -84332.42
A31: 10073 | B31: =VLOOKUP(A31,'[70]April 2018'!$E$5:$F$101,2,0) -> 3304 | C31: Holy Trinity CE School | D31: -1422623.8 | E31: 1416158.06 | F31: -6465.74
A32: 10074 | B32: =VLOOKUP(A32,'[70]April 2018'!$E$5:$F$101,2,0) -> 2036 | C32: Livingstone School | D32: -2456457.87 | E32: 2380029.62 | F32: -76428.25
A33: 10075 | B33: =VLOOKUP(A33,'[70]April 2018'!$E$5:$F$101,2,0) -> 2037 | C33: Manorside School | D33: -1897967.61 | E33: 1914369.46 | F33: 16401.85
A34: 10078 | B34: =VLOOKUP(A34,'[70]April 2018'!$E$5:$F$101,2,0) -> 3305 | C34: Monken Hadley CE School | D34: -738808.59 | E34: 722063.89 | F34: -16744.7
A35: 10079 | B35: =VLOOKUP(A35,'[70]April 2018'!$E$5:$F$101,2,0) -> 2042 | C35: Monkfrith School | D35: -1824246.97 | E35: 1866446.01 | F35: 42199.04
A36: 10080 | B36: =VLOOKUP(A36,'[70]April 2018'!$E$5:$F$101,2,0) -> 2043 | C36: Moss Hall Junior School | D36: -2335046.66 | E36: 2359781.22 | F36: 24734.56
A37: 10081 | B37: =VLOOKUP(A37,'[70]April 2018'!$E$5:$F$101,2,0) -> 2044 | C37: Moss Hall Infant School | D37: -1974186.72 | E37: 1969138.43 | F37: -5048.29
A38: 10082 | B38: =VLOOKUP(A38,'[70]April 2018'!$E$5:$F$101,2,0) -> 2045 | C38: Northside School | D38: -1678386.37 | E38: 1849041.7 | F38: 170655.33
A39: 10083 | B39: =VLOOKUP(A39,'[70]April 2018'!$E$5:$F$101,2,0) -> 2073 | C39: Danegrove School | D39: -3607469.76 | E39: 3714781.55 | F39: 107311.79
A40: 10084 | B40: =VLOOKUP(A40,'[70]April 2018'!$E$5:$F$101,2,0) -> 5201 | C40: Osidge School | D40: -2134663.38 | E40: 2074404.94 | F40: -60258.44
A41: 10085 | B41: =VLOOKUP(A41,'[70]April 2018'!$E$5:$F$101,2,0) -> 3501 | C41: Our Lady Of Lourdes | D41: -1274318.93 | E41: 1314705.81 | F41: 40386.88
A42: 10086 | B42: =VLOOKUP(A42,'[70]April 2018'!$E$5:$F$101,2,0) -> 2072 | C42: Queenswell Junior School | D42: -2102943.78 | E42: 2027167.78 | F42: -75776
A43: 10087 | B43: =VLOOKUP(A43,'[70]April 2018'!$E$5:$F$101,2,0) -> 3502 | C43: St Agnes' RC School | D43: -1915923.34 | E43: 1808839.8 | F43: -107083.54
A44: 10088 | B44: =VLOOKUP(A44,'[70]April 2018'!$E$5:$F$101,2,0) -> 3504 | C44: St Catherine's RC School | D44: -2553770.61 | E44: 2537762.81 | F44: -16007.8
A45: 10089 | B45: =VLOOKUP(A45,'[70]April 2018'!$E$5:$F$101,2,0) -> 3307 | C45: St John's CE N11 | D45: -1303375.36 | E45: 1271074.94 | F45: -32300.42
A46: 10092 | B46: =VLOOKUP(A46,'[70]April 2018'!$E$5:$F$101,2,0) -> 3311 | C46: St Mary's CE N3 | D46: -2273702.52 | E46: 2247458.79 | F46: -26243.73
A47: 10093 | B47: =VLOOKUP(A47,'[70]April 2018'!$E$5:$F$101,2,0) -> 3312 | C47: St Mary's CE EN4 | D47: -1181197.62 | E47: 1103864.9 | F47: -77332.72
A48: 10094 | B48: =VLOOKUP(A48,'[70]April 2018'!$E$5:$F$101,2,0) -> 3313 | C48: St Paul's CE N11 | D48: -1256018.88 | E48: 1448085.31 | F48: 192066.43
A49: 10095 | B49: =VLOOKUP(A49,'[70]April 2018'!$E$5:$F$101,2,0) -> 3314 | C49: St Paul's CE NW7 | D49: -1178409.96 | E49: 1179958.27 | F49: 1548.31
A50: 10096 | B50: =VLOOKUP(A50,'[70]April 2018'!$E$5:$F$101,2,0) -> 3506 | C50: St Vincent's RC School | D50: -1612990.2 | E50: 1659597.46 | F50: 46607.26
A51: 10097 | B51: =VLOOKUP(A51,'[70]April 2018'!$E$5:$F$101,2,0) -> 2070 | C51: Sunnyfields School | D51: -1547902.5 | E51: 1468383.31 | F51: -79519.19
A52: 10098 | B52: ='[70]April 2018'!$F$130 -> 2052 | C52: Summerside School | D52: -1348737.67 | E52: 1451190.87 | F52: 102453.2
A53: 10099 | B53: =VLOOKUP(A53,'[70]April 2018'!$E$5:$F$101,2,0) -> 3315 | C53: St Andrew's CE School | D53: -1127400.03 | E53: 1097970.81 | F53: -29429.22
A54: 10100 | B54: =VLOOKUP(A54,'[70]April 2018'!$E$5:$F$101,2,0) -> 3316 | C54: Trent CE School | D54: -1107231.91 | E54: 1094644.77 | F54: -12587.14
A55: 10101 | B55: =VLOOKUP(A55,'[70]April 2018'!$E$5:$F$101,2,0) -> 2055 | C55: Tudor School | D55: -1568180.35 | E55: 1600789.89 | F55: 32609.54
A56: 10103 | B56: =VLOOKUP(A56,'[70]April 2018'!$E$5:$F$101,2,0) -> 2057 | C56: Underhill School | D56: -3861924 | E56: 3550880.6 | F56: -311043.4
A57: 10105 | B57: =VLOOKUP(A57,'[70]April 2018'!$E$5:$F$101,2,0) -> 2060 | C57: Whitings Hill School | D57: -2924851.24 | E57: 2804333.35 | F57: -120517.89
A58: 10107 | B58: =VLOOKUP(A58,'[70]April 2018'!$E$5:$F$101,2,0) -> 3509 | C58: St Joseph's RC Primary | D58: -2586825.64 | E58: 2608435.1 | F58: 21609.46
A59: 10108 | B59: =VLOOKUP(A59,'[70]April 2018'!$E$5:$F$101,2,0) -> 3507 | C59: St Theresa's RC School | D59: -1191085.21 | E59: 1119601.12 | F59: -71484.09
A60: 10109 | B60: =VLOOKUP(A60,'[70]April 2018'!$E$5:$F$101,2,0) -> 2054 | C60: Woodridge School | D60: -1264126.33 | E60: 1297557.34 | F60: 33431.01
A61: 10110 | B61: =VLOOKUP(A61,'[70]April 2018'!$E$5:$F$101,2,0) -> 3510 | C61: Sacred Heart RC School | D61: -2010782.03 | E61: 2007390.49 | F61: -3391.54
A62: 10112 | B62: =VLOOKUP(A62,'[70]April 2018'!$E$5:$F$101,2,0) -> 3512 | C62: Rosh Pinah School | D62: -2688662.12 | E62: 2591123.47 | F62: -97538.65
A63: 10114 | B63: =VLOOKUP(A63,'[70]April 2018'!$E$5:$F$101,2,0) -> 3513 | C63: Menorah Primary School | D63: -2038340.57 | E63: 1983258.77 | F63: -55081.8
A64: 10115 | B64: =VLOOKUP(A64,'[70]April 2018'!$E$5:$F$101,2,0) -> 3511 | C64: Blessed Dominic RC | D64: -2489468.77 | E64: 2349688.02 | F64: -139780.75
A65: 10116 | B65: =VLOOKUP(A65,'[70]April 2018'!$E$5:$F$101,2,0) -> 3309 | C65: St John's CE N20 | D65: -1219689.81 | E65: 1177833.67 | F65: -41856.14
A66: 10117 | B66: =VLOOKUP(A66,'[70]April 2018'!$E$5:$F$101,2,0) -> 3514 | C66: Annunciation RC Junior | D66: -1163271.72 | E66: 1120869.4 | F66: -42402.32
A67: 10118 | B67: =VLOOKUP(A67,'[70]April 2018'!$E$5:$F$101,2,0) -> 2067 | C67: Chalgrove School | D67: -1485542.84 | E67: 1491979.98 | F67: 6437.14
A68: 10119 | B68: =VLOOKUP(A68,'[70]April 2018'!$E$5:$F$101,2,0) -> 2071 | C68: Queenswell Infant School | D68: -1756077.99 | E68: 1687820.12 | F68: -68257.87
A69: 10121 | B69: =VLOOKUP(A69,'[70]April 2018'!$E$5:$F$101,2,0) -> 3516 | C69: Hasmonean Primary School | D69: -1227612.31 | E69: 1246660.14 | F69: =SUM(D69:E69) -> 19047.83
A70: 10123 | B70: =VLOOKUP(A70,'[70]April 2018'!$E$5:$F$101,2,0) -> 3518 | C70: Woodcroft Primary | D70: -2705558.47 | E70: 2704979.74 | F70: -578.73
A71: 10124 | B71: =VLOOKUP(A71,'[70]April 2018'!$E$5:$F$101,2,0) -> 2076 | C71: Wessex Gardens School | D71: -2647852.54 | E71: 2659882.91 | F71: 12030.37
A72: 10125 | B72: =VLOOKUP(A72,'[70]April 2018'!$E$5:$F$101,2,0) -> 5948 | C72: Mathilda Marks Kennedy | D72: -1415741.55 | E72: 1410974.88 | F72: -4766.67
A73: 10126 | B73: =VLOOKUP(A73,'[70]April 2018'!$E$5:$F$101,2,0) -> 5949 | C73: Menorah Foundation | D73: -2599694.38 | E73: 2696297.19 | F73: 96602.81
A74: 10127 | B74: =VLOOKUP(A74,'[70]April 2018'!$E$5:$F$101,2,0) -> 2077 | C74: Orion School | D74: -6419514.37 | E74: 6302231.03 | F74: -117283.34
A75: 10128 | B75: =VLOOKUP(A75,'[70]April 2018'!$E$5:$F$101,2,0) -> 2079 | C75: Beis Yaakov School | D75: -2132974.67 | E75: 2092417.33 | F75: -40557.34
A76: 10129 | B76: =VLOOKUP(A76,'[70]April 2018'!$E$5:$F$101,2,0) -> 2078 | C76: Pardes House School | D76: -1582048.08 | E76: 1616032.76 | F76: 33984.68
A77: 10130 | B77: =VLOOKUP(A77,'[70]April 2018'!$E$5:$F$101,2,0) -> 1000 | C77: Brookhill Nursery School | D77: -714424.95 | E77: 711787.48 | F77: -2637.47
A78: 10131 | B78: =VLOOKUP(A78,'[70]April 2018'!$E$5:$F$101,2,0) -> 1001 | C78: Hampden Way Nursery | D78: -816803.45 | E78: 603006.4 | F78: -213797.05
A79: 10132 | B79: =VLOOKUP(A79,'[70]April 2018'!$E$5:$F$101,2,0) -> 1002 | C79: Moss Hall Nursery School | D79: -682532.57 | E79: 681612.79 | F79: -919.78
A80: 10133 | B80: =VLOOKUP(A80,'[70]April 2018'!$E$5:$F$101,2,0) -> 1003 | C80: St Margret's Nursery | D80: -803226.52 | E80: 813375.62 | F80: 10149.1
A81: 10139 | B81: =VLOOKUP(A81,'[70]April 2018'!$E$5:$F$101,2,0) -> 4003 | C81: Friern Barnet School | D81: -5594477.67 | E81: 5644477.18 | F81: 49999.51
A82: 10142 | B82: =VLOOKUP(A82,'[70]April 2018'!$E$5:$F$101,2,0) -> 5407 | C82: St James' Catholic | D82: -6360202.59 | E82: 6817710.31 | F82: 457507.72
A83: 10145 | B83: =VLOOKUP(A83,'[70]April 2018'!$E$5:$F$101,2,0) -> 5405 | C83: Finchley Catholic | D83: -7022267.67 | E83: 6989442.9 | F83: -32824.77
A84: 10148 | B84: =VLOOKUP(A84,'[70]April 2018'!$E$5:$F$101,2,0) -> 5404 | C84: St Michael's Catholic | D84: -4273543.18 | E84: 4535013.92 | F84: 261470.74
A85: 10157 | B85: =VLOOKUP(A85,'[70]April 2018'!$E$5:$F$101,2,0) -> 7005 | C85: Northway School | D85: -2564647.86 | E85: 2561229.53 | F85: -3418.33
A86: 10158 | B86: =VLOOKUP(A86,'[70]April 2018'!$E$5:$F$101,2,0) -> 7009 | C86: Oakleigh School | D86: -3906182.8 | E86: 3896932.63 | F86: -9250.17
A87: 10159 | B87: =VLOOKUP(A87,'[70]April 2018'!$E$5:$F$101,2,0) -> 7010 | C87: Mapledown School | D87: -2793740.46 | E87: 2727961.51 | F87: -65778.95
A88: 10185 | B88: =VLOOKUP(A88,'[70]April 2018'!$E$5:$F$101,2,0) -> 1102 | C88: Northgate PRU | D88: -526222.33 | E88: 559871.74 | F88: 33649.41
A89: 10188 | B89: =VLOOKUP(A89,'[70]April 2018'!$E$5:$F$101,2,0) -> 1100 | C89: Pavilion StudyCt PRU | D89: -2615209.18 | E89: 2562680.72 | F89: -52528.46
A90: 10698 | B90: =VLOOKUP(A90,'[70]April 2018'!$E$5:$F$101,2,0) -> 3521 | C90: St Marys and St Johns Primary | D90: -6188152.98 | E90: 6251775.44 | F90: 63622.46
A91: 11093 | B91: =VLOOKUP(A91,'[70]April 2018'!$E$5:$F$101,2,0) -> 3523 | C91: Martin Primary | D91: -3635373.26 | E91: 3499420.85 | F91: -135952.41
A92: 11094 | B92: =VLOOKUP(A92,'[70]April 2018'!$E$5:$F$101,2,0) -> 3520 | C92: Akiva | D92: -2484864.53 | E92: 2412907.93 | F92: -71956.6
A93: 11174 | B93: =VLOOKUP(A93,'[70]April 2018'!$E$5:$F$101,2,0) -> 5427 | C93: JCOSS | D93: -11481628.57 | E93: 11390858.83 | F93: -90769.74
A94: 11278 | B94: =VLOOKUP(A94,'[70]April 2018'!$E$5:$F$101,2,0) -> 3524 | C94: Beit Schvidler | D94: -1630497.43 | E94: 1616426.05 | F94: -14071.38
A95: 11381 | B95: =VLOOKUP(A95,'[70]April 2018'!$E$5:$F$101,2,0) -> 2041 | C95: Sacks Morasha | D95: -1101833.24 | E95: 1078209.62 | F95: -23623.62
A96: 11513 | B96: =VLOOKUP(A96,'[70]April 2018'!$E$5:$F$101,2,0) -> 4004 | C96: Menorah High School | D96: -1868055.5 | E96: 1860863.08 | F96: -7192.42
A97: (blank) | C97: Total | D97: =SUM(D4:D96) -> -215276433.1 | E97: =SUM(E4:E96) -> 213046923.3 | F97: -2229509.78

Sheet In year Income & Expenditure
A1: 1 | B1: 2 | C1: 3 | D1: 4 | E1: 5 | F1: 6 | G1: 7 | H1: 8 | I1: 9 | J1: 10 | K1: 11 | L1: 12 | M1: 13 | N1: 14 | O1: 15 | P1: 16 | Q1: 17 | R1: 18 | S1: 19 | T1: 20
A2: Transactions Totals | K2: CFR Inc + cap | P2: CFR Exp + cap | Q2: Rev Bal | S2: Cap Bal
K3: bal bfd | T3: bal bfwd
B4: School | C4: Transactions | D4: Report Total | K4: A | P4: B | Q4: C | S4: D
C5: £ | D5: £ | G5: in yr rev income | I5: in yr cap income | K5: total in yr income | L5: in yr rev exp | N5: in yr cap exp | P5: total in yr exp
A6: 10130 | B6: Brookhill Nursery | C6: -61725.91 | D6: -61725.91 | G6: -709705.4 | H6: -709705.4 | I6: -4719.55 | J6: -4719.55 | K6: =G6+I6 -> -714424.95 | L6: 711787.48 | M6: 711787.48 | N6: 0 | O6: 0 | P6: =L6+N6 -> 711787.48 | Q6: 156379.92 | R6: 4720.55 | S6: 4720.55 | T6: 158462
A7: 10131 | B7: Hampden Way Nursery | C7: -202656.53 | D7: -202656.53 | G7: -812177.07 | H7: -812177.07 | I7: -4626.38 | J7: -4626.38 | K7: =G7+I7 -> -816803.45 | L7: 768935.45 | M7: 768935.45 | N7: 8800 | O7: 8800 | P7: =L7+N7 -> 777735.45 | Q7: 168833.62 | R7: 3841.38 | S7: 3841.38 | T7: 125592
A8: 10132 | B8: Moss Hall Nursery | C8: 26395.81 | D8: 26395.81 | G8: -677479.57 | H8: -677479.57 | I8: -5053 | J8: -5053 | K8: -682532.57 | L8: 675650.05 | M8: 675650.05 | N8: 5962.74 | O8: 5962.74 | P8: 681612.79 | Q8: 304596.52 | R8: 9136.26 | S8: 9136.26 | T8: 302767
A9: 10133 | B9: St Margaret's Nursery | C9: 16256.6 | D9: 16256.6 | G9: -768840.97 | H9: -768840.97 | I9: -34385.55 | J9: -34385.55 | K9: -803226.52 | L9: 783790.62 | M9: 783790.62 | N9: 29585 | O9: 29585 | P9: 813375.62 | Q9: 14131.35 | R9: 5855.55 | S9: 5855.55 | T9: 29081
A10: 10159 | B10: Mapledown | C10: 24205.99 | D10: 24205.99 | G10: -2786724.21 | H10: -2786724.21 | I10: -7016.25 | J10: -7016.25 | K10: -2793740.46 | L10: 2714481.51 | M10: 2714481.51 | N10: 13480 | O10: 13480 | P10: 2727961.51 | Q10: 149681.7 | R10: 0.25 | S10: 0.25 | T10: 77439
A11: 10157 | B11: Northway | C11: 252288.69 | D11: 252288.69 | G11: -2520306.61 | H11: -2520306.61 | I11: -44341.25 | J11: -44341.25 | K11: -2564647.86 | L11: 2516889.07 | M11: 2516889.07 | N11: 44340.46 | O11: 44340.46 | P11: 2561229.53 | Q11: 185976.54 | R11: 0.79 | S11: 0.79 | T11: 182559
A12: 10158 | B12: Oakleigh | C12: 73658.52 | D12: 73658.52 | G12: -3894423.8 | H12: -3894423.8 | I12: -11759 | J12: -11759 | K12: -3906182.8 | L12: 3883383.63 | M12: 3883383.63 | N12: 13549 | O12: 13549 | P12: 3896932.63 | Q12: 214291.17 | R12: 0 | S12: 0 | T12: 203251
A13: 10185 | B13: Northgate | C13: 38660.78 | D13: 38660.78 | G13: -522087.08 | H13: -522087.08 | I13: -4135.25 | J13: -4135.25 | K13: -526222.33 | L13: 552726.88 | M13: 552726.88 | N13: 7144.86 | O13: 7144.86 | P13: 559871.74 | Q13: 100275.2 | R13: 10655.39 | S13: 10655.39 | T13: 130915
A14: 10188 | B14: Pavilion | C14: -29957.72 | D14: -29957.72 | G14: -2608541.62 | H14: -2608541.62 | I14: -6667.56 | J14: -6667.56 | K14: -2615209.18 | L14: 2553398.72 | M14: 2553398.72 | N14: 9282 | O14: 9282 | P14: 2562680.72 | Q14: 114164.9 | R14: 8036.56 | S14: 8036.56 | T14: 59022
A15: 11094 | B15: Akiva | C15: 44850.04 | D15: 44850.04 | G15: -2484864.53 | H15: -2484864.53 | I15: 0 | J15: 0 | K15: -2484864.53 | L15: 2412907.93 | M15: 2412907.93 | N15: 0 | O15: 0 | P15: 2412907.93 | Q15: 37544.6 | S15: 0 | T15: -34412
A16: 10042 | B16: All Saints N20 | C16: 63810.83 | D16: 63810.83 | G16: -1466312.03 | H16: -1466312.03 | I16: -26245 | J16: -26245 | K16: -1492557.03 | L16: 1494928.3 | M16: 1494928.3 | N16: 26245 | O16: 26245 | P16: 1521173.3 | Q16: 123256.73 | R16: 0 | S16: 0 | T16: 151873
A17: 10040 | B17: All Saints NW2 | C17: 70391.7 | D17: 70391.7 | G17: -1235857.69 | H17: -1235857.69 | I17: -33289.53 | J17: -33289.53 | K17: -1269147.22 | L17: 1334423.33 | M17: 1334423.33 | N17: 33289.53 | O17: 33289.53 | P17: 1367712.86 | Q17: 106584.36 | R17: 0 | S17: 0 | T17: 205150
A18: 10043 | B18: Annunciation Inf | C18: 61939.85 | D18: 61939.85 | G18: -1074299.5 | H18: -1074299.5 | I18: 0 | J18: 0 | K18: -1074299.5 | L18: 1021081.27 | M18: 1021081.27 | N18: 0 | O18: 0 | P18: 1021081.27 | Q18: 175894.23 | S18: 0 | T18: 122676
A19: 10117 | B19: Annunciation Jun | C19: 92640.13 | D19: 92640.13 | G19: -1163271.72 | H19: -1163271.72 | I19: 0 | J19: 0 | K19: -1163271.72 | L19: 1120869.4 | M19: 1120869.4 | N19: 0 | O19: 0 | P19: 1120869.4 | Q19: 103114.32 | S19: 0 | T19: 60712
A20: 10044 | B20: Barnfield | C20: 193810.11 | D20: 193810.11 | G20: -3285822.13 | H20: -3285822.13 | I20: -21924.75 | J20: -21924.75 | K20: -3307746.88 | L20: 3250282.85 | M20: 3250282.85 | N20: 21924.84 | O20: 21924.84 | P20: 3272207.69 | Q20: 411190.28 | R20: -1.09 | S20: -1.09 | T20: 375651
A21: 10128 | B21: Beis Yaakov | C21: 202009.83 | D21: 202009.83 | G21: -2132974.67 | H21: -2132974.67 | I21: 0 | J21: 0 | K21: -2132974.67 | L21: 2092417.33 | M21: 2092417.33 | N21: 0 | O21: 0 | P21: 2092417.33 | Q21: 55568.34 | S21: 0 | T21: 15011
A22: 11278 | B22: Beit Shvidler School | C22: 5041.47 | D22: 5041.47 | G22: -1630497.43 | H22: -1630497.43 | I22: 0 | J22: 0 | K22: -1630497.43 | L22: 1616426.05 | M22: 1616426.05 | N22: 0 | O22: 0 | P22: 1616426.05 | Q22: 72683.38 | S22: 0 | T22: 58612
A23: 10045 | B23: Bell Lane | C23: -40074.52 | D23: -40074.52 | G23: -2735273.48 | H23: -2735273.48 | I23: -8977 | J23: -8977 | K23: -2744250.48 | L23: 2715286.11 | M23: 2715286.11 | N23: 16823.26 | O23: 16823.26 | P23: 2732109.37 | Q23: 100729.37 | R23: 979.74 | S23: 979.74 | T23: 80742
A24: 10115 | B24: Blessed Dominic | C24: 173418.17 | D24: 173418.17 | G24: -2489468.77 | H24: -2489468.77 | I24: 0 | J24: 0 | K24: -2489468.77 | L24: 2349688.02 | M24: 2349688.02 | N24: 0 | O24: 0 | P24: 2349688.02 | Q24: 214487.75 | R24: 1 | S24: 1 | T24: 74707
A25: 10047 | B25: Brookland Inf | C25: 97412.94 | D25: 97412.94 | G25: -1704137.31 | H25: -1704137.31 | I25: -7388.5 | J25: -7388.5 | K25: -1711525.81 | L25: 1635178.41 | M25: 1635178.41 | N25: -335.5 | O25: -335.5 | P25: 1634842.91 | Q25: 118776.9 | R25: 9148 | S25: 9148 | T25: 49818
A26: 10046 | B26: Brookland Jun | C26: 86503.12 | D26: 86503.12 | G26: -1873428.99 | H26: -1873428.99 | I26: -8978.75 | J26: -8978.75 | K26: -1882407.74 | L26: 1900864.72 | M26: 1900864.72 | N26: 9890.8 | O26: 9890.8 | P26: 1910755.52 | Q26: 154040.27 | R26: -0.05 | S26: -0.05 | T26: 181476
A27: 10048 | B27: Brunswick Park | C27: 104964.7 | D27: 104964.7 | G27: -2595280.14 | H27: -2595280.14 | I27: -29437.31 | J27: -29437.31 | K27: -2624717.45 | L27: 2449751.31 | M27: 2449751.31 | N27: 27891.01 | O27: 27891.01 | P27: 2477642.32 | Q27: 265273.83 | R27: 1546.3 | S27: 1546.3 | T27: 119745
A28: 10118 | B28: Chalgrove | C28: 124586.88 | D28: 124586.88 | G28: -1478584.09 | H28: -1478584.09 | I28: -6958.75 | J28: -6958.75 | K28: -1485542.84 | L28: 1491979.98 | M28: 1491979.98 | N28: 0 | O28: 0 | P28: 1491979.98 | Q28: 113348.11 | R28: 6956.75 | S28: 6956.75 | T28: 126744
A29: 10049 | B29: Childs Hill | C29: 152080.9 | D29: 152080.9 | G29: -2635829.96 | H29: -2635829.96 | I29: -8320.65 | J29: -8320.65 | K29: -2644150.61 | L29: 2668731.42 | M29: 2668731.42 | N29: 8320.65 | O29: 8320.65 | P29: 2677052.07 | Q29: 6740.54 | R29: 0 | S29: 0 | T29: 39642
A30: 10050 | B30: Christchurch JMI | C30: -102687.48 | D30: -102687.48 | G30: -1241995.02 | H30: -1241995.02 | I30: 0 | J30: 0 | K30: -1241995.02 | L30: 1155290.96 | M30: 1155290.96 | N30: 0 | O30: 0 | P30: 1155290.96 | Q30: 262448.06 | S30: 0 | T30: 175744
A31: 10051 | B31: Church Hill | C31: 73253.54 | D31: 73253.54 | G31: -1239055.83 | H31: -1239055.83 | I31: -8112.75 | J31: -8112.75 | K31: -1247168.58 | L31: 1256414.02 | M31: 1256414.02 | N31: 8275 | O31: 8275 | P31: 1264689.02 | Q31: 71783.81 | R31: -0.25 | S31: -0.25 | T31: 89142
A32: 10054 | B32: Colindale | C32: 313124.57 | D32: 313124.57 | G32: -4133913.57 | H32: -4133913.57 | I32: -59591.91 | J32: -59591.91 | K32: -4193505.48 | L32: 4324244.75 | M32: 4324244.75 | N32: 59591.91 | O32: 59591.91 | P32: 4383836.66 | Q32: 500697.82 | R32: 0 | S32: 0 | T32: 691029
A33: 10055 | B33: Coppetts Wood | C33: -73373.96 | D33: -73373.96 | G33: -2170917.92 | H33: -2170917.92 | I33: -7051 | J33: -7051 | K33: -2177968.92 | L33: 2141717.44 | M33: 2141717.44 | N33: 0 | O33: 0 | P33: 2141717.44 | Q33: 445664.48 | R33: 14118 | S33: 14118 | T33: 416464
A34: 10056 | B34: Courtland | C34: 87182.77 | D34: 87182.77 | G34: -1165758.38 | H34: -1165758.38 | I34: -5000.56 | J34: -5000.56 | K34: -1170758.94 | L34: 1085642.08 | M34: 1085642.08 | N34: 16091.9 | O34: 16091.9 | P34: 1101733.98 | Q34: 92609.3 | R34: 0.66 | S34: 0.66 | T34: 12493
A35: 10057 | B35: Cromer Road | C35: 152365 | D35: 152365 | G35: -2222279.21 | H35: -2222279.21 | I35: -8657.5 | J35: -8657.5 | K35: -2230936.71 | L35: 2186704.71 | M35: 2186704.71 | N35: 8500 | O35: 8500 | P35: 2195204.71 | Q35: 173552.5 | R35: 14872.5 | S35: 14872.5 | T35: 137978
A36: 10083 | B36: Danegrove | C36: 54945.89 | D36: 54945.89 | G36: -3596078.51 | H36: -3596078.51 | I36: -11391.25 | J36: -11391.25 | K36: -3607469.76 | L36: 3705237.3 | M36: 3705237.3 | N36: 10744 | O36: 10744 | P36: 3715981.3 | Q36: 351920.21 | R36: 647.25 | S36: 647.25 | T36: 461079
A37: 10059 | B37: Deansbrook Inf | C37: 99954.78 | D37: 99954.78 | G37: -1737521.83 | H37: -1737521.83 | I37: -7483 | J37: -7483 | K37: -1745004.83 | L37: 1656901.35 | M37: 1656901.35 | N37: 9331 | O37: 9331 | P37: 1666232.35 | Q37: 116843.48 | R37: 13770 | S37: 13770 | T37: 36223
A38: 10061 | B38: Dollis Inf | C38: 71397.77 | D38: 71397.77 | G38: -1720169.34 | H38: -1720169.34 | I38: -17339 | J38: -17339 | K38: -1737508.34 | L38: 1619444.49 | M38: 1619444.49 | N38: 19281.65 | O38: 19281.65 | P38: 1638726.14 | Q38: 184963.85 | R38: 14581.35 | S38: 14581.35 | T38: 84239
A39: 10060 | B39: Dollis Junior | C39: -3951.61 | D39: -3951.61 | G39: -2033905.24 | H39: -2033905.24 | I39: -7892.5 | J39: -7892.5 | K39: -2041797.74 | L39: 2005418 | M39: 2005418 | N39: 6753 | O39: 6753 | P39: 2012171 | Q39: 61398.24 | R39: 6403.5 | S39: 6403.5 | T39: 32911
A40: 10063 | B40: Edgware Primary | C40: 215940.1 | D40: 215940.1 | G40: -3476875.09 | H40: -3476875.09 | I40: -16258.38 | J40: -16258.38 | K40: -3493133.47 | L40: 3436917.63 | M40: 3436917.63 | N40: 16900.01 | O40: 16900.01 | P40: 3453817.64 | Q40: 56561.46 | R40: 0.37 | S40: 0.37 | T40: 16604
A41: 10064 | B41: Fairway | C41: -159388.53 | D41: -159388.53 | G41: -2110921.56 | H41: -2110921.56 | I41: -6954.25 | J41: -6954.25 | K41: -2117875.81 | L41: 2114232.81 | M41: 2114232.81 | N41: 25444.36 | O41: 25444.36 | P41: 2139677.17 | Q41: 167149.75 | R41: 21468.89 | S41: 21468.89 | T41: 170461
A42: 10065 | B42: Foulds | C42: 96054.65 | D42: 96054.65 | G42: -1603161.58 | H42: -1603161.58 | I42: -17103.75 | J42: -17103.75 | K42: -1620265.33 | L42: 1528373.21 | M42: 1528373.21 | N42: 15613 | O42: 15613 | P42: 1543986.21 | Q42: 171440.37 | R42: 10533.75 | S42: 10533.75 | T42: 96652
A43: 10066 | B43: Frith Manor | C43: 268244.63 | D43: 268244.63 | G43: -3281918.22 | H43: -3281918.22 | I43: -23010.17 | J43: -23010.17 | K43: -3304928.39 | L43: 3286063.88 | M43: 3286063.88 | N43: 11701.86 | O43: 11701.86 | P43: 3297765.74 | Q43: -2176.66 | R43: 21611.31 | S43: 21611.31 | T43: 1969
A44: 10068 | B44: Garden Suburb Inf | C44: 110393.89 | D44: 110393.89 | G44: -1405661.91 | H44: -1405661.91 | I44: -17277.25 | J44: -17277.25 | K44: -1422939.16 | L44: 1428907.76 | M44: 1428907.76 | N44: 11429.5 | O44: 11429.5 | P44: 1440337.26 | Q44: 31127.15 | R44: 17070.75 | S44: 17070.75 | T44: 54373
A45: 10067 | B45: Garden Suburb Jnr | C45: 155025.58 | D45: 155025.58 | G45: -1851108 | H45: -1851108 | I45: -82252.39 | J45: -82252.39 | K45: -1933360.39 | L45: 1817264.46 | M45: 1817264.46 | N45: 75392.14 | O45: 75392.14 | P45: 1892656.6 | Q45: 139042.54 | R45: 10119.25 | S45: 10119.25 | T45: 105199
A46: 10069 | B46: Goldbeaters | C46: 139013.37 | D46: 139013.37 | G46: -2761464.91 | H46: -2761464.91 | I46: -9114.25 | J46: -9114.25 | K46: -2770579.16 | L46: 2691980.24 | M46: 2691980.24 | N46: 9616.2 | O46: 9616.2 | P46: 2701596.44 | Q46: 59289.67 | R46: 8467.05 | S46: 8467.05 | T46: -10195
A47: 10121 | B47: Hasmonean Primary | C47: 140698.99 | D47: 140698.99 | G47: -1227612.31 | H47: -1227612.31 | I47: 0 | J47: 0 | K47: -1227612.31 | L47: 1246660.14 | M47: 1246660.14 | N47: 0 | O47: 0 | P47: 1246660.14 | Q47: -21033.83 | S47: 0 | T47: -1986
A48: 10071 | B48: Hollickwood | C48: 67528.33 | D48: 67528.33 | G48: -1391510.88 | H48: -1391510.88 | I48: -6499.75 | J48: -6499.75 | K48: -1398010.63 | L48: 1436572.98 | M48: 1436572.98 | N48: 0 | O48: 0 | P48: 1436572.98 | Q48: 111210.9 | R48: 14316.75 | S48: 14316.75 | T48: 156273
A49: 10072 | B49: Holly Park | C49: 244060.6 | D49: 244060.6 | G49: -2770568.7 | H49: -2770568.7 | I49: -9832 | J49: -9832 | K49: -2780400.7 | L49: 2686250.28 | M49: 2686250.28 | N49: 9818 | O49: 9818 | P49: 2696068.28 | Q49: 158878.42 | R49: 13 | S49: 13 | T49: 74560
A50: 10073 | B50: Holy Trinity | C50: 90710.64 | D50: 90710.64 | G50: -1422623.8 | H50: -1422623.8 | I50: 0 | J50: 0 | K50: -1422623.8 | L50: 1416158.06 | M50: 1416158.06 | N50: 0 | O50: 0 | P50: 1416158.06 | Q50: 132956.74 | R50: -1 | S50: -1 | T50: 126491
A51: 10074 | B51: Livingstone | C51: 161610.52 | D51: 161610.52 | G51: -2436872.27 | H51: -2436872.27 | I51: -19585.6 | J51: -19585.6 | K51: -2456457.87 | L51: 2360444.02 | M51: 2360444.02 | N51: 19585.6 | O51: 19585.6 | P51: 2380029.62 | Q51: 528877.25 | R51: 3.492459655e-12 | S51: 3.492459655e-12 | T51: 452449
A52: 10075 | B52: Manorside | C52: 36301.5 | D52: 36301.5 | G52: -1890270.86 | H52: -1890270.86 | I52: -7696.75 | J52: -7696.75 | K52: -1897967.61 | L52: 1914369.46 | M52: 1914369.46 | N52: 0 | O52: 0 | P52: 1914369.46 | Q52: -10522.6 | R52: 15413.75 | S52: 15413.75 | T52: 13576
A53: 11093 | B53: Martin Primary School | C53: 40696.92 | D53: 40696.92 | G53: -3615837.07 | H53: -3615837.07 | I53: -19536.19 | J53: -19536.19 | K53: -3635373.26 | L53: 3484874.15 | M53: 3484874.15 | N53: 14546.7 | O53: 14546.7 | P53: 3499420.85 | Q53: 309495.92 | R53: 9203.49 | S53: 9203.49 | T53: 178533
A54: 10125 | B54: Mathilda Marks Kennedy | C54: 24777.06 | D54: 24777.06 | G54: -1415741.55 | H54: -1415741.55 | I54: 0 | J54: 0 | K54: -1415741.55 | L54: 1410974.88 | M54: 1410974.88 | N54: 0 | O54: 0 | P54: 1410974.88 | Q54: 29057.67 | S54: 0 | T54: 24291
A55: 10126 | B55: Menorah Foundation | C55: 57551.89 | D55: 57551.89 | G55: -2599694.38 | H55: -2599694.38 | I55: 0 | J55: 0 | K55: -2599694.38 | L55: 2696297.19 | M55: 2696297.19 | N55: 0 | O55: 0 | P55: 2696297.19 | Q55: -31959.81 | S55: 0 | T55: 64643
A56: 10114 | B56: Menorah Primary | C56: 110733.46 | D56: 110733.46 | G56: -2038341.07 | H56: -2038341.07 | I56: 0.5 | J56: 0.5 | K56: -2038340.57 | L56: 1983258.77 | M56: 1983258.77 | N56: 0 | O56: 0 | P56: 1983258.77 | Q56: 53322.3 | R56: -0.5 | S56: -0.5 | T56: -1760
A57: 10078 | B57: Monken Hadley CE | C57: 50237.76 | D57: 50237.76 | G57: -738808.59 | H57: -738808.59 | I57: 0 | J57: 0 | K57: -738808.59 | L57: 722063.89 | M57: 722063.89 | N57: 0 | O57: 0 | P57: 722063.89 | Q57: 180209.7 | S57: 0 | T57: 163465
A58: 10079 | B58: Monkfrith | C58: 33518.62 | D58: 33518.62 | G58: -1761351.97 | H58: -1761351.97 | I58: -62895 | J58: -62895 | K58: -1824246.97 | L58: 1803551.01 | M58: 1803551.01 | N58: 62895 | O58: 62895 | P58: 1866446.01 | Q58: 80105.96 | R58: 0 | S58: 0 | T58: 122305
A59: 10081 | B59: Moss Hall Inf | C59: 177979.55 | D59: 177979.55 | G59: -1966102.97 | H59: -1966102.97 | I59: -8083.75 | J59: -8083.75 | K59: -1974186.72 | L59: 1969138.43 | M59: 1969138.43 | N59: 0 | O59: 0 | P59: 1969138.43 | Q59: 69525.54 | R59: 8083.75 | S59: 8083.75 | T59: 72561
A60: 10080 | B60: Moss Hall Jun | C60: 173333.1 | D60: 173333.1 | G60: -2100321.06 | H60: -2100321.06 | I60: -6240 | J60: -6240 | K60: -2106561.06 | L60: 1751626.9 | M60: 1751626.9 | N60: 30635.72 | O60: 30635.72 | P60: 1782262.62 | Q60: 558499.16 | R60: -24396.72 | S60: -24396.72 | T60: 208725
A61: 10082 | B61: Northside | C61: 154666.01 | D61: 154666.01 | G61: -1601495.39 | H61: -1601495.39 | I61: -76890.98 | J61: -76890.98 | K61: -1678386.37 | L61: 1758641.95 | M61: 1758641.95 | N61: 90399.75 | O61: 90399.75 | P61: 1849041.7 | Q61: 242852.44 | R61: 0.23 | S61: 0.23 | T61: 399999
A62: 10127 | B62: Orion | C62: 369751.09 | D62: 369751.09 | G62: -6395724.87 | H62: -6395724.87 | I62: -23789.5 | J62: -23789.5 | K62: -6419514.37 | L62: 6294860.03 | M62: 6294860.03 | N62: 9769.8 | O62: 9769.8 | P62: 6304629.83 | Q62: 221791.84 | R62: -0.3 | S62: -0.3 | T62: 120927
A63: 10084 | B63: Osidge JMI | C63: 182229.75 | D63: 182229.75 | G63: -2115530.88 | H63: -2115530.88 | I63: -19132.5 | J63: -19132.5 | K63: -2134663.38 | L63: 2055272.94 | M63: 2055272.94 | N63: 19132 | O63: 19132 | P63: 2074404.94 | Q63: 248450.94 | R63: 0.5 | S63: 0.5 | T63: 188193
A64: 10085 | B64: Our Lady of Lourdes | C64: 108104.81 | D64: 108104.81 | G64: -1274318.93 | H64: -1274318.93 | I64: 0 | J64: 0 | K64: -1274318.93 | L64: 1314705.81 | M64: 1314705.81 | N64: 0 | O64: 0 | P64: 1314705.81 | Q64: 21391.12 | R64: 1 | S64: 1 | T64: 61778
A65: 10129 | B65: Pardes House | C65: 183482.34 | D65: 183482.34 | G65: -1582048.08 | H65: -1582048.08 | I65: 0 | J65: 0 | K65: -1582048.08 | L65: 1616032.76 | M65: 1616032.76 | N65: 0 | O65: 0 | P65: 1616032.76 | Q65: 17532.32 | S65: 0 | T65: 51517
A66: 10119 | B66: Queenswell Inf | C66: 76047.8 | D66: 76047.8 | G66: -1748678.24 | H66: -1748678.24 | I66: -7399.75 | J66: -7399.75 | K66: -1756077.99 | L66: 1687820.12 | M66: 1687820.12 | N66: 0 | O66: 0 | P66: 1687820.12 | Q66: 79254.12 | R66: 15090.75 | S66: 15090.75 | T66: 18396
A67: 10086 | B67: Queenswell Jun | C67: 48456.18 | D67: 48456.18 | G67: -2095118.78 | H67: -2095118.78 | I67: -7825 | J67: -7825 | K67: -2102943.78 | L67: 2027167.78 | M67: 2027167.78 | N67: 0 | O67: 0 | P67: 2027167.78 | Q67: 134490 | R67: 9697 | S67: 9697 | T67: 66539
A68: 10112 | B68: Rosh Pinah | C68: 124797.33 | D68: 124797.33 | G68: -2688662.12 | H68: -2688662.12 | I68: 0 | J68: 0 | K68: -2688662.12 | L68: 2591123.47 | M68: 2591123.47 | N68: 0 | O68: 0 | P68: 2591123.47 | Q68: 129908.65 | S68: 0 | T68: 32370
A69: 10110 | B69: Sacred Heart | C69: 199252.21 | D69: 199252.21 | G69: -2010782.03 | H69: -2010782.03 | I69: 0 | J69: 0 | K69: -2010782.03 | L69: 2007390.49 | M69: 2007390.49 | N69: 0 | O69: 0 | P69: 2007390.49 | Q69: 147828.54 | S69: 0 | T69: 144437
A70: 11381 | B70: Sacks Morasha | C70: 8133.91 | D70: 8133.91 | G70: -1101833.24 | H70: -1101833.24 | I70: 0 | J70: 0 | K70: -1101833.24 | L70: 1078209.62 | M70: 1078209.62 | N70: 0 | O70: 0 | P70: 1078209.62 | Q70: 87789.62 | R70: 1 | S70: 1 | T70: 64166
A71: 10087 | B71: St Agnes RC | C71: 99944.83 | D71: 99944.83 | G71: -1915923.34 | H71: -1915923.34 | I71: 0 | J71: 0 | K71: =G71+I71 -> -1915923.34 | L71: 1808839.8 | M71: 1808839.8 | N71: 0 | O71: 0 | P71: =L71+N71 -> 1808839.8 | Q71: 407523.54 | R71: 1 | S71: 1 | T71: 300440
A72: 10099 | B72: St Andrews CE | C72: 80261.61 | D72: 80261.61 | G72: -1109594.44 | H72: -1109594.44 | I72: -17805.59 | J72: -17805.59 | K72: -1127400.03 | L72: 1080165.22 | M72: 1080165.22 | N72: 17805.59 | O72: 17805.59 | P72: 1097970.81 | Q72: 201563.22 | R72: 0 | S72: 0 | T72: 172134
A73: 10088 | B73: St Catherines RC | C73: 164762.37 | D73: 164762.37 | G73: -2553770.61 | H73: -2553770.61 | I73: 0 | J73: 0 | K73: -2553770.61 | L73: 2537762.81 | M73: 2537762.81 | N73: 0 | O73: 0 | P73: 2537762.81 | Q73: 247130.8 | S73: 0 | T73: 231123
A74: 10089 | B74: St Johns CE N11 | C74: 57387.1 | D74: 57387.1 | G74: -1303375.36 | H74: -1303375.36 | I74: 0 | J74: 0 | K74: -1303375.36 | L74: 1271074.94 | M74: 1271074.94 | N74: 0 | O74: 0 | P74: 1271074.94 | Q74: 81701.42 | S74: 0 | T74: 49401
A75: 10116 | B75: St Johns CE N20 | C75: 83821.81 | D75: 83821.81 | G75: -1219689.81 | H75: -1219689.81 | I75: 0 | J75: 0 | K75: -1219689.81 | L75: 1177833.67 | M75: 1177833.67 | N75: 0 | O75: 0 | P75: 1177833.67 | Q75: 69137.14 | S75: 0 | T75: 27281
A76: 10107 | B76: St Josephs RC Jun | C76: 389225.78 | D76: 389225.78 | G76: -2586825.64 | H76: -2586825.64 | I76: 0 | J76: 0 | K76: -2586825.64 | L76: 2608435.1 | M76: 2608435.1 | N76: 0 | O76: 0 | P76: 2608435.1 | Q76: -122777.46 | S76: 0 | T76: -101168
A77: 10698 | B77: St Mary's & St Johns Primary | C77: 144665.38 | D77: 144665.38 | G77: -6046194.38 | H77: -6046194.38 | I77: -141958.6 | J77: -141958.6 | K77: -6188152.98 | L77: 6107444.84 | M77: 6107444.84 | N77: 144330.6 | O77: 144330.6 | P77: 6251775.44 | Q77: 309311.54 | R77: 0 | S77: 0 | T77: 370562
A78: 10093 | B78: St Marys CE EB | C78: 70168.86 | D78: 70168.86 | G78: -1181197.62 | H78: -1181197.62 | I78: 0 | J78: 0 | K78: -1181197.62 | L78: 1103864.9 | M78: 1103864.9 | N78: 0 | O78: 0 | P78: 1103864.9 | Q78: 139925.72 | S78: 0 | T78: 62593
A79: 10092 | B79: St Marys CE N3 | C79: 132146.42 | D79: 132146.42 | G79: -2273702.52 | H79: -2273702.52 | I79: 0 | J79: 0 | K79: -2273702.52 | L79: 2247458.79 | M79: 2247458.79 | N79: 0 | O79: 0 | P79: 2247458.79 | Q79: 104321.73 | S79: 0 | T79: 78078
A80: 10094 | B80: St Pauls CE N11 | C80: 53470.47 | D80: 53470.47 | G80: -1238163.88 | H80: -1238163.88 | I80: -17855 | J80: -17855 | K80: -1256018.88 | L80: 1430230.31 | M80: 1430230.31 | N80: 17855 | O80: 17855 | P80: 1448085.31 | Q80: 61679.57 | R80: 0 | S80: 0 | T80: 253746
A81: 10095 | B81: St Pauls CE NW7 | C81: 252451.58 | D81: 252451.58 | G81: -1178409.96 | H81: -1178409.96 | I81: 0 | J81: 0 | K81: -1178409.96 | L81: 1179958.27 | M81: 1179958.27 | N81: 0 | O81: 0 | P81: 1179958.27 | Q81: 22193.69 | S81: 0 | T81: 23742
A82: 10108 | B82: St Theresas RC | C82: 93509.23 | D82: 93509.23 | G82: -1191085.21 | H82: -1191085.21 | I82: 0 | J82: 0 | K82: -1191085.21 | L82: 1119601.12 | M82: 1119601.12 | N82: 0 | O82: 0 | P82: 1119601.12 | Q82: 95043.09 | S82: 0 | T82: 23559
A83: 10096 | B83: St Vincents RC | C83: 129633.33 | D83: 129633.33 | G83: -1612990.2 | H83: -1612990.2 | I83: 0 | J83: 0 | K83: -1612990.2 | L83: 1659597.46 | M83: 1659597.46 | N83: 0 | O83: 0 | P83: 1659597.46 | Q83: 69001.74 | R83: -1 | S83: -1 | T83: 115609
A84: 10098 | B84: Summerside | C84: 114309 | D84: 114309 | G84: -1299852.42 | H84: -1299852.42 | I84: -48885.25 | J84: -48885.25 | K84: -1348737.67 | L84: 1399931.62 | M84: 1399931.62 | N84: 51259.25 | O84: 51259.25 | P84: 1451190.87 | Q84: -0.2 | R84: 0 | S84: 0 | T84: 0
A85: 10097 | B85: Sunnyfields | C85: 89366.33 | D85: 89366.33 | G85: -1539111.75 | H85: -1539111.75 | I85: -8790.75 | J85: -8790.75 | K85: -1547902.5 | L85: 1452918.31 | M85: 1452918.31 | N85: 15465 | O85: 15465 | P85: 1468383.31 | Q85: 229601.44 | R85: -0.25 | S85: -0.25 | T85: 143408
A86: 10100 | B86: Trent | C86: 28618.39 | D86: 28618.39 | G86: -1107231.91 | H86: -1107231.91 | I86: 0 | J86: 0 | K86: -1107231.91 | L86: 1094644.77 | M86: 1094644.77 | N86: 0 | O86: 0 | P86: 1094644.77 | Q86: 25795.14 | S86: 0 | T86: 13208
A87: 10101 | B87: Tudor | C87: 274092.98 | D87: 274092.98 | G87: -1561579.35 | H87: -1561579.35 | I87: -6601 | J87: -6601 | K87: -1568180.35 | L87: 1600789.89 | M87: 1600789.89 | N87: 0 | O87: 0 | P87: 1600789.89 | Q87: -87918.54 | R87: 8084 | S87: 8084 | T87: -48708
A88: 10103 | B88: Underhill School | C88: 270876.54 | D88: 270876.54 | G88: -3852003.8 | H88: -3852003.8 | I88: -9920.2 | J88: -9920.2 | K88: -3861924 | L88: 3783276.84 | M88: 3783276.84 | N88: 9576.5 | O88: 9576.5 | P88: 3792853.34 | Q88: 253321.96 | R88: 343.7 | S88: 343.7 | T88: 184595
A89: 10124 | B89: Wessex Gardens | C89: 76460.02 | D89: 76460.02 | G89: -2600835.04 | H89: -2600835.04 | I89: -47017.5 | J89: -47017.5 | K89: -2647852.54 | L89: 2615555.54 | M89: 2615555.54 | N89: 44327.37 | O89: 44327.37 | P89: 2659882.91 | Q89: 177511.5 | R89: 18756.13 | S89: 18756.13 | T89: 192232
A90: 10105 | B90: Whitings Hill | C90: 139257.59 | D90: 139257.59 | G90: -2915831.74 | H90: -2915831.74 | I90: -9019.5 | J90: -9019.5 | K90: -2924851.24 | L90: 2804333.35 | M90: 2804333.35 | N90: 0 | O90: 0 | P90: 2804333.35 | Q90: 253134.39 | R90: 7349.5 | S90: 7349.5 | T90: 141636
A91: 10123 | B91: Woodcroft Primary | C91: 209351.47 | D91: 209351.47 | G91: -2695316.97 | H91: -2695316.97 | I91: -10241.5 | J91: -10241.5 | K91: -2705558.47 | L91: 2691819.74 | M91: 2691819.74 | N91: 13160 | O91: 13160 | P91: 2704979.74 | Q91: 100906.23 | R91: 0.5 | S91: 0.5 | T91: 97409
A92: 10109 | B92: Woodridge | C92: 92485.94 | D92: 92485.94 | G92: -1246729.58 | H92: -1246729.58 | I92: -17396.75 | J92: -17396.75 | K92: -1264126.33 | L92: 1286849.34 | M92: 1286849.34 | N92: 10708 | O92: 10708 | P92: 1297557.34 | Q92: 29921.24 | R92: 11446.75 | S92: 11446.75 | T92: 70041
A93: 10145 | B93: Finchley Catholic High | C93: 694360.1 | D93: 694360.1 | G93: -7022267.67 | H93: -7022267.67 | I93: 0 | J93: 0 | K93: -7022267.67 | L93: 6993058.31 | M93: 6993058.31 | N93: 0 | O93: 0 | P93: 6993058.31 | Q93: 543829.36 | R93: 1 | S93: 1 | T93: 514620
A94: 10139 | B94: Friern Barnet | C94: 118619.75 | D94: 118619.75 | G94: -5547180.17 | H94: -5547180.17 | I94: -47297.5 | J94: -47297.5 | K94: -5594477.67 | L94: 5593265.39 | M94: 5593265.39 | N94: 51211.79 | O94: 51211.79 | P94: 5644477.18 | Q94: 174783.78 | R94: 25216.71 | S94: 25216.71 | T94: 220869
A95: 11174 | B95: JCoSS | C95: 667543.15 | D95: 667543.15 | G95: -11481628.57 | H95: -11481628.57 | I95: 0 | J95: 0 | K95: -11481628.57 | L95: 11390858.83 | M95: 11390858.83 | N95: 0 | O95: 0 | P95: 11390858.83 | Q95: 89342.74 | S95: 0 | T95: -1427
A96: 10142 | B96: St James' Catholic High | C96: 661515.65 | D96: 661515.65 | G96: -6360202.59 | H96: -6360202.59 | I96: 0 | J96: 0 | K96: -6360202.59 | L96: 6817710.31 | M96: 6817710.31 | N96: 0 | O96: 0 | P96: 6817710.31 | Q96: -333259.72 | S96: 0 | T96: 124248
A97: 10148 | B97: St Michaels Cath Gram | C97: 360923.8 | D97: 360923.8 | G97: -4273543.18 | H97: -4273543.18 | I97: 0 | J97: 0 | K97: -4273543.18 | L97: 4535013.92 | M97: 4535013.92 | N97: 0 | O97: 0 | P97: 4535013.92 | Q97: -359987.74 | R97: 4443 | S97: 4443 | T97: -98517
A98: 11513 | B98: Menorah High | C98: 17804.53 | D98: 17804.53 | G98: -4273543.18 | H98: -4273543.18 | I98: 0 | J98: 0 | K98: -4273543.18 | L98: 4535013.92 | M98: 4535013.92 | N98: 0 | O98: 0 | P98: 4535013.92 | Q98: -359987.74 | R98: 4443 | S98: 4443 | T98: 30055
C99: 11499701.72 | D99: 11499701.72 | E99: 0 | F99: 0 | G99: =SUM(G6:G98) -> -216216525.8 | H99: =SUM(H6:H98) -> -216216525.8 | I99: =SUM(I6:I98) -> -1236909.35 | J99: -1236909.35 | K99: -217453435.2 | L99: 215397387.4 | M99: 215397387.4 | N99: 1213340.85 | O99: 1213340.85 | P99: 216610728.2 | Q99: 12254542.45 | S99: 342048.5 | T99: 11462817

Sheet spring term summary
B1: 1 | C1: 2 | D1: 3 | E1: 4 | F1: 5 | G1: 6 | H1: 7 | I1: 8 | J1: 9 | K1: 10 | L1: 11 | M1: 12 | N1: 13 | O1: 14 | P1: 15 | Q1: 16 | R1: 17 | S1: 18
A2: Spring Term 2018 - Summary by GL Code
A4: Sum of Total Claim | C4: Type | D4: GL Code | O4: Clawback
C5: LTS | E5: LTS Total | F5: MAT | H5: MAT Total | I5: MTS | K5: MTS Total | L5: (blank) | M5: (blank) Total | N5: Grand Total | O5: MTS 1 | P5: MTS 2 | Q5: LTS 1 | R5: LTS 2 | S5: Net payment
A6: School | B6: Costloc | C6: 739020 | D6: 739030 | F6: 739020 | G6: 739030 | I6: 739020 | J6: 739030 | L6: #N/A
A7: Akiva | B7: 11094 | C7: 1190 | E7: 1190 | F7: 2450 | H7: 2450 | N7: 3640 | O7: =IF(ISERROR(VLOOKUP(B7,'[68]MTS clawback jnl'!$A$11:$E$76,5,0)),0,VLOOKUP(B7,'[68]MTS clawback jnl'!$A$11:$E$76,5,0)) -> 0 | P7: =IF(ISERROR(VLOOKUP(B7,'[68]MTS clawback jnl 2'!$A$11:$E$76,5,0)),0,VLOOKUP(B7,'[68]MTS clawback jnl 2'!$A$11:$E$76,5,0)) -> 0 | Q7: =IF(ISERROR(VLOOKUP(B7,'[68]LTS-MAT clawback jnl'!$A$11:$F$87,5,0)),0,VLOOKUP(B7,'[68]LTS-MAT clawback jnl'!$A$11:$F$87,5,0)) -> 91.67 | R7: =IF(ISERROR(VLOOKUP(B7,'[68]LTS-MAT clawback jnl 2'!$A$11:$F$87,5,0)),0,VLOOKUP(B7,'[68]LTS-MAT clawback jnl 2'!$A$11:$F$87,5,0)) -> 20.61 | S7: =N7-O7-P7-Q7-R7 -> 3527.72 | V7: =IF(ISERROR(VLOOKUP(I12,'[68]MTS clawback jnl'!$A$11:$E$76,5,0)),0,VLOOKUP(I12,'[68]MTS clawback jnl'!$A$11:$E$76,5,0)) -> 0 | W7: Akiva | X7: 11094
A8: All Saints N20 | B8: 10042 | C8: 2275 | E8: 2275 | I8: 3500 | K8: 3500 | N8: 5775 | O8: =IF(ISERROR(VLOOKUP(B8,'[68]MTS clawback jnl'!$A$11:$E$76,5,0)),0,VLOOKUP(B8,'[68]MTS clawback jnl'!$A$11:$E$76,5,0)) -> 664.87 | P8: =IF(ISERROR(VLOOKUP(B8,'[68]MTS clawback jnl 2'!$A$11:$E$76,5,0)),0,VLOOKUP(B8,'[68]MTS clawback jnl 2'!$A$11:$E$76,5,0)) -> 16.21 | Q8: =IF(ISERROR(VLOOKUP(B8,'[68]LTS-MAT clawback jnl'!$A$11:$F$87,5,0)),0,VLOOKUP(B8,'[68]LTS-MAT clawback jnl'!$A$11:$F$87,5,0)) -> 58.55 | R8: =IF(ISERROR(VLOOKUP(B8,'[68]LTS-MAT clawback jnl 2'!$A$11:$F$87,5,0)),0,VLOOKUP(B8,'[68]LTS-MAT clawback jnl 2'!$A$11:$F$87,5,0)) -> 13.16 | S8: =N8-O8-P8-Q8-R8 -> 5022.21 | V8: =IF(ISERROR(VLOOKUP(I8,'[68]MTS clawback jnl'!$A$11:$E$76,5,0)),0,VLOOKUP(I8,'[68]MTS clawback jnl'!$A$11:$E$76,5,0)) -> 0 | W8: All Saints NW2 | X8: 10040
A9: All Saints NW2 | B9: 10040 | D9: 558 | E9: 558 | F9: 8225 | H9: 8225 | N9: 8783 | O9: =IF(ISERROR(VLOOKUP(B9,'[68]MTS clawback jnl'!$A$11:$E$76,5,0)),0,VLOOKUP(B9,'[68]MTS clawback jnl'!$A$11:$E$76,5,0)) -> 547.82 | P9: =IF(ISERROR(VLOOKUP(B9,'[68]MTS clawback jnl 2'!$A$11:$E$76,5,0)),0,VLOOKUP(B9,'[68]MTS clawback jnl 2'!$A$11:$E$76,5,0)) -> 13.36 | Q9: =IF(ISERROR(VLOOKUP(B9,'[68]LTS-MAT clawback jnl'!$A$11:$F$87,5,0)),0,VLOOKUP(B9,'[68]LTS-MAT clawback jnl'!$A$11:$F$87,5,0)) -> 48.25 | R9: =IF(ISERROR(VLOOKUP(B9,'[68]LTS-MAT clawback jnl 2'!$A$11:$F$87,5,0)),0,VLOOKUP(B9,'[68]LTS-MAT clawback jnl 2'!$A$11:$F$87,5,0)) -> 10.84 | S9: 8162.73 | W9: All Saints N20 | X9: 10042
A10: Annunciation Infant | B10: 10043 | O10: =IF(ISERROR(VLOOKUP(B10,'[68]MTS clawback jnl'!$A$11:$E$76,5,0)),0,VLOOKUP(B10,'[68]MTS clawback jnl'!$A$11:$E$76,5,0)) -> 0 | P10: =IF(ISERROR(VLOOKUP(B10,'[68]MTS clawback jnl 2'!$A$11:$E$76,5,0)),0,VLOOKUP(B10,'[68]MTS clawback jnl 2'!$A$11:$E$76,5,0)) -> 0 | Q10: =IF(ISERROR(VLOOKUP(B10,'[68]LTS-MAT clawback jnl'!$A$11:$F$87,5,0)),0,VLOOKUP(B10,'[68]LTS-MAT clawback jnl'!$A$11:$F$87,5,0)) -> 0 | R10: =IF(ISERROR(VLOOKUP(B10,'[68]LTS-MAT clawback jnl 2'!$A$11:$F$87,5,0)),0,VLOOKUP(B10,'[68]LTS-MAT clawback jnl 2'!$A$11:$F$87,5,0)) -> 0 | S10: 0
A11: Annunciation Junior | B11: 10117 | C11: 2100 | E11: 2100 | N11: 2100 | O11: =IF(ISERROR(VLOOKUP(B11,'[68]MTS clawback jnl'!$A$11:$E$76,5,0)),0,VLOOKUP(B11,'[68]MTS clawback jnl'!$A$11:$E$76,5,0)) -> 0 | P11: =IF(ISERROR(VLOOKUP(B11,'[68]MTS clawback jnl 2'!$A$11:$E$76,5,0)),0,VLOOKUP(B11,'[68]MTS clawback jnl 2'!$A$11:$E$76,5,0)) -> 0 | Q11: =IF(ISERROR(VLOOKUP(B11,'[68]LTS-MAT clawback jnl'!$A$11:$F$87,5,0)),0,VLOOKUP(B11,'[68]LTS-MAT clawback jnl'!$A$11:$F$87,5,0)) -> 47.18 | R11: =IF(ISERROR(VLOOKUP(B11,'[68]LTS-MAT clawback jnl 2'!$A$11:$F$87,5,0)),0,VLOOKUP(B11,'[68]LTS-MAT clawback jnl 2'!$A$11:$F$87,5,0)) -> 10.61 | S11: 2042.21 | W11: Annunciation Junior | X11: 10117
A12: Barnfield | B12: 10044 | C12: 10150 | D12: 2805.72 | E12: 12955.72 | N12: 12955.72 | O12: =IF(ISERROR(VLOOKUP(B12,'[68]MTS clawback jnl'!$A$11:$E$76,5,0)),0,VLOOKUP(B12,'[68]MTS clawback jnl'!$A$11:$E$76,5,0)) -> 0 | P12: =IF(ISERROR(VLOOKUP(B12,'[68]MTS clawback jnl 2'!$A$11:$E$76,5,0)),0,VLOOKUP(B12,'[68]MTS clawback jnl 2'!$A$11:$E$76,5,0)) -> 0 | Q12: =IF(ISERROR(VLOOKUP(B12,'[68]LTS-MAT clawback jnl'!$A$11:$F$87,5,0)),0,VLOOKUP(B12,'[68]LTS-MAT clawback jnl'!$A$11:$F$87,5,0)) -> 128.46 | R12: =IF(ISERROR(VLOOKUP(B12,'[68]LTS-MAT clawback jnl 2'!$A$11:$F$87,5,0)),0,VLOOKUP(B12,'[68]LTS-MAT clawback jnl 2'!$A$11:$F$87,5,0)) -> 28.88 | S12: 12798.38 | V12: =V16 -> 0
A13: Beis Yaakov | B13: 10128 | O13: =IF(ISERROR(VLOOKUP(B13,'[68]MTS clawback jnl'!$A$11:$E$76,5,0)),0,VLOOKUP(B13,'[68]MTS clawback jnl'!$A$11:$E$76,5,0)) -> 867.93 | P13: =IF(ISERROR(VLOOKUP(B13,'[68]MTS clawback jnl 2'!$A$11:$E$76,5,0)),0,VLOOKUP(B13,'[68]MTS clawback jnl 2'!$A$11:$E$76,5,0)) -> 21.16 | Q13: =IF(ISERROR(VLOOKUP(B13,'[68]LTS-MAT clawback jnl'!$A$11:$F$87,5,0)),0,VLOOKUP(B13,'[68]LTS-MAT clawback jnl'!$A$11:$F$87,5,0)) -> 76.44 | R13: =IF(ISERROR(VLOOKUP(B13,'[68]LTS-MAT clawback jnl 2'!$A$11:$F$87,5,0)),0,VLOOKUP(B13,'[68]LTS-MAT clawback jnl 2'!$A$11:$F$87,5,0)) -> 17.18 | S13: -982.71
A14: Beit Shvidler | B14: 11278 | O14: =IF(ISERROR(VLOOKUP(B14,'[68]MTS clawback jnl'!$A$11:$E$76,5,0)),0,VLOOKUP(B14,'[68]MTS clawback jnl'!$A$11:$E$76,5,0)) -> 0 | P14: =IF(ISERROR(VLOOKUP(B14,'[68]MTS clawback jnl 2'!$A$11:$E$76,5,0)),0,VLOOKUP(B14,'[68]MTS clawback jnl 2'!$A$11:$E$76,5,0)) -> 0 | Q14: =IF(ISERROR(VLOOKUP(B14,'[68]LTS-MAT clawback jnl'!$A$11:$F$87,5,0)),0,VLOOKUP(B14,'[68]LTS-MAT clawback jnl'!$A$11:$F$87,5,0)) -> 0 | R14: =IF(ISERROR(VLOOKUP(B14,'[68]LTS-MAT clawback jnl 2'!$A$11:$F$87,5,0)),0,VLOOKUP(B14,'[68]LTS-MAT clawback jnl 2'!$A$11:$F$87,5,0)) -> 0 | S14: 0 | W14: Barnfield | X14: 10044
A15: Bell Lane | B15: 10045 | D15: 3646.72 | E15: 3646.72 | N15: 3646.72 | O15: =IF(ISERROR(VLOOKUP(B15,'[68]MTS clawback jnl'!$A$11:$E$76,5,0)),0,VLOOKUP(B15,'[68]MTS clawback jnl'!$A$11:$E$76,5,0)) -> 0 | P15: =IF(ISERROR(VLOOKUP(B15,'[68]MTS clawback jnl 2'!$A$11:$E$76,5,0)),0,VLOOKUP(B15,'[68]MTS clawback jnl 2'!$A$11:$E$76,5,0)) -> 0 | Q15: =IF(ISERROR(VLOOKUP(B15,'[68]LTS-MAT clawback jnl'!$A$11:$F$87,5,0)),0,VLOOKUP(B15,'[68]LTS-MAT clawback jnl'!$A$11:$F$87,5,0)) -> 95.72 | R15: =IF(ISERROR(VLOOKUP(B15,'[68]LTS-MAT clawback jnl 2'!$A$11:$F$87,5,0)),0,VLOOKUP(B15,'[68]LTS-MAT clawback jnl 2'!$A$11:$F$87,5,0)) -> 21.52 | S15: 3529.48 | W15: Bell Lane | X15: 10045
A16: Bell Lane CC | B16: 10045 | F16: 1653 | H16: 1653 | N16: 1653 | O16: =IF(ISERROR(VLOOKUP(B16,'[68]MTS clawback jnl'!$A$11:$E$76,5,0)),0,VLOOKUP(B16,'[68]MTS clawback jnl'!$A$11:$E$76,5,0)) -> 0 | P16: =IF(ISERROR(VLOOKUP(B16,'[68]MTS clawback jnl 2'!$A$11:$E$76,5,0)),0,VLOOKUP(B16,'[68]MTS clawback jnl 2'!$A$11:$E$76,5,0)) -> 0 | Q16: =IF(ISERROR(VLOOKUP(B16,'[68]LTS-MAT clawback jnl'!$A$11:$F$87,5,0)),0,VLOOKUP(B16,'[68]LTS-MAT clawback jnl'!$A$11:$F$87,5,0)) -> 95.72 | R16: =IF(ISERROR(VLOOKUP(B16,'[68]LTS-MAT clawback jnl 2'!$A$11:$F$87,5,0)),0,VLOOKUP(B16,'[68]LTS-MAT clawback jnl 2'!$A$11:$F$87,5,0)) -> 21.52 | S16: 1535.76 | W16: Brookland Infants | X16: 10047
A17: Blessed Dominic | B17: 10115 | O17: =IF(ISERROR(VLOOKUP(B17,'[68]MTS clawback jnl'!$A$11:$E$76,5,0)),0,VLOOKUP(B17,'[68]MTS clawback jnl'!$A$11:$E$76,5,0)) -> 0 | P17: =IF(ISERROR(VLOOKUP(B17,'[68]MTS clawback jnl 2'!$A$11:$E$76,5,0)),0,VLOOKUP(B17,'[68]MTS clawback jnl 2'!$A$11:$E$76,5,0)) -> 0 | Q17: =IF(ISERROR(VLOOKUP(B17,'[68]LTS-MAT clawback jnl'!$A$11:$F$87,5,0)),0,VLOOKUP(B17,'[68]LTS-MAT clawback jnl'!$A$11:$F$87,5,0)) -> 0 | R17: =IF(ISERROR(VLOOKUP(B17,'[68]LTS-MAT clawback jnl 2'!$A$11:$F$87,5,0)),0,VLOOKUP(B17,'[68]LTS-MAT clawback jnl 2'!$A$11:$F$87,5,0)) -> 0 | S17: 0
A18: Brookhill Nursery | B18: 10130 | O18: =IF(ISERROR(VLOOKUP(B18,'[68]MTS clawback jnl'!$A$11:$E$76,5,0)),0,VLOOKUP(B18,'[68]MTS clawback jnl'!$A$11:$E$76,5,0)) -> 448.3 | P18: =IF(ISERROR(VLOOKUP(B18,'[68]MTS clawback jnl 2'!$A$11:$E$76,5,0)),0,VLOOKUP(B18,'[68]MTS clawback jnl 2'!$A$11:$E$76,5,0)) -> 10.93 | Q18: =IF(ISERROR(VLOOKUP(B18,'[68]LTS-MAT clawback jnl'!$A$11:$F$87,5,0)),0,VLOOKUP(B18,'[68]LTS-MAT clawback jnl'!$A$11:$F$87,5,0)) -> 39.48 | R18: =IF(ISERROR(VLOOKUP(B18,'[68]LTS-MAT clawback jnl 2'!$A$11:$F$87,5,0)),0,VLOOKUP(B18,'[68]LTS-MAT clawback jnl 2'!$A$11:$F$87,5,0)) -> 8.87 | S18: -507.58
A19: Brookland Infants | B19: 10047 | C19: 4200 | D19: 2324.07 | E19: 6524.07 | F19: 2835 | H19: 2835 | J19: 426.87 | K19: 426.87 | N19: 9785.94 | O19: =IF(ISERROR(VLOOKUP(B19,'[68]MTS clawback jnl'!$A$11:$E$76,5,0)),0,VLOOKUP(B19,'[68]MTS clawback jnl'!$A$11:$E$76,5,0)) -> 672.22 | P19: =IF(ISERROR(VLOOKUP(B19,'[68]MTS clawback jnl 2'!$A$11:$E$76,5,0)),0,VLOOKUP(B19,'[68]MTS clawback jnl 2'!$A$11:$E$76,5,0)) -> 16.39 | Q19: =IF(ISERROR(VLOOKUP(B19,'[68]LTS-MAT clawback jnl'!$A$11:$F$87,5,0)),0,VLOOKUP(B19,'[68]LTS-MAT clawback jnl'!$A$11:$F$87,5,0)) -> 59.2 | R19: =IF(ISERROR(VLOOKUP(B19,'[68]LTS-MAT clawback jnl 2'!$A$11:$F$87,5,0)),0,VLOOKUP(B19,'[68]LTS-MAT clawback jnl 2'!$A$11:$F$87,5,0)) -> 13.31 | S19: 9024.82 | W19: Brunswick Park | X19: 10048
A20: Brookland Junior | B20: 10046 | O20: =IF(ISERROR(VLOOKUP(B20,'[68]MTS clawback jnl'!$A$11:$E$76,5,0)),0,VLOOKUP(B20,'[68]MTS clawback jnl'!$A$11:$E$76,5,0)) -> 815.57 | P20: =IF(ISERROR(VLOOKUP(B20,'[68]MTS clawback jnl 2'!$A$11:$E$76,5,0)),0,VLOOKUP(B20,'[68]MTS clawback jnl 2'!$A$11:$E$76,5,0)) -> 19.88 | Q20: =IF(ISERROR(VLOOKUP(B20,'[68]LTS-MAT clawback jnl'!$A$11:$F$87,5,0)),0,VLOOKUP(B20,'[68]LTS-MAT clawback jnl'!$A$11:$F$87,5,0)) -> 71.82 | R20: =IF(ISERROR(VLOOKUP(B20,'[68]LTS-MAT clawback jnl 2'!$A$11:$F$87,5,0)),0,VLOOKUP(B20,'[68]LTS-MAT clawback jnl 2'!$A$11:$F$87,5,0)) -> 16.14 | S20: -923.41 | W20: Colindale | X20: 10054
A21: Brunswick Park | B21: 10048 | C21: 7656.25 | D21: 3323.9 | E21: 10980.15 | J21: 370 | K21: 370 | N21: 11350.15 | O21: =IF(ISERROR(VLOOKUP(B21,'[68]MTS clawback jnl'!$A$11:$E$76,5,0)),0,VLOOKUP(B21,'[68]MTS clawback jnl'!$A$11:$E$76,5,0)) -> 1125.26 | P21: =IF(ISERROR(VLOOKUP(B21,'[68]MTS clawback jnl 2'!$A$11:$E$76,5,0)),0,VLOOKUP(B21,'[68]MTS clawback jnl 2'!$A$11:$E$76,5,0)) -> 27.43 | Q21: =IF(ISERROR(VLOOKUP(B21,'[68]LTS-MAT clawback jnl'!$A$11:$F$87,5,0)),0,VLOOKUP(B21,'[68]LTS-MAT clawback jnl'!$A$11:$F$87,5,0)) -> 99.1 | R21: =IF(ISERROR(VLOOKUP(B21,'[68]LTS-MAT clawback jnl 2'!$A$11:$F$87,5,0)),0,VLOOKUP(B21,'[68]LTS-MAT clawback jnl 2'!$A$11:$F$87,5,0)) -> 22.28 | S21: 10076.08 | W21: Cromer Road | X21: 10057
A22: Chalgrove | B22: 10118 | O22: =IF(ISERROR(VLOOKUP(B22,'[68]MTS clawback jnl'!$A$11:$E$76,5,0)),0,VLOOKUP(B22,'[68]MTS clawback jnl'!$A$11:$E$76,5,0)) -> 563.22 | P22: =IF(ISERROR(VLOOKUP(B22,'[68]MTS clawback jnl 2'!$A$11:$E$76,5,0)),0,VLOOKUP(B22,'[68]MTS clawback jnl 2'!$A$11:$E$76,5,0)) -> 13.73 | Q22: =IF(ISERROR(VLOOKUP(B22,'[68]LTS-MAT clawback jnl'!$A$11:$F$87,5,0)),0,VLOOKUP(B22,'[68]LTS-MAT clawback jnl'!$A$11:$F$87,5,0)) -> 49.6 | R22: =IF(ISERROR(VLOOKUP(B22,'[68]LTS-MAT clawback jnl 2'!$A$11:$F$87,5,0)),0,VLOOKUP(B22,'[68]LTS-MAT clawback jnl 2'!$A$11:$F$87,5,0)) -> 11.15 | S22: -637.7 | W22: Danegrove | X22: 10083
A23: Childs Hill | B23: 10049 | O23: =IF(ISERROR(VLOOKUP(B23,'[68]MTS clawback jnl'!$A$11:$E$76,5,0)),0,VLOOKUP(B23,'[68]MTS clawback jnl'!$A$11:$E$76,5,0)) -> 0 | P23: =IF(ISERROR(VLOOKUP(B23,'[68]MTS clawback jnl 2'!$A$11:$E$76,5,0)),0,VLOOKUP(B23,'[68]MTS clawback jnl 2'!$A$11:$E$76,5,0)) -> 0 | Q23: =IF(ISERROR(VLOOKUP(B23,'[68]LTS-MAT clawback jnl'!$A$11:$F$87,5,0)),0,VLOOKUP(B23,'[68]LTS-MAT clawback jnl'!$A$11:$F$87,5,0)) -> 107.93 | R23: =IF(ISERROR(VLOOKUP(B23,'[68]LTS-MAT clawback jnl 2'!$A$11:$F$87,5,0)),0,VLOOKUP(B23,'[68]LTS-MAT clawback jnl 2'!$A$11:$F$87,5,0)) -> 24.26 | S23: -132.19 | W23: Deansbrook Infants | X23: 10059
A24: Christchurch JMI | B24: 10050 | O24: =IF(ISERROR(VLOOKUP(B24,'[68]MTS clawback jnl'!$A$11:$E$76,5,0)),0,VLOOKUP(B24,'[68]MTS clawback jnl'!$A$11:$E$76,5,0)) -> 0 | P24: =IF(ISERROR(VLOOKUP(B24,'[68]MTS clawback jnl 2'!$A$11:$E$76,5,0)),0,VLOOKUP(B24,'[68]MTS clawback jnl 2'!$A$11:$E$76,5,0)) -> 0 | Q24: =IF(ISERROR(VLOOKUP(B24,'[68]LTS-MAT clawback jnl'!$A$11:$F$87,5,0)),0,VLOOKUP(B24,'[68]LTS-MAT clawback jnl'!$A$11:$F$87,5,0)) -> 45.05 | R24: =IF(ISERROR(VLOOKUP(B24,'[68]LTS-MAT clawback jnl 2'!$A$11:$F$87,5,0)),0,VLOOKUP(B24,'[68]LTS-MAT clawback jnl 2'!$A$11:$F$87,5,0)) -> 10.13 | S24: -55.18 | W24: Dollis Infants | X24: 10061
A25: Church Hill | B25: 10051 | O25: =IF(ISERROR(VLOOKUP(B25,'[68]MTS clawback jnl'!$A$11:$E$76,5,0)),0,VLOOKUP(B25,'[68]MTS clawback jnl'!$A$11:$E$76,5,0)) -> 585.73 | P25: =IF(ISERROR(VLOOKUP(B25,'[68]MTS clawback jnl 2'!$A$11:$E$76,5,0)),0,VLOOKUP(B25,'[68]MTS clawback jnl 2'!$A$11:$E$76,5,0)) -> 14.28 | Q25: =IF(ISERROR(VLOOKUP(B25,'[68]LTS-MAT clawback jnl'!$A$11:$F$87,5,0)),0,VLOOKUP(B25,'[68]LTS-MAT clawback jnl'!$A$11:$F$87,5,0)) -> 51.58 | R25: =IF(ISERROR(VLOOKUP(B25,'[68]LTS-MAT clawback jnl 2'!$A$11:$F$87,5,0)),0,VLOOKUP(B25,'[68]LTS-MAT clawback jnl 2'!$A$11:$F$87,5,0)) -> 11.6 | S25: -663.19 | W25: Dollis Junior | X25: 10060
A26: Colindale | B26: 10054 | D26: 1498.14 | E26: 1498.14 | F26: 2975 | H26: 2975 | N26: 4473.14 | O26: =IF(ISERROR(VLOOKUP(B26,'[68]MTS clawback jnl'!$A$11:$E$76,5,0)),0,VLOOKUP(B26,'[68]MTS clawback jnl'!$A$11:$E$76,5,0)) -> 0 | P26: =IF(ISERROR(VLOOKUP(B26,'[68]MTS clawback jnl 2'!$A$11:$E$76,5,0)),0,VLOOKUP(B26,'[68]MTS clawback jnl 2'!$A$11:$E$76,5,0)) -> 0 | Q26: =IF(ISERROR(VLOOKUP(B26,'[68]LTS-MAT clawback jnl'!$A$11:$F$87,5,0)),0,VLOOKUP(B26,'[68]LTS-MAT clawback jnl'!$A$11:$F$87,5,0)) -> 132.28 | R26: =IF(ISERROR(VLOOKUP(B26,'[68]LTS-MAT clawback jnl 2'!$A$11:$F$87,5,0)),0,VLOOKUP(B26,'[68]LTS-MAT clawback jnl 2'!$A$11:$F$87,5,0)) -> 29.73 | S26: 4311.13 | W26: Foulds | X26: 10065
A27: Coppetts Wood | B27: 10055 | O27: =IF(ISERROR(VLOOKUP(B27,'[68]MTS clawback jnl'!$A$11:$E$76,5,0)),0,VLOOKUP(B27,'[68]MTS clawback jnl'!$A$11:$E$76,5,0)) -> 878.12 | P27: =IF(ISERROR(VLOOKUP(B27,'[68]MTS clawback jnl 2'!$A$11:$E$76,5,0)),0,VLOOKUP(B27,'[68]MTS clawback jnl 2'!$A$11:$E$76,5,0)) -> 21.41 | Q27: =IF(ISERROR(VLOOKUP(B27,'[68]LTS-MAT clawback jnl'!$A$11:$F$87,5,0)),0,VLOOKUP(B27,'[68]LTS-MAT clawback jnl'!$A$11:$F$87,5,0)) -> 77.33 | R27: =IF(ISERROR(VLOOKUP(B27,'[68]LTS-MAT clawback jnl 2'!$A$11:$F$87,5,0)),0,VLOOKUP(B27,'[68]LTS-MAT clawback jnl 2'!$A$11:$F$87,5,0)) -> 17.38 | S27: -994.24
A28: Courtland | B28: 10056 | O28: =IF(ISERROR(VLOOKUP(B28,'[68]MTS clawback jnl'!$A$11:$E$76,5,0)),0,VLOOKUP(B28,'[68]MTS clawback jnl'!$A$11:$E$76,5,0)) -> 0 | P28: =IF(ISERROR(VLOOKUP(B28,'[68]MTS clawback jnl 2'!$A$11:$E$76,5,0)),0,VLOOKUP(B28,'[68]MTS clawback jnl 2'!$A$11:$E$76,5,0)) -> 0 | Q28: =IF(ISERROR(VLOOKUP(B28,'[68]LTS-MAT clawback jnl'!$A$11:$F$87,5,0)),0,VLOOKUP(B28,'[68]LTS-MAT clawback jnl'!$A$11:$F$87,5,0)) -> 39.27 | R28: =IF(ISERROR(VLOOKUP(B28,'[68]LTS-MAT clawback jnl 2'!$A$11:$F$87,5,0)),0,VLOOKUP(B28,'[68]LTS-MAT clawback jnl 2'!$A$11:$F$87,5,0)) -> 8.83 | S28: -48.1 | W28: Garden Suburb Infants | X28: 10068
A29: Cromer Road | B29: 10057 | F29: 1449.7 | H29: 1449.7 | N29: 1449.7 | O29: =IF(ISERROR(VLOOKUP(B29,'[68]MTS clawback jnl'!$A$11:$E$76,5,0)),0,VLOOKUP(B29,'[68]MTS clawback jnl'!$A$11:$E$76,5,0)) -> 893.05 | P29: =IF(ISERROR(VLOOKUP(B29,'[68]MTS clawback jnl 2'!$A$11:$E$76,5,0)),0,VLOOKUP(B29,'[68]MTS clawback jnl 2'!$A$11:$E$76,5,0)) -> 21.77 | Q29: =IF(ISERROR(VLOOKUP(B29,'[68]LTS-MAT clawback jnl'!$A$11:$F$87,5,0)),0,VLOOKUP(B29,'[68]LTS-MAT clawback jnl'!$A$11:$F$87,5,0)) -> 78.65 | R29: =IF(ISERROR(VLOOKUP(B29,'[68]LTS-MAT clawback jnl 2'!$A$11:$F$87,5,0)),0,VLOOKUP(B29,'[68]LTS-MAT clawback jnl 2'!$A$11:$F$87,5,0)) -> 17.68 | S29: 438.55 | W29: Hollickwood | X29: 10071
A30: Danegrove | B30: 10083 | D30: 602.91 | E30: 602.91 | N30: 602.91 | O30: =IF(ISERROR(VLOOKUP(B30,'[68]MTS clawback jnl'!$A$11:$E$76,5,0)),0,VLOOKUP(B30,'[68]MTS clawback jnl'!$A$11:$E$76,5,0)) -> 1739.19 | P30: =IF(ISERROR(VLOOKUP(B30,'[68]MTS clawback jnl 2'!$A$11:$E$76,5,0)),0,VLOOKUP(B30,'[68]MTS clawback jnl 2'!$A$11:$E$76,5,0)) -> 42.4 | Q30: =IF(ISERROR(VLOOKUP(B30,'[68]LTS-MAT clawback jnl'!$A$11:$F$87,5,0)),0,VLOOKUP(B30,'[68]LTS-MAT clawback jnl'!$A$11:$F$87,5,0)) -> 153.17 | R30: =IF(ISERROR(VLOOKUP(B30,'[68]LTS-MAT clawback jnl 2'!$A$11:$F$87,5,0)),0,VLOOKUP(B30,'[68]LTS-MAT clawback jnl 2'!$A$11:$F$87,5,0)) -> 34.42 | S30: -1366.27
A31: Deansbrook Infants | B31: 10059 | D31: 781.2 | E31: 781.2 | I31: 1225 | J31: 1116 | K31: 2341 | N31: 3122.2 | O31: =IF(ISERROR(VLOOKUP(B31,'[68]MTS clawback jnl'!$A$11:$E$76,5,0)),0,VLOOKUP(B31,'[68]MTS clawback jnl'!$A$11:$E$76,5,0)) -> 840.92 | P31: =IF(ISERROR(VLOOKUP(B31,'[68]MTS clawback jnl 2'!$A$11:$E$76,5,0)),0,VLOOKUP(B31,'[68]MTS clawback jnl 2'!$A$11:$E$76,5,0)) -> 20.5 | Q31: =IF(ISERROR(VLOOKUP(B31,'[68]LTS-MAT clawback jnl'!$A$11:$F$87,5,0)),0,VLOOKUP(B31,'[68]LTS-MAT clawback jnl'!$A$11:$F$87,5,0)) -> 74.06 | R31: =IF(ISERROR(VLOOKUP(B31,'[68]LTS-MAT clawback jnl 2'!$A$11:$F$87,5,0)),0,VLOOKUP(B31,'[68]LTS-MAT clawback jnl 2'!$A$11:$F$87,5,0)) -> 16.65 | S31: 2170.07 | W31: Holy Trinity | X31: 10073
A32: Dollis Infants | B32: 10061 | C32: 1400 | E32: 1400 | I32: 3500 | J32: 592.41 | K32: 4092.41 | N32: 5492.41 | O32: =IF(ISERROR(VLOOKUP(B32,'[68]MTS clawback jnl'!$A$11:$E$76,5,0)),0,VLOOKUP(B32,'[68]MTS clawback jnl'!$A$11:$E$76,5,0)) -> 852.06 | P32: =IF(ISERROR(VLOOKUP(B32,'[68]MTS clawback jnl 2'!$A$11:$E$76,5,0)),0,VLOOKUP(B32,'[68]MTS clawback jnl 2'!$A$11:$E$76,5,0)) -> 20.77 | Q32: =IF(ISERROR(VLOOKUP(B32,'[68]LTS-MAT clawback jnl'!$A$11:$F$87,5,0)),0,VLOOKUP(B32,'[68]LTS-MAT clawback jnl'!$A$11:$F$87,5,0)) -> 75.04 | R32: =IF(ISERROR(VLOOKUP(B32,'[68]LTS-MAT clawback jnl 2'!$A$11:$F$87,5,0)),0,VLOOKUP(B32,'[68]LTS-MAT clawback jnl 2'!$A$11:$F$87,5,0)) -> 16.87 | S32: 4527.67
A33: Dollis Junior | B33: 10060 | D33: 4756 | E33: 4756 | J33: 1302 | K33: 1302 | N33: 6058 | O33: =IF(ISERROR(VLOOKUP(B33,'[68]MTS clawback jnl'!$A$11:$E$76,5,0)),0,VLOOKUP(B33,'[68]MTS clawback jnl'!$A$11:$E$76,5,0)) -> 1004.89 | P33: =IF(ISERROR(VLOOKUP(B33,'[68]MTS clawback jnl 2'!$A$11:$E$76,5,0)),0,VLOOKUP(B33,'[68]MTS clawback jnl 2'!$A$11:$E$76,5,0)) -> 24.5 | Q33: =IF(ISERROR(VLOOKUP(B33,'[68]LTS-MAT clawback jnl'!$A$11:$F$87,5,0)),0,VLOOKUP(B33,'[68]LTS-MAT clawback jnl'!$A$11:$F$87,5,0)) -> 88.5 | R33: =IF(ISERROR(VLOOKUP(B33,'[68]LTS-MAT clawback jnl 2'!$A$11:$F$87,5,0)),0,VLOOKUP(B33,'[68]LTS-MAT clawback jnl 2'!$A$11:$F$87,5,0)) -> 19.89 | S33: 4920.22
A34: Edgware Primary | B34: 10063 | O34: =IF(ISERROR(VLOOKUP(B34,'[68]MTS clawback jnl'!$A$11:$E$76,5,0)),0,VLOOKUP(B34,'[68]MTS clawback jnl'!$A$11:$E$76,5,0)) -> 0 | P34: =IF(ISERROR(VLOOKUP(B34,'[68]MTS clawback jnl 2'!$A$11:$E$76,5,0)),0,VLOOKUP(B34,'[68]MTS clawback jnl 2'!$A$11:$E$76,5,0)) -> 0 | Q34: =IF(ISERROR(VLOOKUP(B34,'[68]LTS-MAT clawback jnl'!$A$11:$F$87,5,0)),0,VLOOKUP(B34,'[68]LTS-MAT clawback jnl'!$A$11:$F$87,5,0)) -> 0 | R34: =IF(ISERROR(VLOOKUP(B34,'[68]LTS-MAT clawback jnl 2'!$A$11:$F$87,5,0)),0,VLOOKUP(B34,'[68]LTS-MAT clawback jnl 2'!$A$11:$F$87,5,0)) -> 0 | S34: 0 | W34: Martin Primary | X34: 11093
A35: Fairway | B35: 10064 | O35: =IF(ISERROR(VLOOKUP(B35,'[68]MTS clawback jnl'!$A$11:$E$76,5,0)),0,VLOOKUP(B35,'[68]MTS clawback jnl'!$A$11:$E$76,5,0)) -> 0 | P35: =IF(ISERROR(VLOOKUP(B35,'[68]MTS clawback jnl 2'!$A$11:$E$76,5,0)),0,VLOOKUP(B35,'[68]MTS clawback jnl 2'!$A$11:$E$76,5,0)) -> 0 | Q35: =IF(ISERROR(VLOOKUP(B35,'[68]LTS-MAT clawback jnl'!$A$11:$F$87,5,0)),0,VLOOKUP(B35,'[68]LTS-MAT clawback jnl'!$A$11:$F$87,5,0)) -> 0 | R35: =IF(ISERROR(VLOOKUP(B35,'[68]LTS-MAT clawback jnl 2'!$A$11:$F$87,5,0)),0,VLOOKUP(B35,'[68]LTS-MAT clawback jnl 2'!$A$11:$F$87,5,0)) -> 0 | S35: 0 | W35: Matilda Marks Kennedy | X35: 10125
A36: Finchley Catholic | B36: 10145 | O36: =IF(ISERROR(VLOOKUP(B36,'[68]MTS clawback jnl'!$A$11:$E$76,5,0)),0,VLOOKUP(B36,'[68]MTS clawback jnl'!$A$11:$E$76,5,0)) -> 0 | P36: =IF(ISERROR(VLOOKUP(B36,'[68]MTS clawback jnl 2'!$A$11:$E$76,5,0)),0,VLOOKUP(B36,'[68]MTS clawback jnl 2'!$A$11:$E$76,5,0)) -> 0 | Q36: =IF(ISERROR(VLOOKUP(B36,'[68]LTS-MAT clawback jnl'!$A$11:$F$87,5,0)),0,VLOOKUP(B36,'[68]LTS-MAT clawback jnl'!$A$11:$F$87,5,0)) -> 0 | R36: =IF(ISERROR(VLOOKUP(B36,'[68]LTS-MAT clawback jnl 2'!$A$11:$F$87,5,0)),0,VLOOKUP(B36,'[68]LTS-MAT clawback jnl 2'!$A$11:$F$87,5,0)) -> 0 | S36: 0
A37: Foulds | B37: 10065 | F37: 4900 | H37: 4900 | N37: 4900 | O37: =IF(ISERROR(VLOOKUP(B37,'[68]MTS clawback jnl'!$A$11:$E$76,5,0)),0,VLOOKUP(B37,'[68]MTS clawback jnl'!$A$11:$E$76,5,0)) -> 650.89 | P37: =IF(ISERROR(VLOOKUP(B37,'[68]MTS clawback jnl 2'!$A$11:$E$76,5,0)),0,VLOOKUP(B37,'[68]MTS clawback jnl 2'!$A$11:$E$76,5,0)) -> 15.87 | Q37: =IF(ISERROR(VLOOKUP(B37,'[68]LTS-MAT clawback jnl'!$A$11:$F$87,5,0)),0,VLOOKUP(B37,'[68]LTS-MAT clawback jnl'!$A$11:$F$87,5,0)) -> 57.32 | R37: =IF(ISERROR(VLOOKUP(B37,'[68]LTS-MAT clawback jnl 2'!$A$11:$F$87,5,0)),0,VLOOKUP(B37,'[68]LTS-MAT clawback jnl 2'!$A$11:$F$87,5,0)) -> 12.89 | S37: 4163.03 | W37: Menorah Primary | X37: 10114
A38: Friern Barnet | B38: 10139 | O38: =IF(ISERROR(VLOOKUP(B38,'[68]MTS clawback jnl'!$A$11:$E$76,5,0)),0,VLOOKUP(B38,'[68]MTS clawback jnl'!$A$11:$E$76,5,0)) -> 0 | P38: =IF(ISERROR(VLOOKUP(B38,'[68]MTS clawback jnl 2'!$A$11:$E$76,5,0)),0,VLOOKUP(B38,'[68]MTS clawback jnl 2'!$A$11:$E$76,5,0)) -> 0 | Q38: =IF(ISERROR(VLOOKUP(B38,'[68]LTS-MAT clawback jnl'!$A$11:$F$87,5,0)),0,VLOOKUP(B38,'[68]LTS-MAT clawback jnl'!$A$11:$F$87,5,0)) -> 0 | R38: =IF(ISERROR(VLOOKUP(B38,'[68]LTS-MAT clawback jnl 2'!$A$11:$F$87,5,0)),0,VLOOKUP(B38,'[68]LTS-MAT clawback jnl 2'!$A$11:$F$87,5,0)) -> 0 | S38: 0
A39: Frith Manor | B39: 10066 | O39: =IF(ISERROR(VLOOKUP(B39,'[68]MTS clawback jnl'!$A$11:$E$76,5,0)),0,VLOOKUP(B39,'[68]MTS clawback jnl'!$A$11:$E$76,5,0)) -> 0 | P39: =IF(ISERROR(VLOOKUP(B39,'[68]MTS clawback jnl 2'!$A$11:$E$76,5,0)),0,VLOOKUP(B39,'[68]MTS clawback jnl 2'!$A$11:$E$76,5,0)) -> 0 | Q39: =IF(ISERROR(VLOOKUP(B39,'[68]LTS-MAT clawback jnl'!$A$11:$F$87,5,0)),0,VLOOKUP(B39,'[68]LTS-MAT clawback jnl'!$A$11:$F$87,5,0)) -> 0 | R39: =IF(ISERROR(VLOOKUP(B39,'[68]LTS-MAT clawback jnl 2'!$A$11:$F$87,5,0)),0,VLOOKUP(B39,'[68]LTS-MAT clawback jnl 2'!$A$11:$F$87,5,0)) -> 0 | S39: 0 | W39: Menorah Foundation | X39: 10126
A40: Garden Suburb Infants | B40: 10068 | D40: 2564.01 | E40: 2564.01 | F40: 3220 | H40: 3220 | N40: 5784.01 | O40: =IF(ISERROR(VLOOKUP(B40,'[68]MTS clawback jnl'!$A$11:$E$76,5,0)),0,VLOOKUP(B40,'[68]MTS clawback jnl'!$A$11:$E$76,5,0)) -> 666.77 | P40: =IF(ISERROR(VLOOKUP(B40,'[68]MTS clawback jnl 2'!$A$11:$E$76,5,0)),0,VLOOKUP(B40,'[68]MTS clawback jnl 2'!$A$11:$E$76,5,0)) -> 16.26 | Q40: =IF(ISERROR(VLOOKUP(B40,'[68]LTS-MAT clawback jnl'!$A$11:$F$87,5,0)),0,VLOOKUP(B40,'[68]LTS-MAT clawback jnl'!$A$11:$F$87,5,0)) -> 58.72 | R40: =IF(ISERROR(VLOOKUP(B40,'[68]LTS-MAT clawback jnl 2'!$A$11:$F$87,5,0)),0,VLOOKUP(B40,'[68]LTS-MAT clawback jnl 2'!$A$11:$F$87,5,0)) -> 13.2 | S40: 5029.06 | W40: Monken Hadley | X40: 10078
A41: Garden Suburb Junior | B41: 10067 | O41: =IF(ISERROR(VLOOKUP(B41,'[68]MTS clawback jnl'!$A$11:$E$76,5,0)),0,VLOOKUP(B41,'[68]MTS clawback jnl'!$A$11:$E$76,5,0)) -> 754.2 | P41: =IF(ISERROR(VLOOKUP(B41,'[68]MTS clawback jnl 2'!$A$11:$E$76,5,0)),0,VLOOKUP(B41,'[68]MTS clawback jnl 2'!$A$11:$E$76,5,0)) -> 18.39 | Q41: =IF(ISERROR(VLOOKUP(B41,'[68]LTS-MAT clawback jnl'!$A$11:$F$87,5,0)),0,VLOOKUP(B41,'[68]LTS-MAT clawback jnl'!$A$11:$F$87,5,0)) -> 66.42 | R41: =IF(ISERROR(VLOOKUP(B41,'[68]LTS-MAT clawback jnl 2'!$A$11:$F$87,5,0)),0,VLOOKUP(B41,'[68]LTS-MAT clawback jnl 2'!$A$11:$F$87,5,0)) -> 14.93 | S41: -853.94
A42: Goldbeaters | B42: 10069 | O42: =IF(ISERROR(VLOOKUP(B42,'[68]MTS clawback jnl'!$A$11:$E$76,5,0)),0,VLOOKUP(B42,'[68]MTS clawback jnl'!$A$11:$E$76,5,0)) -> 0 | P42: =IF(ISERROR(VLOOKUP(B42,'[68]MTS clawback jnl 2'!$A$11:$E$76,5,0)),0,VLOOKUP(B42,'[68]MTS clawback jnl 2'!$A$11:$E$76,5,0)) -> 0 | Q42: =IF(ISERROR(VLOOKUP(B42,'[68]LTS-MAT clawback jnl'!$A$11:$F$87,5,0)),0,VLOOKUP(B42,'[68]LTS-MAT clawback jnl'!$A$11:$F$87,5,0)) -> 0 | R42: =IF(ISERROR(VLOOKUP(B42,'[68]LTS-MAT clawback jnl 2'!$A$11:$F$87,5,0)),0,VLOOKUP(B42,'[68]LTS-MAT clawback jnl 2'!$A$11:$F$87,5,0)) -> 0 | S42: 0 | W42: Moss Hall Infants | X42: 10081
A43: Hasmonean Primary | B43: 10121 | O43: =IF(ISERROR(VLOOKUP(B43,'[68]MTS clawback jnl'!$A$11:$E$76,5,0)),0,VLOOKUP(B43,'[68]MTS clawback jnl'!$A$11:$E$76,5,0)) -> 0 | P43: =IF(ISERROR(VLOOKUP(B43,'[68]MTS clawback jnl 2'!$A$11:$E$76,5,0)),0,VLOOKUP(B43,'[68]MTS clawback jnl 2'!$A$11:$E$76,5,0)) -> 0 | Q43: =IF(ISERROR(VLOOKUP(B43,'[68]LTS-MAT clawback jnl'!$A$11:$F$87,5,0)),0,VLOOKUP(B43,'[68]LTS-MAT clawback jnl'!$A$11:$F$87,5,0)) -> 51.73 | R43: =IF(ISERROR(VLOOKUP(B43,'[68]LTS-MAT clawback jnl 2'!$A$11:$F$87,5,0)),0,VLOOKUP(B43,'[68]LTS-MAT clawback jnl 2'!$A$11:$F$87,5,0)) -> 11.63 | S43: -63.36 | W43: Moss Hall Junior | X43: 10080
A44: Hampden Way Nursery | B44: 10131 | O44: =IF(ISERROR(VLOOKUP(B44,'[68]MTS clawback jnl'!$A$11:$E$76,5,0)),0,VLOOKUP(B44,'[68]MTS clawback jnl'!$A$11:$E$76,5,0)) -> 387.17 | P44: =IF(ISERROR(VLOOKUP(B44,'[68]MTS clawback jnl 2'!$A$11:$E$76,5,0)),0,VLOOKUP(B44,'[68]MTS clawback jnl 2'!$A$11:$E$76,5,0)) -> 9.44 | Q44: =IF(ISERROR(VLOOKUP(B44,'[68]LTS-MAT clawback jnl'!$A$11:$F$87,5,0)),0,VLOOKUP(B44,'[68]LTS-MAT clawback jnl'!$A$11:$F$87,5,0)) -> 34.1 | R44: =IF(ISERROR(VLOOKUP(B44,'[68]LTS-MAT clawback jnl 2'!$A$11:$F$87,5,0)),0,VLOOKUP(B44,'[68]LTS-MAT clawback jnl 2'!$A$11:$F$87,5,0)) -> 7.66 | S44: -438.37
A45: Hollickwood | B45: 10071 | F45: 3325 | H45: 3325 | N45: 3325 | O45: =IF(ISERROR(VLOOKUP(B45,'[68]MTS clawback jnl'!$A$11:$E$76,5,0)),0,VLOOKUP(B45,'[68]MTS clawback jnl'!$A$11:$E$76,5,0)) -> 631.23 | P45: =IF(ISERROR(VLOOKUP(B45,'[68]MTS clawback jnl 2'!$A$11:$E$76,5,0)),0,VLOOKUP(B45,'[68]MTS clawback jnl 2'!$A$11:$E$76,5,0)) -> 15.39 | Q45: =IF(ISERROR(VLOOKUP(B45,'[68]LTS-MAT clawback jnl'!$A$11:$F$87,5,0)),0,VLOOKUP(B45,'[68]LTS-MAT clawback jnl'!$A$11:$F$87,5,0)) -> 55.59 | R45: =IF(ISERROR(VLOOKUP(B45,'[68]LTS-MAT clawback jnl 2'!$A$11:$F$87,5,0)),0,VLOOKUP(B45,'[68]LTS-MAT clawback jnl 2'!$A$11:$F$87,5,0)) -> 12.5 | S45: 2610.29 | W45: Northside | X45: 10082
A46: Holly Park | B46: 10072 | O46: =IF(ISERROR(VLOOKUP(B46,'[68]MTS clawback jnl'!$A$11:$E$76,5,0)),0,VLOOKUP(B46,'[68]MTS clawback jnl'!$A$11:$E$76,5,0)) -> 0 | P46: =IF(ISERROR(VLOOKUP(B46,'[68]MTS clawback jnl 2'!$A$11:$E$76,5,0)),0,VLOOKUP(B46,'[68]MTS clawback jnl 2'!$A$11:$E$76,5,0)) -> 0 | Q46: =IF(ISERROR(VLOOKUP(B46,'[68]LTS-MAT clawback jnl'!$A$11:$F$87,5,0)),0,VLOOKUP(B46,'[68]LTS-MAT clawback jnl'!$A$11:$F$87,5,0)) -> 0 | R46: =IF(ISERROR(VLOOKUP(B46,'[68]LTS-MAT clawback jnl 2'!$A$11:$F$87,5,0)),0,VLOOKUP(B46,'[68]LTS-MAT clawback jnl 2'!$A$11:$F$87,5,0)) -> 0 | S46: 0 | W46: Pardes House | X46: 10129
A47: Holy Trinity | B47: 10073 | D47: 920 | E47: 920 | F47: 5075 | H47: 5075 | J47: 3625.6 | K47: 3625.6 | N47: 9620.6 | O47: =IF(ISERROR(VLOOKUP(B47,'[68]MTS clawback jnl'!$A$11:$E$76,5,0)),0,VLOOKUP(B47,'[68]MTS clawback jnl'!$A$11:$E$76,5,0)) -> 623.64 | P47: =IF(ISERROR(VLOOKUP(B47,'[68]MTS clawback jnl 2'!$A$11:$E$76,5,0)),0,VLOOKUP(B47,'[68]MTS clawback jnl 2'!$A$11:$E$76,5,0)) -> 15.2 | Q47: =IF(ISERROR(VLOOKUP(B47,'[68]LTS-MAT clawback jnl'!$A$11:$F$87,5,0)),0,VLOOKUP(B47,'[68]LTS-MAT clawback jnl'!$A$11:$F$87,5,0)) -> 54.92 | R47: =IF(ISERROR(VLOOKUP(B47,'[68]LTS-MAT clawback jnl 2'!$A$11:$F$87,5,0)),0,VLOOKUP(B47,'[68]LTS-MAT clawback jnl 2'!$A$11:$F$87,5,0)) -> 12.35 | S47: 8914.49 | W47: Queenswell Infants | X47: 10119
A48: JCoSS | B48: 11174 | C48: 3710 | D48: 3022.5 | E48: 6732.5 | N48: 6732.5 | O48: =IF(ISERROR(VLOOKUP(B48,'[68]MTS clawback jnl'!$A$11:$E$76,5,0)),0,VLOOKUP(B48,'[68]MTS clawback jnl'!$A$11:$E$76,5,0)) -> 0 | P48: =IF(ISERROR(VLOOKUP(B48,'[68]MTS clawback jnl 2'!$A$11:$E$76,5,0)),0,VLOOKUP(B48,'[68]MTS clawback jnl 2'!$A$11:$E$76,5,0)) -> 0 | Q48: =IF(ISERROR(VLOOKUP(B48,'[68]LTS-MAT clawback jnl'!$A$11:$F$87,5,0)),0,VLOOKUP(B48,'[68]LTS-MAT clawback jnl'!$A$11:$F$87,5,0)) -> 385.4 | R48: =IF(ISERROR(VLOOKUP(B48,'[68]LTS-MAT clawback jnl 2'!$A$11:$F$87,5,0)),0,VLOOKUP(B48,'[68]LTS-MAT clawback jnl 2'!$A$11:$F$87,5,0)) -> 86.61 | S48: 6260.49 | W48: St Joseph's Primary | X48: 10107
A49: Livingstone | B49: 10074 | O49: =IF(ISERROR(VLOOKUP(B49,'[68]MTS clawback jnl'!$A$11:$E$76,5,0)),0,VLOOKUP(B49,'[68]MTS clawback jnl'!$A$11:$E$76,5,0)) -> 0 | P49: =IF(ISERROR(VLOOKUP(B49,'[68]MTS clawback jnl 2'!$A$11:$E$76,5,0)),0,VLOOKUP(B49,'[68]MTS clawback jnl 2'!$A$11:$E$76,5,0)) -> 0 | Q49: =IF(ISERROR(VLOOKUP(B49,'[68]LTS-MAT clawback jnl'!$A$11:$F$87,5,0)),0,VLOOKUP(B49,'[68]LTS-MAT clawback jnl'!$A$11:$F$87,5,0)) -> 0 | R49: =IF(ISERROR(VLOOKUP(B49,'[68]LTS-MAT clawback jnl 2'!$A$11:$F$87,5,0)),0,VLOOKUP(B49,'[68]LTS-MAT clawback jnl 2'!$A$11:$F$87,5,0)) -> 0 | S49: 0
A50: Manorside | B50: 10075 | O50: =IF(ISERROR(VLOOKUP(B50,'[68]MTS clawback jnl'!$A$11:$E$76,5,0)),0,VLOOKUP(B50,'[68]MTS clawback jnl'!$A$11:$E$76,5,0)) -> 905.61 | P50: =IF(ISERROR(VLOOKUP(B50,'[68]MTS clawback jnl 2'!$A$11:$E$76,5,0)),0,VLOOKUP(B50,'[68]MTS clawback jnl 2'!$A$11:$E$76,5,0)) -> 22.08 | Q50: =IF(ISERROR(VLOOKUP(B50,'[68]LTS-MAT clawback jnl'!$A$11:$F$87,5,0)),0,VLOOKUP(B50,'[68]LTS-MAT clawback jnl'!$A$11:$F$87,5,0)) -> 79.75 | R50: =IF(ISERROR(VLOOKUP(B50,'[68]LTS-MAT clawback jnl 2'!$A$11:$F$87,5,0)),0,VLOOKUP(B50,'[68]LTS-MAT clawback jnl 2'!$A$11:$F$87,5,0)) -> 17.93 | S50: -1025.37 | W50: St Mary's EB | X50: 10093
A51: Mapledown | B51: 10159 | D51: 4797.87 | E51: 4797.87 | I51: 875 | J51: 115.32 | K51: 990.32 | N51: 5788.19 | O51: =IF(ISERROR(VLOOKUP(B51,'[68]MTS clawback jnl'!$A$11:$E$76,5,0)),0,VLOOKUP(B51,'[68]MTS clawback jnl'!$A$11:$E$76,5,0)) -> 1324.29 | P51: =IF(ISERROR(VLOOKUP(B51,'[68]MTS clawback jnl 2'!$A$11:$E$76,5,0)),0,VLOOKUP(B51,'[68]MTS clawback jnl 2'!$A$11:$E$76,5,0)) -> 32.29 | Q51: =IF(ISERROR(VLOOKUP(B51,'[68]LTS-MAT clawback jnl'!$A$11:$F$87,5,0)),0,VLOOKUP(B51,'[68]LTS-MAT clawback jnl'!$A$11:$F$87,5,0)) -> 116.63 | R51: =IF(ISERROR(VLOOKUP(B51,'[68]LTS-MAT clawback jnl 2'!$A$11:$F$87,5,0)),0,VLOOKUP(B51,'[68]LTS-MAT clawback jnl 2'!$A$11:$F$87,5,0)) -> 26.22 | S51: 4288.76
A52: Martin Primary | B52: 11093 | C52: 10150 | E52: 10150 | G52: 4466.69 | H52: 4466.69 | N52: 14616.69 | O52: =IF(ISERROR(VLOOKUP(B52,'[68]MTS clawback jnl'!$A$11:$E$76,5,0)),0,VLOOKUP(B52,'[68]MTS clawback jnl'!$A$11:$E$76,5,0)) -> 1659.57 | P52: =IF(ISERROR(VLOOKUP(B52,'[68]MTS clawback jnl 2'!$A$11:$E$76,5,0)),0,VLOOKUP(B52,'[68]MTS clawback jnl 2'!$A$11:$E$76,5,0)) -> 40.45 | Q52: =IF(ISERROR(VLOOKUP(B52,'[68]LTS-MAT clawback jnl'!$A$11:$F$87,5,0)),0,VLOOKUP(B52,'[68]LTS-MAT clawback jnl'!$A$11:$F$87,5,0)) -> 146.15 | R52: =IF(ISERROR(VLOOKUP(B52,'[68]LTS-MAT clawback jnl 2'!$A$11:$F$87,5,0)),0,VLOOKUP(B52,'[68]LTS-MAT clawback jnl 2'!$A$11:$F$87,5,0)) -> 32.84 | S52: 12737.68 | W52: St Paul's N11 | X52: 10094
A53: Matilda Marks Kennedy | B53: 10125 | F53: 1015 | H53: 1015 | N53: 1015 | O53: =IF(ISERROR(VLOOKUP(B53,'[68]MTS clawback jnl'!$A$11:$E$76,5,0)),0,VLOOKUP(B53,'[68]MTS clawback jnl'!$A$11:$E$76,5,0)) -> 0 | P53: =IF(ISERROR(VLOOKUP(B53,'[68]MTS clawback jnl 2'!$A$11:$E$76,5,0)),0,VLOOKUP(B53,'[68]MTS clawback jnl 2'!$A$11:$E$76,5,0)) -> 0 | Q53: =IF(ISERROR(VLOOKUP(B53,'[68]LTS-MAT clawback jnl'!$A$11:$F$87,5,0)),0,VLOOKUP(B53,'[68]LTS-MAT clawback jnl'!$A$11:$F$87,5,0)) -> 57.22 | R53: =IF(ISERROR(VLOOKUP(B53,'[68]LTS-MAT clawback jnl 2'!$A$11:$F$87,5,0)),0,VLOOKUP(B53,'[68]LTS-MAT clawback jnl 2'!$A$11:$F$87,5,0)) -> 12.86 | S53: 944.92
A54: Menorah Foundation | B54: 10126 | C54: 6650 | D54: 122.76 | E54: 6772.76 | F54: 9240 | H54: 9240 | N54: 16012.76 | O54: =IF(ISERROR(VLOOKUP(B54,'[68]MTS clawback jnl'!$A$11:$E$76,5,0)),0,VLOOKUP(B54,'[68]MTS clawback jnl'!$A$11:$E$76,5,0)) -> 0 | P54: =IF(ISERROR(VLOOKUP(B54,'[68]MTS clawback jnl 2'!$A$11:$E$76,5,0)),0,VLOOKUP(B54,'[68]MTS clawback jnl 2'!$A$11:$E$76,5,0)) -> 0 | Q54: =IF(ISERROR(VLOOKUP(B54,'[68]LTS-MAT clawback jnl'!$A$11:$F$87,5,0)),0,VLOOKUP(B54,'[68]LTS-MAT clawback jnl'!$A$11:$F$87,5,0)) -> 76.73 | R54: =IF(ISERROR(VLOOKUP(B54,'[68]LTS-MAT clawback jnl 2'!$A$11:$F$87,5,0)),0,VLOOKUP(B54,'[68]LTS-MAT clawback jnl 2'!$A$11:$F$87,5,0)) -> 17.25 | S54: 15918.78 | W54: St Theresas | X54: 10108
A55: Menorah High | B55: 11513 | F55: 882 | H55: 882 | N55: 882 | O55: =IF(ISERROR(VLOOKUP(B55,'[68]MTS clawback jnl'!$A$11:$E$76,5,0)),0,VLOOKUP(B55,'[68]MTS clawback jnl'!$A$11:$E$76,5,0)) -> 0 | P55: =IF(ISERROR(VLOOKUP(B55,'[68]MTS clawback jnl 2'!$A$11:$E$76,5,0)),0,VLOOKUP(B55,'[68]MTS clawback jnl 2'!$A$11:$E$76,5,0)) -> 0 | Q55: =IF(ISERROR(VLOOKUP(B55,'[68]LTS-MAT clawback jnl'!$A$11:$F$87,5,0)),0,VLOOKUP(B55,'[68]LTS-MAT clawback jnl'!$A$11:$F$87,5,0)) -> 59.43 | R55: =IF(ISERROR(VLOOKUP(B55,'[68]LTS-MAT clawback jnl 2'!$A$11:$F$87,5,0)),0,VLOOKUP(B55,'[68]LTS-MAT clawback jnl 2'!$A$11:$F$87,5,0)) -> 13.36 | S55: 809.21
A56: Menorah Primary | B56: 10114 | F56: 4725 | H56: 4725 | N56: 4725 | O56: =IF(ISERROR(VLOOKUP(B56,'[68]MTS clawback jnl'!$A$11:$E$76,5,0)),0,VLOOKUP(B56,'[68]MTS clawback jnl'!$A$11:$E$76,5,0)) -> 0 | P56: =IF(ISERROR(VLOOKUP(B56,'[68]MTS clawback jnl 2'!$A$11:$E$76,5,0)),0,VLOOKUP(B56,'[68]MTS clawback jnl 2'!$A$11:$E$76,5,0)) -> 0 | Q56: =IF(ISERROR(VLOOKUP(B56,'[68]LTS-MAT clawback jnl'!$A$11:$F$87,5,0)),0,VLOOKUP(B56,'[68]LTS-MAT clawback jnl'!$A$11:$F$87,5,0)) -> 70.39 | R56: =IF(ISERROR(VLOOKUP(B56,'[68]LTS-MAT clawback jnl 2'!$A$11:$F$87,5,0)),0,VLOOKUP(B56,'[68]LTS-MAT clawback jnl 2'!$A$11:$F$87,5,0)) -> 15.82 | S56: 4638.79 | W56: Sunnyfields | X56: 10097
A57: Monken Hadley | B57: 10078 | D57: 686.72 | E57: 686.72 | N57: 686.72 | O57: =IF(ISERROR(VLOOKUP(B57,'[68]MTS clawback jnl'!$A$11:$E$76,5,0)),0,VLOOKUP(B57,'[68]MTS clawback jnl'!$A$11:$E$76,5,0)) -> 306.13 | P57: =IF(ISERROR(VLOOKUP(B57,'[68]MTS clawback jnl 2'!$A$11:$E$76,5,0)),0,VLOOKUP(B57,'[68]MTS clawback jnl 2'!$A$11:$E$76,5,0)) -> 7.46 | Q57: =IF(ISERROR(VLOOKUP(B57,'[68]LTS-MAT clawback jnl'!$A$11:$F$87,5,0)),0,VLOOKUP(B57,'[68]LTS-MAT clawback jnl'!$A$11:$F$87,5,0)) -> 26.96 | R57: =IF(ISERROR(VLOOKUP(B57,'[68]LTS-MAT clawback jnl 2'!$A$11:$F$87,5,0)),0,VLOOKUP(B57,'[68]LTS-MAT clawback jnl 2'!$A$11:$F$87,5,0)) -> 6.06 | S57: 340.11 | W57: Trent | X57: 10100
A58: Monkfrith | B58: 10079 | O58: =IF(ISERROR(VLOOKUP(B58,'[68]MTS clawback jnl'!$A$11:$E$76,5,0)),0,VLOOKUP(B58,'[68]MTS clawback jnl'!$A$11:$E$76,5,0)) -> 0 | P58: =IF(ISERROR(VLOOKUP(B58,'[68]MTS clawback jnl 2'!$A$11:$E$76,5,0)),0,VLOOKUP(B58,'[68]MTS clawback jnl 2'!$A$11:$E$76,5,0)) -> 0 | Q58: =IF(ISERROR(VLOOKUP(B58,'[68]LTS-MAT clawback jnl'!$A$11:$F$87,5,0)),0,VLOOKUP(B58,'[68]LTS-MAT clawback jnl'!$A$11:$F$87,5,0)) -> 0 | R58: =IF(ISERROR(VLOOKUP(B58,'[68]LTS-MAT clawback jnl 2'!$A$11:$F$87,5,0)),0,VLOOKUP(B58,'[68]LTS-MAT clawback jnl 2'!$A$11:$F$87,5,0)) -> 0 | S58: 0
A59: Moss Hall Infants | B59: 10081 | D59: 1446.48 | E59: 1446.48 | F59: 6790 | H59: 6790 | I59: 1575 | J59: 553.86 | K59: 2128.86 | N59: 10365.34 | O59: =IF(ISERROR(VLOOKUP(B59,'[68]MTS clawback jnl'!$A$11:$E$76,5,0)),0,VLOOKUP(B59,'[68]MTS clawback jnl'!$A$11:$E$76,5,0)) -> 949.44 | P59: =IF(ISERROR(VLOOKUP(B59,'[68]MTS clawback jnl 2'!$A$11:$E$76,5,0)),0,VLOOKUP(B59,'[68]MTS clawback jnl 2'!$A$11:$E$76,5,0)) -> 23.15 | Q59: =IF(ISERROR(VLOOKUP(B59,'[68]LTS-MAT clawback jnl'!$A$11:$F$87,5,0)),0,VLOOKUP(B59,'[68]LTS-MAT clawback jnl'!$A$11:$F$87,5,0)) -> 83.61 | R59: =IF(ISERROR(VLOOKUP(B59,'[68]LTS-MAT clawback jnl 2'!$A$11:$F$87,5,0)),0,VLOOKUP(B59,'[68]LTS-MAT clawback jnl 2'!$A$11:$F$87,5,0)) -> 18.8 | S59: 9290.34 | W59: Underhill | X59: 10103
A60: Moss Hall Junior | B60: 10080 | C60: 8925 | E60: 8925 | F60: 10150 | H60: 10150 | I60: 1225 | K60: 1225 | N60: 20300 | O60: =IF(ISERROR(VLOOKUP(B60,'[68]MTS clawback jnl'!$A$11:$E$76,5,0)),0,VLOOKUP(B60,'[68]MTS clawback jnl'!$A$11:$E$76,5,0)) -> 855.14 | P60: =IF(ISERROR(VLOOKUP(B60,'[68]MTS clawback jnl 2'!$A$11:$E$76,5,0)),0,VLOOKUP(B60,'[68]MTS clawback jnl 2'!$A$11:$E$76,5,0)) -> 20.85 | Q60: =IF(ISERROR(VLOOKUP(B60,'[68]LTS-MAT clawback jnl'!$A$11:$F$87,5,0)),0,VLOOKUP(B60,'[68]LTS-MAT clawback jnl'!$A$11:$F$87,5,0)) -> 75.31 | R60: =IF(ISERROR(VLOOKUP(B60,'[68]LTS-MAT clawback jnl 2'!$A$11:$F$87,5,0)),0,VLOOKUP(B60,'[68]LTS-MAT clawback jnl 2'!$A$11:$F$87,5,0)) -> 16.93 | S60: 19331.77
A61: Moss Hall Nursery | B61: 10132 | O61: =IF(ISERROR(VLOOKUP(B61,'[68]MTS clawback jnl'!$A$11:$E$76,5,0)),0,VLOOKUP(B61,'[68]MTS clawback jnl'!$A$11:$E$76,5,0)) -> 0 | P61: =IF(ISERROR(VLOOKUP(B61,'[68]MTS clawback jnl 2'!$A$11:$E$76,5,0)),0,VLOOKUP(B61,'[68]MTS clawback jnl 2'!$A$11:$E$76,5,0)) -> 0 | Q61: =IF(ISERROR(VLOOKUP(B61,'[68]LTS-MAT clawback jnl'!$A$11:$F$87,5,0)),0,VLOOKUP(B61,'[68]LTS-MAT clawback jnl'!$A$11:$F$87,5,0)) -> 0 | R61: =IF(ISERROR(VLOOKUP(B61,'[68]LTS-MAT clawback jnl 2'!$A$11:$F$87,5,0)),0,VLOOKUP(B61,'[68]LTS-MAT clawback jnl 2'!$A$11:$F$87,5,0)) -> 0 | S61: 0
A62: Northgate | B62: 10185 | C62: 4549.95 | E62: 4549.95 | N62: 4549.95 | O62: =IF(ISERROR(VLOOKUP(B62,'[68]MTS clawback jnl'!$A$11:$E$76,5,0)),0,VLOOKUP(B62,'[68]MTS clawback jnl'!$A$11:$E$76,5,0)) -> 146.2 | P62: =IF(ISERROR(VLOOKUP(B62,'[68]MTS clawback jnl 2'!$A$11:$E$76,5,0)),0,VLOOKUP(B62,'[68]MTS clawback jnl 2'!$A$11:$E$76,5,0)) -> 3.56 | Q62: =IF(ISERROR(VLOOKUP(B62,'[68]LTS-MAT clawback jnl'!$A$11:$F$87,5,0)),0,VLOOKUP(B62,'[68]LTS-MAT clawback jnl'!$A$11:$F$87,5,0)) -> 12.88 | R62: =IF(ISERROR(VLOOKUP(B62,'[68]LTS-MAT clawback jnl 2'!$A$11:$F$87,5,0)),0,VLOOKUP(B62,'[68]LTS-MAT clawback jnl 2'!$A$11:$F$87,5,0)) -> 2.89 | S62: 4384.42
A63: Northside | B63: 10082 | C63: 3850 | E63: 3850 | I63: 1225 | K63: 1225 | N63: 5075 | O63: =IF(ISERROR(VLOOKUP(B63,'[68]MTS clawback jnl'!$A$11:$E$76,5,0)),0,VLOOKUP(B63,'[68]MTS clawback jnl'!$A$11:$E$76,5,0)) -> 798.04 | P63: =IF(ISERROR(VLOOKUP(B63,'[68]MTS clawback jnl 2'!$A$11:$E$76,5,0)),0,VLOOKUP(B63,'[68]MTS clawback jnl 2'!$A$11:$E$76,5,0)) -> 19.46 | Q63: =IF(ISERROR(VLOOKUP(B63,'[68]LTS-MAT clawback jnl'!$A$11:$F$87,5,0)),0,VLOOKUP(B63,'[68]LTS-MAT clawback jnl'!$A$11:$F$87,5,0)) -> 70.28 | R63: =IF(ISERROR(VLOOKUP(B63,'[68]LTS-MAT clawback jnl 2'!$A$11:$F$87,5,0)),0,VLOOKUP(B63,'[68]LTS-MAT clawback jnl 2'!$A$11:$F$87,5,0)) -> 15.8 | S63: 4171.42
A64: Northway | B64: 10157 | O64: =IF(ISERROR(VLOOKUP(B64,'[68]MTS clawback jnl'!$A$11:$E$76,5,0)),0,VLOOKUP(B64,'[68]MTS clawback jnl'!$A$11:$E$76,5,0)) -> 1238.99 | P64: =IF(ISERROR(VLOOKUP(B64,'[68]MTS clawback jnl 2'!$A$11:$E$76,5,0)),0,VLOOKUP(B64,'[68]MTS clawback jnl 2'!$A$11:$E$76,5,0)) -> 30.21 | Q64: =IF(ISERROR(VLOOKUP(B64,'[68]LTS-MAT clawback jnl'!$A$11:$F$87,5,0)),0,VLOOKUP(B64,'[68]LTS-MAT clawback jnl'!$A$11:$F$87,5,0)) -> 109.11 | R64: =IF(ISERROR(VLOOKUP(B64,'[68]LTS-MAT clawback jnl 2'!$A$11:$F$87,5,0)),0,VLOOKUP(B64,'[68]LTS-MAT clawback jnl 2'!$A$11:$F$87,5,0)) -> 24.53 | S64: -1402.84
A65: Oakleigh | B65: 10158 | C65: 1575 | E65: 1575 | G65: 2034.45 | H65: 2034.45 | I65: 3500 | J65: 2259.94 | K65: 5759.94 | N65: 9369.39 | O65: =IF(ISERROR(VLOOKUP(B65,'[68]MTS clawback jnl'!$A$11:$E$76,5,0)),0,VLOOKUP(B65,'[68]MTS clawback jnl'!$A$11:$E$76,5,0)) -> 1733.97 | P65: =IF(ISERROR(VLOOKUP(B65,'[68]MTS clawback jnl 2'!$A$11:$E$76,5,0)),0,VLOOKUP(B65,'[68]MTS clawback jnl 2'!$A$11:$E$76,5,0)) -> 42.27 | Q65: =IF(ISERROR(VLOOKUP(B65,'[68]LTS-MAT clawback jnl'!$A$11:$F$87,5,0)),0,VLOOKUP(B65,'[68]LTS-MAT clawback jnl'!$A$11:$F$87,5,0)) -> 152.71 | R65: =IF(ISERROR(VLOOKUP(B65,'[68]LTS-MAT clawback jnl 2'!$A$11:$F$87,5,0)),0,VLOOKUP(B65,'[68]LTS-MAT clawback jnl 2'!$A$11:$F$87,5,0)) -> 34.31 | S65: 7406.13 | W65: Whitings Hill | X65: 10105
A66: Orion | B66: 10127 | O66: =IF(ISERROR(VLOOKUP(B66,'[68]MTS clawback jnl'!$A$11:$E$76,5,0)),0,VLOOKUP(B66,'[68]MTS clawback jnl'!$A$11:$E$76,5,0)) -> 0 | P66: =IF(ISERROR(VLOOKUP(B66,'[68]MTS clawback jnl 2'!$A$11:$E$76,5,0)),0,VLOOKUP(B66,'[68]MTS clawback jnl 2'!$A$11:$E$76,5,0)) -> 0 | Q66: =IF(ISERROR(VLOOKUP(B66,'[68]LTS-MAT clawback jnl'!$A$11:$F$87,5,0)),0,VLOOKUP(B66,'[68]LTS-MAT clawback jnl'!$A$11:$F$87,5,0)) -> 0 | R66: =IF(ISERROR(VLOOKUP(B66,'[68]LTS-MAT clawback jnl 2'!$A$11:$F$87,5,0)),0,VLOOKUP(B66,'[68]LTS-MAT clawback jnl 2'!$A$11:$F$87,5,0)) -> 0 | S66: 0 | W66: Woodcroft | X66: 10123
A67: Osidge | B67: 10084 | O67: =IF(ISERROR(VLOOKUP(B67,'[68]MTS clawback jnl'!$A$11:$E$76,5,0)),0,VLOOKUP(B67,'[68]MTS clawback jnl'!$A$11:$E$76,5,0)) -> 1026.04 | P67: =IF(ISERROR(VLOOKUP(B67,'[68]MTS clawback jnl 2'!$A$11:$E$76,5,0)),0,VLOOKUP(B67,'[68]MTS clawback jnl 2'!$A$11:$E$76,5,0)) -> 25.01 | Q67: =IF(ISERROR(VLOOKUP(B67,'[68]LTS-MAT clawback jnl'!$A$11:$F$87,5,0)),0,VLOOKUP(B67,'[68]LTS-MAT clawback jnl'!$A$11:$F$87,5,0)) -> 90.36 | R67: =IF(ISERROR(VLOOKUP(B67,'[68]LTS-MAT clawback jnl 2'!$A$11:$F$87,5,0)),0,VLOOKUP(B67,'[68]LTS-MAT clawback jnl 2'!$A$11:$F$87,5,0)) -> 20.31 | S67: -1161.72
A68: Our Lady of Lourdes | B68: 10085 | O68: =IF(ISERROR(VLOOKUP(B68,'[68]MTS clawback jnl'!$A$11:$E$76,5,0)),0,VLOOKUP(B68,'[68]MTS clawback jnl'!$A$11:$E$76,5,0)) -> 532.18 | P68: =IF(ISERROR(VLOOKUP(B68,'[68]MTS clawback jnl 2'!$A$11:$E$76,5,0)),0,VLOOKUP(B68,'[68]MTS clawback jnl 2'!$A$11:$E$76,5,0)) -> 12.97 | Q68: =IF(ISERROR(VLOOKUP(B68,'[68]LTS-MAT clawback jnl'!$A$11:$F$87,5,0)),0,VLOOKUP(B68,'[68]LTS-MAT clawback jnl'!$A$11:$F$87,5,0)) -> 46.87 | R68: =IF(ISERROR(VLOOKUP(B68,'[68]LTS-MAT clawback jnl 2'!$A$11:$F$87,5,0)),0,VLOOKUP(B68,'[68]LTS-MAT clawback jnl 2'!$A$11:$F$87,5,0)) -> 10.54 | S68: -602.56
A69: Pardes House | B69: 10129 | D69: 4518.54 | E69: 4518.54 | F69: 1575 | H69: 1575 | N69: 6093.54 | O69: =IF(ISERROR(VLOOKUP(B69,'[68]MTS clawback jnl'!$A$11:$E$76,5,0)),0,VLOOKUP(B69,'[68]MTS clawback jnl'!$A$11:$E$76,5,0)) -> 0 | P69: =IF(ISERROR(VLOOKUP(B69,'[68]MTS clawback jnl 2'!$A$11:$E$76,5,0)),0,VLOOKUP(B69,'[68]MTS clawback jnl 2'!$A$11:$E$76,5,0)) -> 0 | Q69: =IF(ISERROR(VLOOKUP(B69,'[68]LTS-MAT clawback jnl'!$A$11:$F$87,5,0)),0,VLOOKUP(B69,'[68]LTS-MAT clawback jnl'!$A$11:$F$87,5,0)) -> 63.56 | R69: =IF(ISERROR(VLOOKUP(B69,'[68]LTS-MAT clawback jnl 2'!$A$11:$F$87,5,0)),0,VLOOKUP(B69,'[68]LTS-MAT clawback jnl 2'!$A$11:$F$87,5,0)) -> 14.29 | S69: 6015.69
A70: Pavilion | B70: 10188 | C70: 19600 | E70: 19600 | F70: 9450 | H70: 9450 | I70: 3500 | K70: 3500 | N70: 32550 | O70: =IF(ISERROR(VLOOKUP(B70,'[68]MTS clawback jnl'!$A$11:$E$76,5,0)),0,VLOOKUP(B70,'[68]MTS clawback jnl'!$A$11:$E$76,5,0)) -> 958.69 | P70: =IF(ISERROR(VLOOKUP(B70,'[68]MTS clawback jnl 2'!$A$11:$E$76,5,0)),0,VLOOKUP(B70,'[68]MTS clawback jnl 2'!$A$11:$E$76,5,0)) -> 23.37 | Q70: =IF(ISERROR(VLOOKUP(B70,'[68]LTS-MAT clawback jnl'!$A$11:$F$87,5,0)),0,VLOOKUP(B70,'[68]LTS-MAT clawback jnl'!$A$11:$F$87,5,0)) -> 84.43 | R70: =IF(ISERROR(VLOOKUP(B70,'[68]LTS-MAT clawback jnl 2'!$A$11:$F$87,5,0)),0,VLOOKUP(B70,'[68]LTS-MAT clawback jnl 2'!$A$11:$F$87,5,0)) -> 18.98 | S70: 31464.53 | W70: JCoSS | X70: 11174
A71: Queenswell Infants | B71: 10119 | D71: 734.73 | E71: 734.73 | F71: 3675 | H71: 3675 | J71: 1671.34 | K71: 1671.34 | N71: 6081.07 | O71: =IF(ISERROR(VLOOKUP(B71,'[68]MTS clawback jnl'!$A$11:$E$76,5,0)),0,VLOOKUP(B71,'[68]MTS clawback jnl'!$A$11:$E$76,5,0)) -> 782.16 | P71: =IF(ISERROR(VLOOKUP(B71,'[68]MTS clawback jnl 2'!$A$11:$E$76,5,0)),0,VLOOKUP(B71,'[68]MTS clawback jnl 2'!$A$11:$E$76,5,0)) -> 19.07 | Q71: =IF(ISERROR(VLOOKUP(B71,'[68]LTS-MAT clawback jnl'!$A$11:$F$87,5,0)),0,VLOOKUP(B71,'[68]LTS-MAT clawback jnl'!$A$11:$F$87,5,0)) -> 68.88 | R71: =IF(ISERROR(VLOOKUP(B71,'[68]LTS-MAT clawback jnl 2'!$A$11:$F$87,5,0)),0,VLOOKUP(B71,'[68]LTS-MAT clawback jnl 2'!$A$11:$F$87,5,0)) -> 15.48 | S71: 5195.48 | W71: Menorah High | X71: 11513
A72: Queenswell Junior | B72: 10086 | O72: =IF(ISERROR(VLOOKUP(B72,'[68]MTS clawback jnl'!$A$11:$E$76,5,0)),0,VLOOKUP(B72,'[68]MTS clawback jnl'!$A$11:$E$76,5,0)) -> 0 | P72: =IF(ISERROR(VLOOKUP(B72,'[68]MTS clawback jnl 2'!$A$11:$E$76,5,0)),0,VLOOKUP(B72,'[68]MTS clawback jnl 2'!$A$11:$E$76,5,0)) -> 0 | Q72: =IF(ISERROR(VLOOKUP(B72,'[68]LTS-MAT clawback jnl'!$A$11:$F$87,5,0)),0,VLOOKUP(B72,'[68]LTS-MAT clawback jnl'!$A$11:$F$87,5,0)) -> 0 | R72: =IF(ISERROR(VLOOKUP(B72,'[68]LTS-MAT clawback jnl 2'!$A$11:$F$87,5,0)),0,VLOOKUP(B72,'[68]LTS-MAT clawback jnl 2'!$A$11:$F$87,5,0)) -> 0 | S72: =N72-O72-P72-Q72-R72 -> 0
A73: Rosh Pinah | B73: 10112 | O73: =IF(ISERROR(VLOOKUP(B73,'[68]MTS clawback jnl'!$A$11:$E$76,5,0)),0,VLOOKUP(B73,'[68]MTS clawback jnl'!$A$11:$E$76,5,0)) -> 0 | P73: =IF(ISERROR(VLOOKUP(B73,'[68]MTS clawback jnl 2'!$A$11:$E$76,5,0)),0,VLOOKUP(B73,'[68]MTS clawback jnl 2'!$A$11:$E$76,5,0)) -> 0 | Q73: =IF(ISERROR(VLOOKUP(B73,'[68]LTS-MAT clawback jnl'!$A$11:$F$87,5,0)),0,VLOOKUP(B73,'[68]LTS-MAT clawback jnl'!$A$11:$F$87,5,0)) -> 0 | R73: =IF(ISERROR(VLOOKUP(B73,'[68]LTS-MAT clawback jnl 2'!$A$11:$F$87,5,0)),0,VLOOKUP(B73,'[68]LTS-MAT clawback jnl 2'!$A$11:$F$87,5,0)) -> 0 | S73: 0
A74: Sacks Morasha | B74: 11381 | O74: =IF(ISERROR(VLOOKUP(B74,'[68]MTS clawback jnl'!$A$11:$E$76,5,0)),0,VLOOKUP(B74,'[68]MTS clawback jnl'!$A$11:$E$76,5,0)) -> 0 | P74: =IF(ISERROR(VLOOKUP(B74,'[68]MTS clawback jnl 2'!$A$11:$E$76,5,0)),0,VLOOKUP(B74,'[68]MTS clawback jnl 2'!$A$11:$E$76,5,0)) -> 0 | Q74: =IF(ISERROR(VLOOKUP(B74,'[68]LTS-MAT clawback jnl'!$A$11:$F$87,5,0)),0,VLOOKUP(B74,'[68]LTS-MAT clawback jnl'!$A$11:$F$87,5,0)) -> 0 | R74: =IF(ISERROR(VLOOKUP(B74,'[68]LTS-MAT clawback jnl 2'!$A$11:$F$87,5,0)),0,VLOOKUP(B74,'[68]LTS-MAT clawback jnl 2'!$A$11:$F$87,5,0)) -> 0 | S74: 0 | W74: Mapledown | X74: 10159
A75: Sacred Heart | B75: 10110 | O75: =IF(ISERROR(VLOOKUP(B75,'[68]MTS clawback jnl'!$A$11:$E$76,5,0)),0,VLOOKUP(B75,'[68]MTS clawback jnl'!$A$11:$E$76,5,0)) -> 0 | P75: =IF(ISERROR(VLOOKUP(B75,'[68]MTS clawback jnl 2'!$A$11:$E$76,5,0)),0,VLOOKUP(B75,'[68]MTS clawback jnl 2'!$A$11:$E$76,5,0)) -> 0 | Q75: =IF(ISERROR(VLOOKUP(B75,'[68]LTS-MAT clawback jnl'!$A$11:$F$87,5,0)),0,VLOOKUP(B75,'[68]LTS-MAT clawback jnl'!$A$11:$F$87,5,0)) -> 0 | R75: =IF(ISERROR(VLOOKUP(B75,'[68]LTS-MAT clawback jnl 2'!$A$11:$F$87,5,0)),0,VLOOKUP(B75,'[68]LTS-MAT clawback jnl 2'!$A$11:$F$87,5,0)) -> 0 | S75: 0
A76: St Agnes' | B76: 10087 | O76: =IF(ISERROR(VLOOKUP(B76,'[68]MTS clawback jnl'!$A$11:$E$76,5,0)),0,VLOOKUP(B76,'[68]MTS clawback jnl'!$A$11:$E$76,5,0)) -> 840.45 | P76: =IF(ISERROR(VLOOKUP(B76,'[68]MTS clawback jnl 2'!$A$11:$E$76,5,0)),0,VLOOKUP(B76,'[68]MTS clawback jnl 2'!$A$11:$E$76,5,0)) -> 20.49 | Q76: =IF(ISERROR(VLOOKUP(B76,'[68]LTS-MAT clawback jnl'!$A$11:$F$87,5,0)),0,VLOOKUP(B76,'[68]LTS-MAT clawback jnl'!$A$11:$F$87,5,0)) -> 74.02 | R76: =IF(ISERROR(VLOOKUP(B76,'[68]LTS-MAT clawback jnl 2'!$A$11:$F$87,5,0)),0,VLOOKUP(B76,'[68]LTS-MAT clawback jnl 2'!$A$11:$F$87,5,0)) -> 16.64 | S76: -951.6 | W76: Oakleigh | X76: 10158
A77: St Andrews | B77: 10099 | O77: =IF(ISERROR(VLOOKUP(B77,'[68]MTS clawback jnl'!$A$11:$E$76,5,0)),0,VLOOKUP(B77,'[68]MTS clawback jnl'!$A$11:$E$76,5,0)) -> 0 | P77: =IF(ISERROR(VLOOKUP(B77,'[68]MTS clawback jnl 2'!$A$11:$E$76,5,0)),0,VLOOKUP(B77,'[68]MTS clawback jnl 2'!$A$11:$E$76,5,0)) -> 0 | Q77: =IF(ISERROR(VLOOKUP(B77,'[68]LTS-MAT clawback jnl'!$A$11:$F$87,5,0)),0,VLOOKUP(B77,'[68]LTS-MAT clawback jnl'!$A$11:$F$87,5,0)) -> 0 | R77: =IF(ISERROR(VLOOKUP(B77,'[68]LTS-MAT clawback jnl 2'!$A$11:$F$87,5,0)),0,VLOOKUP(B77,'[68]LTS-MAT clawback jnl 2'!$A$11:$F$87,5,0)) -> 0 | S77: 0
A78: St Catherine's | B78: 10088 | O78: =IF(ISERROR(VLOOKUP(B78,'[68]MTS clawback jnl'!$A$11:$E$76,5,0)),0,VLOOKUP(B78,'[68]MTS clawback jnl'!$A$11:$E$76,5,0)) -> 0 | P78: =IF(ISERROR(VLOOKUP(B78,'[68]MTS clawback jnl 2'!$A$11:$E$76,5,0)),0,VLOOKUP(B78,'[68]MTS clawback jnl 2'!$A$11:$E$76,5,0)) -> 0 | Q78: =IF(ISERROR(VLOOKUP(B78,'[68]LTS-MAT clawback jnl'!$A$11:$F$87,5,0)),0,VLOOKUP(B78,'[68]LTS-MAT clawback jnl'!$A$11:$F$87,5,0)) -> 0 | R78: =IF(ISERROR(VLOOKUP(B78,'[68]LTS-MAT clawback jnl 2'!$A$11:$F$87,5,0)),0,VLOOKUP(B78,'[68]LTS-MAT clawback jnl 2'!$A$11:$F$87,5,0)) -> 0 | S78: 0
A79: St James' Catholic High | B79: 10142 | O79: =IF(ISERROR(VLOOKUP(B79,'[68]MTS clawback jnl'!$A$11:$E$76,5,0)),0,VLOOKUP(B79,'[68]MTS clawback jnl'!$A$11:$E$76,5,0)) -> 0 | P79: =IF(ISERROR(VLOOKUP(B79,'[68]MTS clawback jnl 2'!$A$11:$E$76,5,0)),0,VLOOKUP(B79,'[68]MTS clawback jnl 2'!$A$11:$E$76,5,0)) -> 0 | Q79: =IF(ISERROR(VLOOKUP(B79,'[68]LTS-MAT clawback jnl'!$A$11:$F$87,5,0)),0,VLOOKUP(B79,'[68]LTS-MAT clawback jnl'!$A$11:$F$87,5,0)) -> 0 | R79: =IF(ISERROR(VLOOKUP(B79,'[68]LTS-MAT clawback jnl 2'!$A$11:$F$87,5,0)),0,VLOOKUP(B79,'[68]LTS-MAT clawback jnl 2'!$A$11:$F$87,5,0)) -> 0 | S79: 0
A80: St John's N11 | B80: 10089 | O80: =IF(ISERROR(VLOOKUP(B80,'[68]MTS clawback jnl'!$A$11:$E$76,5,0)),0,VLOOKUP(B80,'[68]MTS clawback jnl'!$A$11:$E$76,5,0)) -> 499.72 | P80: =IF(ISERROR(VLOOKUP(B80,'[68]MTS clawback jnl 2'!$A$11:$E$76,5,0)),0,VLOOKUP(B80,'[68]MTS clawback jnl 2'!$A$11:$E$76,5,0)) -> 12.18 | Q80: =IF(ISERROR(VLOOKUP(B80,'[68]LTS-MAT clawback jnl'!$A$11:$F$87,5,0)),0,VLOOKUP(B80,'[68]LTS-MAT clawback jnl'!$A$11:$F$87,5,0)) -> 44.01 | R80: =IF(ISERROR(VLOOKUP(B80,'[68]LTS-MAT clawback jnl 2'!$A$11:$F$87,5,0)),0,VLOOKUP(B80,'[68]LTS-MAT clawback jnl 2'!$A$11:$F$87,5,0)) -> 9.89 | S80: -565.8
A81: St John's N20 | B81: 10116 | O81: =IF(ISERROR(VLOOKUP(B81,'[68]MTS clawback jnl'!$A$11:$E$76,5,0)),0,VLOOKUP(B81,'[68]MTS clawback jnl'!$A$11:$E$76,5,0)) -> 503.51 | P81: =IF(ISERROR(VLOOKUP(B81,'[68]MTS clawback jnl 2'!$A$11:$E$76,5,0)),0,VLOOKUP(B81,'[68]MTS clawback jnl 2'!$A$11:$E$76,5,0)) -> 12.28 | Q81: =IF(ISERROR(VLOOKUP(B81,'[68]LTS-MAT clawback jnl'!$A$11:$F$87,5,0)),0,VLOOKUP(B81,'[68]LTS-MAT clawback jnl'!$A$11:$F$87,5,0)) -> 44.34 | R81: =IF(ISERROR(VLOOKUP(B81,'[68]LTS-MAT clawback jnl 2'!$A$11:$F$87,5,0)),0,VLOOKUP(B81,'[68]LTS-MAT clawback jnl 2'!$A$11:$F$87,5,0)) -> 9.97 | S81: -570.1 | W81: St Margarets Nursery | X81: 10133
A82: St Joseph's Primary | B82: 10107 | G82: 1247.4 | H82: 1247.4 | J82: 82.67 | K82: 82.67 | N82: 1330.07 | O82: =IF(ISERROR(VLOOKUP(B82,'[68]MTS clawback jnl'!$A$11:$E$76,5,0)),0,VLOOKUP(B82,'[68]MTS clawback jnl'!$A$11:$E$76,5,0)) -> 1345.14 | P82: =IF(ISERROR(VLOOKUP(B82,'[68]MTS clawback jnl 2'!$A$11:$E$76,5,0)),0,VLOOKUP(B82,'[68]MTS clawback jnl 2'!$A$11:$E$76,5,0)) -> 32.79 | Q82: =IF(ISERROR(VLOOKUP(B82,'[68]LTS-MAT clawback jnl'!$A$11:$F$87,5,0)),0,VLOOKUP(B82,'[68]LTS-MAT clawback jnl'!$A$11:$F$87,5,0)) -> 118.46 | R82: =IF(ISERROR(VLOOKUP(B82,'[68]LTS-MAT clawback jnl 2'!$A$11:$F$87,5,0)),0,VLOOKUP(B82,'[68]LTS-MAT clawback jnl 2'!$A$11:$F$87,5,0)) -> 26.63 | S82: -192.95 | W82: Northgate | X82: 10185
A83: St Margarets Nursery | B83: 10133 | D83: 120.96 | E83: 120.96 | G83: 1776.6 | H83: 1776.6 | I83: 1225 | J83: 604.8 | K83: 1829.8 | N83: 3727.36 | O83: =IF(ISERROR(VLOOKUP(B83,'[68]MTS clawback jnl'!$A$11:$E$76,5,0)),0,VLOOKUP(B83,'[68]MTS clawback jnl'!$A$11:$E$76,5,0)) -> 541.66 | P83: =IF(ISERROR(VLOOKUP(B83,'[68]MTS clawback jnl 2'!$A$11:$E$76,5,0)),0,VLOOKUP(B83,'[68]MTS clawback jnl 2'!$A$11:$E$76,5,0)) -> 13.21 | Q83: =IF(ISERROR(VLOOKUP(B83,'[68]LTS-MAT clawback jnl'!$A$11:$F$87,5,0)),0,VLOOKUP(B83,'[68]LTS-MAT clawback jnl'!$A$11:$F$87,5,0)) -> 47.7 | R83: =IF(ISERROR(VLOOKUP(B83,'[68]LTS-MAT clawback jnl 2'!$A$11:$F$87,5,0)),0,VLOOKUP(B83,'[68]LTS-MAT clawback jnl 2'!$A$11:$F$87,5,0)) -> 10.72 | S83: 3114.07 | W83: Pavilion | X83: 10188
A84: St Mary's N3 | B84: 10092 | O84: =IF(ISERROR(VLOOKUP(B84,'[68]MTS clawback jnl'!$A$11:$E$76,5,0)),0,VLOOKUP(B84,'[68]MTS clawback jnl'!$A$11:$E$76,5,0)) -> 0 | P84: =IF(ISERROR(VLOOKUP(B84,'[68]MTS clawback jnl 2'!$A$11:$E$76,5,0)),0,VLOOKUP(B84,'[68]MTS clawback jnl 2'!$A$11:$E$76,5,0)) -> 0 | Q84: =IF(ISERROR(VLOOKUP(B84,'[68]LTS-MAT clawback jnl'!$A$11:$F$87,5,0)),0,VLOOKUP(B84,'[68]LTS-MAT clawback jnl'!$A$11:$F$87,5,0)) -> 0 | R84: =IF(ISERROR(VLOOKUP(B84,'[68]LTS-MAT clawback jnl 2'!$A$11:$F$87,5,0)),0,VLOOKUP(B84,'[68]LTS-MAT clawback jnl 2'!$A$11:$F$87,5,0)) -> 0 | S84: 0
A85: St Mary's EB | B85: 10093 | F85: 5005 | H85: 5005 | I85: 210 | K85: 210 | N85: 5215 | O85: =IF(ISERROR(VLOOKUP(B85,'[68]MTS clawback jnl'!$A$11:$E$76,5,0)),0,VLOOKUP(B85,'[68]MTS clawback jnl'!$A$11:$E$76,5,0)) -> 489.06 | P85: =IF(ISERROR(VLOOKUP(B85,'[68]MTS clawback jnl 2'!$A$11:$E$76,5,0)),0,VLOOKUP(B85,'[68]MTS clawback jnl 2'!$A$11:$E$76,5,0)) -> 11.92 | Q85: =IF(ISERROR(VLOOKUP(B85,'[68]LTS-MAT clawback jnl'!$A$11:$F$87,5,0)),0,VLOOKUP(B85,'[68]LTS-MAT clawback jnl'!$A$11:$F$87,5,0)) -> 43.07 | R85: =IF(ISERROR(VLOOKUP(B85,'[68]LTS-MAT clawback jnl 2'!$A$11:$F$87,5,0)),0,VLOOKUP(B85,'[68]LTS-MAT clawback jnl 2'!$A$11:$F$87,5,0)) -> 9.68 | S85: 4661.27
A86: St Mary's & St John's | B86: 10698 | O86: =IF(ISERROR(VLOOKUP(B86,'[68]MTS clawback jnl'!$A$11:$E$76,5,0)),0,VLOOKUP(B86,'[68]MTS clawback jnl'!$A$11:$E$76,5,0)) -> 0 | P86: =IF(ISERROR(VLOOKUP(B86,'[68]MTS clawback jnl 2'!$A$11:$E$76,5,0)),0,VLOOKUP(B86,'[68]MTS clawback jnl 2'!$A$11:$E$76,5,0)) -> 0 | Q86: =IF(ISERROR(VLOOKUP(B86,'[68]LTS-MAT clawback jnl'!$A$11:$F$87,5,0)),0,VLOOKUP(B86,'[68]LTS-MAT clawback jnl'!$A$11:$F$87,5,0)) -> 0 | R86: =IF(ISERROR(VLOOKUP(B86,'[68]LTS-MAT clawback jnl 2'!$A$11:$F$87,5,0)),0,VLOOKUP(B86,'[68]LTS-MAT clawback jnl 2'!$A$11:$F$87,5,0)) -> 0 | S86: 0
A87: St Michaels Cath Grammer | B87: 10148 | O87: =IF(ISERROR(VLOOKUP(B87,'[68]MTS clawback jnl'!$A$11:$E$76,5,0)),0,VLOOKUP(B87,'[68]MTS clawback jnl'!$A$11:$E$76,5,0)) -> 0 | P87: =IF(ISERROR(VLOOKUP(B87,'[68]MTS clawback jnl 2'!$A$11:$E$76,5,0)),0,VLOOKUP(B87,'[68]MTS clawback jnl 2'!$A$11:$E$76,5,0)) -> 0 | Q87: =IF(ISERROR(VLOOKUP(B87,'[68]LTS-MAT clawback jnl'!$A$11:$F$87,5,0)),0,VLOOKUP(B87,'[68]LTS-MAT clawback jnl'!$A$11:$F$87,5,0)) -> 0 | R87: =IF(ISERROR(VLOOKUP(B87,'[68]LTS-MAT clawback jnl 2'!$A$11:$F$87,5,0)),0,VLOOKUP(B87,'[68]LTS-MAT clawback jnl 2'!$A$11:$F$87,5,0)) -> 0 | S87: 0
A88: St Paul's N11 | B88: 10094 | C88: 21595 | E88: 21595 | I88: 5600 | K88: 5600 | N88: 27195 | O88: =IF(ISERROR(VLOOKUP(B88,'[68]MTS clawback jnl'!$A$11:$E$76,5,0)),0,VLOOKUP(B88,'[68]MTS clawback jnl'!$A$11:$E$76,5,0)) -> 508.49 | P88: =IF(ISERROR(VLOOKUP(B88,'[68]MTS clawback jnl 2'!$A$11:$E$76,5,0)),0,VLOOKUP(B88,'[68]MTS clawback jnl 2'!$A$11:$E$76,5,0)) -> 12.4 | Q88: =IF(ISERROR(VLOOKUP(B88,'[68]LTS-MAT clawback jnl'!$A$11:$F$87,5,0)),0,VLOOKUP(B88,'[68]LTS-MAT clawback jnl'!$A$11:$F$87,5,0)) -> 44.78 | R88: =IF(ISERROR(VLOOKUP(B88,'[68]LTS-MAT clawback jnl 2'!$A$11:$F$87,5,0)),0,VLOOKUP(B88,'[68]LTS-MAT clawback jnl 2'!$A$11:$F$87,5,0)) -> 10.07 | S88: 26619.26
A89: St Paul's NW7 | B89: 10095 | O89: =IF(ISERROR(VLOOKUP(B89,'[68]MTS clawback jnl'!$A$11:$E$76,5,0)),0,VLOOKUP(B89,'[68]MTS clawback jnl'!$A$11:$E$76,5,0)) -> 0 | P89: =IF(ISERROR(VLOOKUP(B89,'[68]MTS clawback jnl 2'!$A$11:$E$76,5,0)),0,VLOOKUP(B89,'[68]MTS clawback jnl 2'!$A$11:$E$76,5,0)) -> 0 | Q89: =IF(ISERROR(VLOOKUP(B89,'[68]LTS-MAT clawback jnl'!$A$11:$F$87,5,0)),0,VLOOKUP(B89,'[68]LTS-MAT clawback jnl'!$A$11:$F$87,5,0)) -> 40.69 | R89: =IF(ISERROR(VLOOKUP(B89,'[68]LTS-MAT clawback jnl 2'!$A$11:$F$87,5,0)),0,VLOOKUP(B89,'[68]LTS-MAT clawback jnl 2'!$A$11:$F$87,5,0)) -> 9.15 | S89: -49.84
A90: St Theresas | B90: 10108 | C90: 3325 | D90: 4756 | E90: 8081 | N90: 8081 | O90: =IF(ISERROR(VLOOKUP(B90,'[68]MTS clawback jnl'!$A$11:$E$76,5,0)),0,VLOOKUP(B90,'[68]MTS clawback jnl'!$A$11:$E$76,5,0)) -> 0 | P90: =IF(ISERROR(VLOOKUP(B90,'[68]MTS clawback jnl 2'!$A$11:$E$76,5,0)),0,VLOOKUP(B90,'[68]MTS clawback jnl 2'!$A$11:$E$76,5,0)) -> 0 | Q90: =IF(ISERROR(VLOOKUP(B90,'[68]LTS-MAT clawback jnl'!$A$11:$F$87,5,0)),0,VLOOKUP(B90,'[68]LTS-MAT clawback jnl'!$A$11:$F$87,5,0)) -> 44.07 | R90: =IF(ISERROR(VLOOKUP(B90,'[68]LTS-MAT clawback jnl 2'!$A$11:$F$87,5,0)),0,VLOOKUP(B90,'[68]LTS-MAT clawback jnl 2'!$A$11:$F$87,5,0)) -> 9.91 | S90: 8027.02
A91: St Vincents | B91: 10096 | O91: =IF(ISERROR(VLOOKUP(B91,'[68]MTS clawback jnl'!$A$11:$E$76,5,0)),0,VLOOKUP(B91,'[68]MTS clawback jnl'!$A$11:$E$76,5,0)) -> 0 | P91: =IF(ISERROR(VLOOKUP(B91,'[68]MTS clawback jnl 2'!$A$11:$E$76,5,0)),0,VLOOKUP(B91,'[68]MTS clawback jnl 2'!$A$11:$E$76,5,0)) -> 0 | Q91: =IF(ISERROR(VLOOKUP(B91,'[68]LTS-MAT clawback jnl'!$A$11:$F$87,5,0)),0,VLOOKUP(B91,'[68]LTS-MAT clawback jnl'!$A$11:$F$87,5,0)) -> 0 | R91: =IF(ISERROR(VLOOKUP(B91,'[68]LTS-MAT clawback jnl 2'!$A$11:$F$87,5,0)),0,VLOOKUP(B91,'[68]LTS-MAT clawback jnl 2'!$A$11:$F$87,5,0)) -> 0 | S91: 0
A92: Sunnyfields | B92: 10097 | D92: 232 | E92: 232 | J92: 2320 | K92: 2320 | N92: 2552 | O92: =IF(ISERROR(VLOOKUP(B92,'[68]MTS clawback jnl'!$A$11:$E$76,5,0)),0,VLOOKUP(B92,'[68]MTS clawback jnl'!$A$11:$E$76,5,0)) -> 662.27 | P92: =IF(ISERROR(VLOOKUP(B92,'[68]MTS clawback jnl 2'!$A$11:$E$76,5,0)),0,VLOOKUP(B92,'[68]MTS clawback jnl 2'!$A$11:$E$76,5,0)) -> 16.15 | Q92: =IF(ISERROR(VLOOKUP(B92,'[68]LTS-MAT clawback jnl'!$A$11:$F$87,5,0)),0,VLOOKUP(B92,'[68]LTS-MAT clawback jnl'!$A$11:$F$87,5,0)) -> 58.32 | R92: =IF(ISERROR(VLOOKUP(B92,'[68]LTS-MAT clawback jnl 2'!$A$11:$F$87,5,0)),0,VLOOKUP(B92,'[68]LTS-MAT clawback jnl 2'!$A$11:$F$87,5,0)) -> 13.11 | S92: 1802.15
A93: Trent | B93: 10100 | C93: 210 | D93: 246 | E93: 456 | F93: 2520 | H93: 2520 | J93: 574 | K93: 574 | N93: 3550 | O93: =IF(ISERROR(VLOOKUP(B93,'[68]MTS clawback jnl'!$A$11:$E$76,5,0)),0,VLOOKUP(B93,'[68]MTS clawback jnl'!$A$11:$E$76,5,0)) -> 447.83 | P93: =IF(ISERROR(VLOOKUP(B93,'[68]MTS clawback jnl 2'!$A$11:$E$76,5,0)),0,VLOOKUP(B93,'[68]MTS clawback jnl 2'!$A$11:$E$76,5,0)) -> 10.92 | Q93: =IF(ISERROR(VLOOKUP(B93,'[68]LTS-MAT clawback jnl'!$A$11:$F$87,5,0)),0,VLOOKUP(B93,'[68]LTS-MAT clawback jnl'!$A$11:$F$87,5,0)) -> 39.44 | R93: =IF(ISERROR(VLOOKUP(B93,'[68]LTS-MAT clawback jnl 2'!$A$11:$F$87,5,0)),0,VLOOKUP(B93,'[68]LTS-MAT clawback jnl 2'!$A$11:$F$87,5,0)) -> 8.87 | S93: 3042.94
A94: Tudor | B94: 10101 | O94: =IF(ISERROR(VLOOKUP(B94,'[68]MTS clawback jnl'!$A$11:$E$76,5,0)),0,VLOOKUP(B94,'[68]MTS clawback jnl'!$A$11:$E$76,5,0)) -> 739.98 | P94: =IF(ISERROR(VLOOKUP(B94,'[68]MTS clawback jnl 2'!$A$11:$E$76,5,0)),0,VLOOKUP(B94,'[68]MTS clawback jnl 2'!$A$11:$E$76,5,0)) -> 18.04 | Q94: =IF(ISERROR(VLOOKUP(B94,'[68]LTS-MAT clawback jnl'!$A$11:$F$87,5,0)),0,VLOOKUP(B94,'[68]LTS-MAT clawback jnl'!$A$11:$F$87,5,0)) -> 65.17 | R94: =IF(ISERROR(VLOOKUP(B94,'[68]LTS-MAT clawback jnl 2'!$A$11:$F$87,5,0)),0,VLOOKUP(B94,'[68]LTS-MAT clawback jnl 2'!$A$11:$F$87,5,0)) -> 14.65 | S94: -837.84
A95: Underhill | B95: 10103 | G95: 3297.78 | H95: 3297.78 | J95: 640.77 | K95: 640.77 | N95: 3938.55 | O95: =IF(ISERROR(VLOOKUP(B95,'[68]MTS clawback jnl'!$A$11:$E$76,5,0)),0,VLOOKUP(B95,'[68]MTS clawback jnl'!$A$11:$E$76,5,0)) -> 2131.33 | P95: =IF(ISERROR(VLOOKUP(B95,'[68]MTS clawback jnl 2'!$A$11:$E$76,5,0)),0,VLOOKUP(B95,'[68]MTS clawback jnl 2'!$A$11:$E$76,5,0)) -> 51.96 | Q95: =IF(ISERROR(VLOOKUP(B95,'[68]LTS-MAT clawback jnl'!$A$11:$F$87,5,0)),0,VLOOKUP(B95,'[68]LTS-MAT clawback jnl'!$A$11:$F$87,5,0)) -> 187.7 | R95: =IF(ISERROR(VLOOKUP(B95,'[68]LTS-MAT clawback jnl 2'!$A$11:$F$87,5,0)),0,VLOOKUP(B95,'[68]LTS-MAT clawback jnl 2'!$A$11:$F$87,5,0)) -> 42.18 | S95: 1525.38
A96: Wessex Garden Primary | B96: 10124 | O96: =IF(ISERROR(VLOOKUP(B96,'[68]MTS clawback jnl'!$A$11:$E$76,5,0)),0,VLOOKUP(B96,'[68]MTS clawback jnl'!$A$11:$E$76,5,0)) -> 0 | P96: =IF(ISERROR(VLOOKUP(B96,'[68]MTS clawback jnl 2'!$A$11:$E$76,5,0)),0,VLOOKUP(B96,'[68]MTS clawback jnl 2'!$A$11:$E$76,5,0)) -> 0 | Q96: =IF(ISERROR(VLOOKUP(B96,'[68]LTS-MAT clawback jnl'!$A$11:$F$87,5,0)),0,VLOOKUP(B96,'[68]LTS-MAT clawback jnl'!$A$11:$F$87,5,0)) -> 0 | R96: =IF(ISERROR(VLOOKUP(B96,'[68]LTS-MAT clawback jnl 2'!$A$11:$F$87,5,0)),0,VLOOKUP(B96,'[68]LTS-MAT clawback jnl 2'!$A$11:$F$87,5,0)) -> 0 | S96: =N96-O96-P96-Q96-R96 -> 0
A97: Whitings Hill | B97: 10105 | C97: 2310 | D97: 3168.34 | E97: 5478.34 | I97: 2100 | J97: 1250.8 | K97: 3350.8 | N97: 8829.14 | O97: =IF(ISERROR(VLOOKUP(B97,'[68]MTS clawback jnl'!$A$11:$E$76,5,0)),0,VLOOKUP(B97,'[68]MTS clawback jnl'!$A$11:$E$76,5,0)) -> 1313.16 | P97: =IF(ISERROR(VLOOKUP(B97,'[68]MTS clawback jnl 2'!$A$11:$E$76,5,0)),0,VLOOKUP(B97,'[68]MTS clawback jnl 2'!$A$11:$E$76,5,0)) -> 32.01 | Q97: =IF(ISERROR(VLOOKUP(B97,'[68]LTS-MAT clawback jnl'!$A$11:$F$87,5,0)),0,VLOOKUP(B97,'[68]LTS-MAT clawback jnl'!$A$11:$F$87,5,0)) -> 115.65 | R97: =IF(ISERROR(VLOOKUP(B97,'[68]LTS-MAT clawback jnl 2'!$A$11:$F$87,5,0)),0,VLOOKUP(B97,'[68]LTS-MAT clawback jnl 2'!$A$11:$F$87,5,0)) -> 26 | S97: =N97-O97-P97-Q97-R97 -> 7342.32
A98: Woodcroft | B98: 10123 | J98: 1401.45 | K98: 1401.45 | N98: 1401.45 | O98: =IF(ISERROR(VLOOKUP(B98,'[68]MTS clawback jnl'!$A$11:$E$76,5,0)),0,VLOOKUP(B98,'[68]MTS clawback jnl'!$A$11:$E$76,5,0)) -> 1285.91 | P98: =IF(ISERROR(VLOOKUP(B98,'[68]MTS clawback jnl 2'!$A$11:$E$76,5,0)),0,VLOOKUP(B98,'[68]MTS clawback jnl 2'!$A$11:$E$76,5,0)) -> 31.35 | Q98: =IF(ISERROR(VLOOKUP(B98,'[68]LTS-MAT clawback jnl'!$A$11:$F$87,5,0)),0,VLOOKUP(B98,'[68]LTS-MAT clawback jnl'!$A$11:$F$87,5,0)) -> 113.25 | R98: =IF(ISERROR(VLOOKUP(B98,'[68]LTS-MAT clawback jnl 2'!$A$11:$F$87,5,0)),0,VLOOKUP(B98,'[68]LTS-MAT clawback jnl 2'!$A$11:$F$87,5,0)) -> 25.46 | S98: =N98-O98-P98-Q98-R98 -> -54.52
A99: Woodridge | B99: 10109 | O99: =IF(ISERROR(VLOOKUP(B99,'[68]MTS clawback jnl'!$A$11:$E$76,5,0)),0,VLOOKUP(B99,'[68]MTS clawback jnl'!$A$11:$E$76,5,0)) -> 0 | P99: =IF(ISERROR(VLOOKUP(B99,'[68]MTS clawback jnl 2'!$A$11:$E$76,5,0)),0,VLOOKUP(B99,'[68]MTS clawback jnl 2'!$A$11:$E$76,5,0)) -> 0 | Q99: =IF(ISERROR(VLOOKUP(B99,'[68]LTS-MAT clawback jnl'!$A$11:$F$87,5,0)),0,VLOOKUP(B99,'[68]LTS-MAT clawback jnl'!$A$11:$F$87,5,0)) -> 0 | R99: =IF(ISERROR(VLOOKUP(B99,'[68]LTS-MAT clawback jnl 2'!$A$11:$F$87,5,0)),0,VLOOKUP(B99,'[68]LTS-MAT clawback jnl 2'!$A$11:$F$87,5,0)) -> 0 | S99: =N99-O99-P99-Q99-R99 -> 0
A100: Grand Total | C100: =SUM(C7:C99) -> 115421.2 | D100: 47633.57 | E100: 163054.77 | F100: 91134.7 | G100: 12822.92 | H100: 103957.62 | I100: 29260 | J100: 18907.83 | K100: 48167.83 | L100: 0 | M100: 0 | N100: 315180.22 | O100: 40738.01 | P100: 993.17 | Q100: 5220.18 | R100: 1173.41 | S100: 267055.45

Sheet Sept 2017
C1: Standard School List as at September 2017
A2: category | B2: type | C2: School | D2: Option | E2: Cost Centre | F2: DfE NO. | G2: Cash at Bank GL | H2: Vendor No. | I2: Customer No.
A4: Nur | B4: Comm | C4: Brookhill Nursery | D4: A | E4: 10130 | F4: 1000 | G4: =VLOOKUP(E4,'[69]bank code'!$B$4:$D$99,2,0) -> 938600 | H4: 400102 | I4: 10021968
A5: Nur / CC | B5: Comm | C5: Hampden Way Nursery | D5: A | E5: 10131 | F5: 1001 | G5: =VLOOKUP(E5,'[69]bank code'!$B$4:$D$99,2,0) -> 938601 | H5: 400103 | I5: 10028845
A6: Nur | B6: Comm | C6: Moss Hall Nursery | D6: A | E6: 10132 | F6: 1002 | G6: =VLOOKUP(E6,'[69]bank code'!$B$4:$D$99,2,0) -> 938602 | H6: 400072 | I6: 10006116
A7: Nur / CC | B7: Comm | C7: St Margaret's Nursery | D7: A | E7: 10133 | F7: 1003 | G7: =VLOOKUP(E7,'[69]bank code'!$B$4:$D$99,2,0) -> 938603 | H7: 400104 | I7: 10010756
C8: Total Nursery Schools | J8: =COUNTA(E4:E7) -> 4
A9: Pri | B9: VA | C9: Akiva | D9: C | E9: 11094 | F9: 3520 | G9: =VLOOKUP(E9,'[69]bank code'!$B$4:$D$99,2,0) -> 938701 | H9: 400125 | I9: 10030154
A10: Pri | B10: VA | C10: All Saints' CE (N20) | D10: A | E10: 10042 | F10: 3317 | G10: =VLOOKUP(E10,'[69]bank code'!$B$4:$D$99,2,0) -> 938664 | H10: 400015 | I10: 10006041
A11: Pri | B11: VA | C11: All Saints' CE (NW2) | D11: A | E11: 10040 | F11: 3300 | G11: =VLOOKUP(E11,'[69]bank code'!$B$4:$D$99,2,0) -> 938652 | H11: 400069 | I11: 10006117
A12: Pri | B12: VA | C12: Annunciation RC Infant | D12: A | E12: 10043 | F12: 3500 | G12: =VLOOKUP(E12,'[69]bank code'!$B$4:$D$99,2,0) -> 938665 | H12: 400023 | I12: 10008146
A13: Pri | B13: VA | C13: Annunciation RC Junior | D13: A | E13: 10117 | F13: 3514 | G13: =VLOOKUP(E13,'[69]bank code'!$B$4:$D$99,2,0) -> 938677 | H13: 400107 | I13: 10007147
A14: Pri / CC | B14: Comm | C14: Barnfield | D14: D | E14: 10044 | F14: 2002 | G14: =VLOOKUP(E14,'[69]bank code'!$B$4:$D$99,2,0) -> 938605 | H14: 400005 | I14: 10007053
A15: Pri | B15: VA | C15: Beis Yaakov | D15: A | E15: 10128 | F15: 2079 | G15: =VLOOKUP(E15,'[69]bank code'!$B$4:$D$99,2,0) -> 938651 | H15: 400070 | I15: 10028579
A16: Pri | B16: VA | C16: Beit Shvidler | D16: C | E16: 11278 | F16: 3524 | G16: =VLOOKUP(E16,'[69]bank code'!$B$4:$D$99,2,0) -> 938702 | H16: 400150 | I16: 10067446
A17: Pri / CC | B17: Comm | C17: Bell Lane | D17: A | E17: 10045 | F17: 2003 | G17: =VLOOKUP(E17,'[69]bank code'!$B$4:$D$99,2,0) -> 938606 | H17: 400051 | I17: 10006405
A18: Pri | B18: VA | C18: Blessed Dominic RC School | D18: A | E18: 10115 | F18: 3511 | G18: =VLOOKUP(E18,'[69]bank code'!$B$4:$D$99,2,0) -> 938674 | H18: 400024 | I18: 10007834
A19: Pri | B19: Comm | C19: Brookland Infant | D19: A | E19: 10047 | F19: 2008 | G19: =VLOOKUP(E19,'[69]bank code'!$B$4:$D$99,2,0) -> 938608 | H19: 400057 | I19: 10006742
A20: Pri | B20: Comm | C20: Brookland Junior | D20: A | E20: 10046 | F20: 2007 | G20: =VLOOKUP(E20,'[69]bank code'!$B$4:$D$99,2,0) -> 938607 | H20: 400040 | I20: 10007055
A21: Pri | B21: Comm | C21: Brunswick Park | D21: A | E21: 10048 | F21: 2009 | G21: =VLOOKUP(E21,'[69]bank code'!$B$4:$D$99,2,0) -> 938609 | H21: 400061 | I21: 10007056
A22: Pri | B22: Comm | C22: Chalgrove | D22: A | E22: 10118 | F22: 2067 | G22: =VLOOKUP(E22,'[69]bank code'!$B$4:$D$99,2,0) -> 938642 | H22: 400065 | I22: 10006373
A23: Pri | B23: Comm | C23: Childs Hill | D23: A | E23: 10049 | F23: 2010 | G23: =VLOOKUP(E23,'[69]bank code'!$B$4:$D$99,2,0) -> 938610 | H23: 400043 | I23: 10004595
A24: Pri | B24: VA | C24: Christ Church | D24: D | E24: 10050 | F24: 3302 | G24: =VLOOKUP(E24,'[69]bank code'!$B$4:$D$99,2,0) -> 938653 | H24: 400039 | I24: 10004765
A25: Pri | B25: Comm | C25: Church Hill | D25: A | E25: 10051 | F25: 2011 | G25: =VLOOKUP(E25,'[69]bank code'!$B$4:$D$99,2,0) -> 938611 | H25: 400020 | I25: 10028842
A26: Pri | B26: Comm | C26: Colindale | D26: A | E26: 10054 | F26: 2014 | G26: =VLOOKUP(E26,'[69]bank code'!$B$4:$D$99,2,0) -> 938612 | H26: 400050 | I26: 10006223
A27: Pri / CC | B27: Comm | C27: Coppetts Wood | D27: A | E27: 10055 | F27: 2015 | G27: =VLOOKUP(E27,'[69]bank code'!$B$4:$D$99,2,0) -> 938613 | H27: 400059 | I27: 10029750
A28: Pri | B28: Comm | C28: Courtland | D28: A | E28: 10056 | F28: 2016 | G28: =VLOOKUP(E28,'[69]bank code'!$B$4:$D$99,2,0) -> 938614 | H28: 400049 | I28: 10007246
A29: Pri | B29: Comm | C29: Cromer Road | D29: A | E29: 10057 | F29: 2017 | G29: =VLOOKUP(E29,'[69]bank code'!$B$4:$D$99,2,0) -> 938615 | H29: 400080 | I29: 10005184
A30: Pri | B30: Comm | C30: Danegrove | D30: B | E30: 10083 | F30: 2073 | G30: =VLOOKUP(E30,'[69]bank code'!$B$4:$D$99,2,0) -> 938646 | H30: 400105 | I30: 10004576
A31: Pri | B31: Comm | C31: Deansbrook Infant | D31: A | E31: 10059 | F31: 2019 | G31: =VLOOKUP(E31,'[69]bank code'!$B$4:$D$99,2,0) -> 938617 | H31: 400036 | I31: 10004642
A32: Pri | B32: Comm | C32: Dollis Infant | D32: A | E32: 10061 | F32: 2021 | G32: =VLOOKUP(E32,'[69]bank code'!$B$4:$D$99,2,0) -> 938618 | H32: 400042 | I32: 10008630
A33: Pri | B33: Found | C33: Dollis Junior | D33: B | E33: 10060 | F33: 5200 | G33: =VLOOKUP(E33,'[69]bank code'!$B$4:$D$99,2,0) -> 938686 | H33: 400052 | I33: 10029408
A34: Pri | B34: Comm | C34: Edgware Primary | D34: C | E34: 10063 | F34: 2023 | G34: =VLOOKUP(E34,'[69]bank code'!$B$4:$D$99,2,0) -> 938620 | H34: 400159 | I34: 10029387
A35: Pri / CC | B35: Comm | C35: Fairway | D35: A | E35: 10064 | F35: 2024 | G35: =VLOOKUP(E35,'[69]bank code'!$B$4:$D$99,2,0) -> 938621 | H35: 400047 | I35: 10006689
A36: Pri | B36: Comm | C36: Foulds | D36: C | E36: 10065 | F36: 2025 | G36: =VLOOKUP(E36,'[69]bank code'!$B$4:$D$99,2,0) -> 938622 | H36: 400001 | I36: 10027412
A37: Pri | B37: Comm | C37: Frith Manor | D37: A | E37: 10066 | F37: 2026 | G37: =VLOOKUP(E37,'[69]bank code'!$B$4:$D$99,2,0) -> 938623 | H37: 400082 | I37: 10007765
A38: Pri | B38: Comm | C38: Garden Suburb Infant | D38: A | E38: 10068 | F38: 2028 | G38: =VLOOKUP(E38,'[69]bank code'!$B$4:$D$99,2,0) -> 938625 | H38: 400067 | I38: 10006049
A39: Pri | B39: Comm | C39: Garden Suburb Junior | D39: A | E39: 10067 | F39: 2027 | G39: =VLOOKUP(E39,'[69]bank code'!$B$4:$D$99,2,0) -> 938624 | H39: 400002 | I39: 10005165
A40: Pri | B40: Comm | C40: Goldbeaters | D40: A | E40: 10069 | F40: 2029 | G40: =VLOOKUP(E40,'[69]bank code'!$B$4:$D$99,2,0) -> 938626 | H40: 400035 | I40: 10008175
A41: Pri | B41: VA | C41: Hasmonean Primary | D41: A | E41: 10121 | F41: 3516 | G41: =VLOOKUP(E41,'[69]bank code'!$B$4:$D$99,2,0) -> 938678 | H41: 400108 | I41: 10006802
A42: Pri | B42: Found | C42: Hollickwood | D42: A | E42: 10071 | F42: 2031 | G42: =VLOOKUP(E42,'[69]bank code'!$B$4:$D$99,2,0) -> 938628 | H42: 400026 | I42: 10008170
A43: Pri | B43: Comm | C43: Holly Park | D43: A | E43: 10072 | F43: 2032 | G43: =VLOOKUP(E43,'[69]bank code'!$B$4:$D$99,2,0) -> 938629 | H43: 400084 | I43: 10007226
A44: Pri | B44: VA | C44: Holy Trinity | D44: A | E44: 10073 | F44: 3304 | G44: =VLOOKUP(E44,'[69]bank code'!$B$4:$D$99,2,0) -> 938654 | H44: 400008 | I44: 10006043
A45: Pri | B45: Comm | C45: Livingstone | D45: A | E45: 10074 | F45: 2036 | G45: =VLOOKUP(E45,'[69]bank code'!$B$4:$D$99,2,0) -> 938630 | H45: 400046 | I45: 10007060
A46: Pri | B46: Comm | C46: Manorside | D46: A | E46: 10075 | F46: 2037 | G46: =VLOOKUP(E46,'[69]bank code'!$B$4:$D$99,2,0) -> 938631 | H46: 400030 | I46: 10007061
A47: Pri | B47: Comm | C47: Martin Primary | D47: B | E47: 11093 | F47: 3523 | G47: =VLOOKUP(E47,'[69]bank code'!$B$4:$D$99,2,0) -> 938700 | H47: 400130 | I47: 10007063
A48: Pri | B48: VA | C48: Mathilda Marks Kennedy | D48: B | E48: 10125 | F48: 5948 | G48: =VLOOKUP(E48,'[69]bank code'!$B$4:$D$99,2,0) -> 938694 | H48: 400112 | I48: 10006913
A49: Pri | B49: VA | C49: Menorah Foundation | D49: B | E49: 10126 | F49: 5949 | G49: =VLOOKUP(E49,'[69]bank code'!$B$4:$D$99,2,0) -> 938695 | H49: 400110 | I49: 10007662
A50: Pri | B50: VA | C50: Menorah Primary | D50: A | E50: 10114 | F50: 3513 | G50: =VLOOKUP(E50,'[69]bank code'!$B$4:$D$99,2,0) -> 938676 | H50: 400007 | I50: 10004701
A51: Pri | B51: VA | C51: Monken Hadley | D51: A | E51: 10078 | F51: 3305 | G51: =VLOOKUP(E51,'[69]bank code'!$B$4:$D$99,2,0) -> 938655 | H51: 400086 | I51: 10007576
A52: Pri | B52: Comm | C52: Monkfrith | D52: D | E52: 10079 | F52: 2042 | G52: =VLOOKUP(E52,'[69]bank code'!$B$4:$D$99,2,0) -> 938632 | H52: 400048 | I52: 10007064
A53: Pri | B53: Comm | C53: Moss Hall Infant | D53: A | E53: 10081 | F53: 2044 | G53: =VLOOKUP(E53,'[69]bank code'!$B$4:$D$99,2,0) -> 938634 | H53: 400087 | I53: 10006045
A54: Pri | B54: Comm | C54: Moss Hall Junior | D54: A | E54: 10080 | F54: 2043 | G54: =VLOOKUP(E54,'[69]bank code'!$B$4:$D$99,2,0) -> 938633 | H54: 400088 | I54: 10006046
A55: Pri | B55: Comm | C55: Northside | D55: A | E55: 10082 | F55: 2045 | G55: =VLOOKUP(E55,'[69]bank code'!$B$4:$D$99,2,0) -> 938635 | H55: 400089 | I55: 10006042
A56: Pri | B56: Comm | C56: Orion | D56: A | E56: 10127 | F56: 2077 | G56: =VLOOKUP(E56,'[69]bank code'!$B$4:$D$99,2,0) -> 938649 | H56: 400113 | I56: 10006118
A57: Pri | B57: Found | C57: Osidge | D57: B | E57: 10084 | F57: 5201 | G57: =VLOOKUP(E57,'[69]bank code'!$B$4:$D$99,2,0) -> 938687 | H57: 400021 | I57: 10006718
A58: Pri | B58: VA | C58: Our Lady of Lourdes | D58: A | E58: 10085 | F58: 3501 | G58: =VLOOKUP(E58,'[69]bank code'!$B$4:$D$99,2,0) -> 938666 | H58: 400003 | I58: 10006044
A59: Pri | B59: VA | C59: Pardes House | D59: A | E59: 10129 | F59: 2078 | G59: =VLOOKUP(E59,'[69]bank code'!$B$4:$D$99,2,0) -> 938650 | H59: 400014 | I59: 10007235
A60: Pri | B60: Comm | C60: Queenswell Infant | D60: C | E60: 10119 | F60: 2071 | G60: =VLOOKUP(E60,'[69]bank code'!$B$4:$D$99,2,0) -> 938644 | H60: 400010 | I60: 10029831
A61: Pri | B61: Comm | C61: Queenswell Junior | D61: C | E61: 10086 | F61: 2072 | G61: =VLOOKUP(E61,'[69]bank code'!$B$4:$D$99,2,0) -> 938645 | H61: 400012 | I61: 10004332
A62: Pri | B62: VA | C62: Rosh Pinah | D62: D | E62: 10112 | F62: 3512 | G62: =VLOOKUP(E62,'[69]bank code'!$B$4:$D$99,2,0) -> 938675 | H62: 400093 | I62: 10005964
A63: Pri | B63: VA | C63: Sacks Morasha | D63: C | E63: 11381 | F63: 2041 | G63: =VLOOKUP(E63,'[69]bank code'!$B$4:$D$99,2,0) -> 938703 | H63: 400155 | I63: 10070971
A64: Pri | B64: VA | C64: Sacred Heart RC | D64: A | E64: 10110 | F64: 3510 | G64: =VLOOKUP(E64,'[69]bank code'!$B$4:$D$99,2,0) -> 938673 | H64: 400071 | I64: 10004882
A65: Pri | B65: VA | C65: St. Agnes' RC | D65: A | E65: 10087 | F65: 3502 | G65: =VLOOKUP(E65,'[69]bank code'!$B$4:$D$99,2,0) -> 938667 | H65: 400096 | I65: 10007803
A66: Pri | B66: VA | C66: St. Andrew's CE | D66: A | E66: 10099 | F66: 3315 | G66: =VLOOKUP(E66,'[69]bank code'!$B$4:$D$99,2,0) -> 938662 | H66: 400062 | I66: 10004672
A67: Pri | B67: VA | C67: St. Catherine's RC | D67: A | E67: 10088 | F67: 3504 | G67: =VLOOKUP(E67,'[69]bank code'!$B$4:$D$99,2,0) -> 938668 | H67: 400064 | I67: 10007065
A68: Pri | B68: VA | C68: St. John's CE (N11) | D68: A | E68: 10089 | F68: 3307 | G68: =VLOOKUP(E68,'[69]bank code'!$B$4:$D$99,2,0) -> 938656 | H68: 400114 | I68: 10007066
A69: Pri | B69: VA | C69: St. John's CE (N20) | D69: C | E69: 10116 | F69: 3309 | G69: =VLOOKUP(E69,'[69]bank code'!$B$4:$D$99,2,0) -> 938657 | H69: 400098 | I69: 10006508
A70: Pri | B70: VA | C70: St. Joseph's RC Primary | D70: A | E70: 10107 | F70: 3509 | G70: =VLOOKUP(E70,'[69]bank code'!$B$4:$D$99,2,0) -> 938672 | H70: 400066 | I70: 10022140
A71: All | B71: VA | C71: St. Mary's & St. Johns Primary | D71: B | E71: 10698 | F71: 3521 | G71: =VLOOKUP(E71,'[69]bank code'!$B$4:$D$99,2,0) -> 938681 | H71: 400135 | I71: 10007067
A72: Pri | B72: VA | C72: St. Mary's CE (EN4) | D72: A | E72: 10093 | F72: 3312 | G72: =VLOOKUP(E72,'[69]bank code'!$B$4:$D$99,2,0) -> 938659 | H72: 400017 | I72: 10004397
A73: Pri | B73: VA | C73: St. Mary's CE (N3) | D73: A | E73: 10092 | F73: 3311 | G73: =VLOOKUP(E73,'[69]bank code'!$B$4:$D$99,2,0) -> 938658 | H73: 400058 | I73: 10008120
A74: Pri | B74: VA | C74: St. Paul's CE (N11) | D74: A | E74: 10094 | F74: 3313 | G74: =VLOOKUP(E74,'[69]bank code'!$B$4:$D$99,2,0) -> 938660 | H74: 400006 | I74: 10007095
A75: Pri | B75: VA | C75: St. Paul's CE (NW7) | D75: B | E75: 10095 | F75: 3314 | G75: =VLOOKUP(E75,'[69]bank code'!$B$4:$D$99,2,0) -> 938661 | H75: 400094 | I75: 10005209
A76: Pri | B76: VA | C76: St. Theresa's | D76: A | E76: 10108 | F76: 3507 | G76: =VLOOKUP(E76,'[69]bank code'!$B$4:$D$99,2,0) -> 938670 | H76: 400037 | I76: 10027404
A77: Pri | B77: VA | C77: St. Vincent's | D77: A | E77: 10096 | F77: 3506 | G77: =VLOOKUP(E77,'[69]bank code'!$B$4:$D$99,2,0) -> 938669 | H77: 400009 | I77: 10007826
A78: Pri | B78: Comm | C78: Sunnyfields | D78: D | E78: 10097 | F78: 2070 | G78: =VLOOKUP(E78,'[69]bank code'!$B$4:$D$99,2,0) -> 938643 | H78: 400038 | I78: 10006577
A79: Pri | B79: VA | C79: Trent CE | D79: A | E79: 10100 | F79: 3316 | G79: =VLOOKUP(E79,'[69]bank code'!$B$4:$D$99,2,0) -> 938663 | H79: 400100 | I79: 10006115
A80: Pri | B80: Comm | C80: Tudor | D80: A | E80: 10101 | F80: 2055 | G80: =VLOOKUP(E80,'[69]bank code'!$B$4:$D$99,2,0) -> 938638 | H80: 400101 | I80: 10007069
A81: Pri / CC | B81: Comm | C81: Underhill School | D81: B | E81: 10103 | F81: 2057 | G81: =VLOOKUP(E81,'[69]bank code'!$B$4:$D$99,2,0) -> 938640 | H81: 400053 | I81: 00001263 | K81: 10055238 | L81: cc
A82: Pri | B82: Comm | C82: Wessex Gardens | D82: D | E82: 10124 | F82: 2076 | G82: =VLOOKUP(E82,'[69]bank code'!$B$4:$D$99,2,0) -> 938648 | H82: 400111 | I82: 10027395
A83: Pri | B83: Comm | C83: Whitings Hill | D83: A | E83: 10105 | F83: 2060 | G83: =VLOOKUP(E83,'[69]bank code'!$B$4:$D$99,2,0) -> 938641 | H83: 400011 | I83: 10007070
A84: Pri | B84: Comm | C84: Woodcroft | D84: A | E84: 10123 | F84: 3518 | G84: =VLOOKUP(E84,'[69]bank code'!$B$4:$D$99,2,0) -> 938679 | H84: 400117 | I84: 10006392
A85: Pri | B85: Comm | C85: Woodridge | D85: A | E85: 10109 | F85: 2054 | G85: =VLOOKUP(E85,'[69]bank code'!$B$4:$D$99,2,0) -> 938637 | H85: 400004 | I85: 10007071
C86: Total Primary Schools | J86: =COUNTA(E9:E85) -> 77
A87: Sec | B87: VA | C87: Finchley Catholic High | D87: B | E87: 10145 | F87: 5405 | G87: =VLOOKUP(E87,'[69]bank code'!$B$4:$D$99,2,0) -> 938690 | H87: 400041 | I87: 10028710
A88: Sec | B88: Comm | C88: Friern Barnet School | D88: D | E88: 10139 | F88: 4003 | G88: =VLOOKUP(E88,'[69]bank code'!$B$4:$D$99,2,0) -> 938683 | H88: 400033 | I88: 10027413
A89: Sec | B89: VA | C89: JCoSS | D89: A | E89: 11174 | F89: 5427 | G89: =VLOOKUP(E89,'[69]bank code'!$B$4:$D$99,2,0) -> 938693 | H89: 400140 | I89: 10057017
A90: Sec | B90: VA | C90: Menorah High School for Girls | D90: D | E90: 11513 | F90: 4004 | G90: =VLOOKUP(E90,'[69]bank code'!$B$4:$D$99,2,0) -> 938707 | H90: 107953 | I90: 10029127 | K90: ??
A91: Sec | B91: VA | C91: St James' Catholic High | D91: B | E91: 10142 | F91: 5407 | G91: =VLOOKUP(E91,'[69]bank code'!$B$4:$D$99,2,0) -> 938691 | H91: 400013 | I91: 10028917
A92: Sec | B92: VA | C92: St. Michael's Catholic Grammar | D92: B | E92: 10148 | F92: 5404 | G92: =VLOOKUP(E92,'[69]bank code'!$B$4:$D$99,2,0) -> 938689 | H92: 400029 | I92: 10005539
C93: Total Secondary Schools | J93: =COUNTA(E87:E92) -> 6 | K93: 8
A94: Sec | B94: Comm | C94: Mapledown | D94: D | E94: 10159 | F94: 7010 | G94: =VLOOKUP(E94,'[69]bank code'!$B$4:$D$99,2,0) -> 938699 | H94: 400063 | I94: 10007062
A95: Pri | B95: Comm | C95: Northway | D95: A | E95: 10157 | F95: 7005 | G95: =VLOOKUP(E95,'[69]bank code'!$B$4:$D$99,2,0) -> 938697 | H95: 400034 | I95: 10006690
A96: Pri | B96: Comm | C96: Oakleigh | D96: D | E96: 10158 | F96: 7009 | G96: =VLOOKUP(E96,'[69]bank code'!$B$4:$D$99,2,0) -> 938698 | H96: 400091 | I96: 10006957
C97: Total Special Schools | J97: =COUNTA(E94:E96) -> 3
A98: Sec | C98: Northgate | D98: A | E98: 10185 | F98: 1102 | G98: =VLOOKUP(E98,'[69]bank code'!$B$4:$D$99,2,0) -> 938705 | H98: 400157 | I98: 10071851
A99: Sec | C99: Pavillion | D99: A | E99: 10188 | F99: 1100 | G99: =VLOOKUP(E99,'[69]bank code'!$B$4:$D$99,2,0) -> 938706 | H99: 400156 | I99: 10028935
C100: Total PRU's | J100: =COUNTA(E98:E99) -> 2
C102: Total No. of Schools as at September 2017 | J102: =J97+J93+J86+J8+J100 -> 92
C105: Schools Converted to Academies since 2010/11: | H105: New Vendor No. | I105: converted/converting
A106: Acad | B106: Sec | C106: Ashmole School | E106: 10136 | F106: 5406 | G106: 938530 | H106: 140909 | I106: 2010-10-01
A107: Acad | B107: Sec | C107: Compton School | E107: 10138 | F107: 4215 | G107: 938475 | H107: 140894 | I107: 2011-01-01
A108: Acad | B108: Sec | C108: Copthall School | E108: 10152 | F108: 4210 | G108: 938460 | H108: 148020 | I108: 2012-09-01
A109: Acad | B109: Sec | C109: Queen Elizabeth's School, Barnet | E109: 10149 | F109: 5401 | G109: 938505 | H109: 139142 | I109: 2010-09-01
A110: Acad | B110: Sec | C110: East Barnet School | E110: 10153 | F110: 4212 | G110: 938470 | H110: 143727 | I110: 2011-04-01
A111: Acad | B111: Sec | C111: Christ's College | E111: 10151 | F111: 4211 | G111: 938465 | H111: 144389 | I111: 2011-09-01
A112: Acad | B112: Sec | C112: Hasmonean High School | E112: 10146 | F112: 5409 | G112: 938545 | H112: 145386 | I112: 2011-10-01
A113: Acad | B113: Sec | C113: Hendon School | E113: 10150 | F113: 5400 | G113: 938500 | H113: 145169 | I113: 2011-11-01
A114: Acad | B114: Sec | C114: Henrietta Barnett School | E114: 10147 | F114: 4752 | G114: 938485 | H114: 147243 | I114: 2012-04-01
A115: Acad | B115: Sec | C115: Mill Hill High School | E115: 10140 | F115: 5402 | G115: 938510 | H115: 144069 | I115: 2011-09-01
A116: Acad | B116: Sec | C116: Queen Elizabeth's Girls' School | E116: 10154 | F116: 4208 | G116: 938455 | H116: 144387 | I116: 2011-08-01
A117: Acad | B117: Sec | C117: Ravenscroft School | E117: 10141 | F117: 4009 | G117: 938445 | H117: 144388 | I117: 2011-09-01
A118: Acad | B118: Sec | C118: Whitefield School | E118: 10144 | F118: 4012 | G118: 938450 | H118: 144062 | I118: 2011-09-01
A119: Acad | B119: Sec | C119: Bishop Douglass RC High | E119: 10137 | F119: 5408 | G119: 938540 | H119: 156628 | I119: 2016-09-01
A120: Acad | B120: Special | C120: Oak Lodge | E120: 10156 | F120: 7000 | G120: =VLOOKUP(E120,'[69]bank code'!$B$4:$D$99,2,0) -> 938696 | H120: 156901 | I120: 2017-01-01
A121: Acad | B121: Pri | C121: Grasvenor Avenue Infant School | E121: 10070 | F121: 2030 | G121: 938145 | H121: 148347 | I121: 2012-09-01
A122: Acad | B122: Pri | C122: Independent Jewish Day School | E122: 10106 | F122: 3515 | G122: 938420 | H122: 143982 | I122: 2011-08-17
A123: Acad | B123: Pri | C123: Deansbrook Junior School | E123: 10058 | F123: 2018 | G123: 938090 | H123: 151094 | I123: 2013-04-01
A124: Acad | B124: Pri | C124: Parkfield School | E124: 10120 | F124: 2000 | G124: 938020 | H124: 152217 | I124: 2013-08-01
A125: Acad | B125: Pri | C125: Hyde School | E125: 10122 | F125: 2074 | G125: 938260 | H125: 151702 | I125: 2013-09-01
A126: Acad | B126: Pri | C126: Broadfields School | E126: 10134 | F126: 3519 | G126: 938435 | H126: 152128 | I126: 2013-10-01
A127: Acad | B127: Pri | C127: Claremont | E127: 10953 | F127: 2014 | H127: 6610 | I127: 2016-03-01
A128: Acad | B128: Pri | C128: Summerside | E128: 10098 | F128: 2052 | G128: =VLOOKUP(E128,'[69]bank code'!$B$4:$D$99,2,0) -> 938636 | I128: 2017-09-01
C130: Total Schools Converted to Academies | J130: =COUNTA(E106:E128) -> 23
C132: Total Schools (including schools converted to Academies) | J132: =J102+J130 -> 115
C134: Millbrook Park Academy | H134: 153348 | I134: Opening Sept 2015
C136: Closed Schools
A137: Sec | B137: closed | C137: St Mary's CE High School | D137: B | E137: 10143 | F137: 5403 | G137: 938515 | H137: 400025 | I137: 10030357 | K137: 2016-08-31
E145: Customer No.
C146: Akiva | E146: 10030154
C147: All Saints' CE (NW2) | E147: 10006117
C148: All Saints' CE (N20) | E148: 10006041
C149: Annunciation RC Infant | E149: 10008146
C150: Annunciation RC Junior | E150: 10007147
C151: Ashmole School | E151: 10007865
C152: Barnfield | E152: 10007053
C153: Barnfield Childrens Centre | E153: 10051934
C154: Beis Yaakov | E154: 10028579
C155: Beit Shvidler | E155: 10067446
C156: Bell Lane Childrens Centre | E156: 10051935
C157: Bell Lane | E157: 10006405
C158: Bishop Douglass RC High | E158: 10005963
C159: Blessed Dominic RC School | E159: 10007834
C160: Broadfields Primary | E160: 10007054
C161: Brookhill Nursery | E161: 10021968
C162: Brookland Infant | E162: 10006742
C163: Brookland Junior | E163: 10007055
C164: Brunswick Park | E164: 10007056
C165: Chalgrove | E165: 10006373
C166: Childs Hill Childrens Centre | E166: 10051936
C167: Childs Hill | E167: 10004595
C168: Christ Church | E168: 10004765
C169: Christ's College (Academy) | E169: 10065082
C170: Church Hill | E170: 10028842
C171: Claremont | E171: 10015148
C172: Colindale | E172: 10006223
C173: Compton School (Academy) | E173: 10063055
C174: Coppetts Wood Childrens Centre | E174: 10051937
C175: Coppetts Wood | E175: 10029750
C176: Copthall School | E176: 10005960
C177: Copthall School (Academy) | E177: 10069115
C178: Courtland | E178: 10007246
C179: Cromer Road | E179: 10005184
C180: Danegrove | E180: 10004576
C181: Deansbrook Infant | E181: 10004642
C182: Deansbrook Junior School (Academy) | E182: 10072028
C183: Dollis Infant | E183: 10008630
C184: Dollis Junior | E184: 10029408
C185: East Barnet School (Academy) | E185: 10063334
C186: Edgware Primary | E186: 10029387
C187: Fairway Childrens Centre | E187: 10025086
C188: Fairway | E188: 10006689
C189: Finchley Catholic High | E189: 10028710
C190: Foulds | E190: 10027412
C191: Friern Barnet School | E191: 10027413
C192: Frith Manor | E192: 10007765
C193: Garden Suburb Junior | E193: 10005165
C194: Garden Suburb Infant | E194: 10006049
C195: Goldbeaters | E195: 10008175
C196: Grasvenor Avenue Infant (Academy) | E196: 10069114
C197: Hampden Way Childrens Centre | E197: 10051938
C198: Hampden Way Nursery | E198: 10028845
C199: Hasmonean High School (girls) (Academy) | E199: 10065398
C200: Hasmonean Primary | E200: 10006802
C201: Hendon School (Academy) | E201: 10065838
C202: Henrietta Barnett School (Academy) | E202: 10065035
C203: Hollickwood | E203: 10008170
C204: Holly Park | E204: 10007226
C205: Holy Trinity | E205: 10006043
C206: Hyde Childrens Centre | E206: 10051942
C207: Hyde | E207: 10008119
C208: Independent Jewish Day School (Academy) | E208: 10064736
C209: JCOSS | E209: 10057017
C210: Livingstone | E210: 10007060
C211: London Academy | E211: 10008065
C212: Manorside | E212: 10007061
C213: Mapledown | E213: 10007062
C214: Martin Primary | E214: 10007063
C215: Mathilda Marks Kennedy | E215: 10006913
... 60 more rows
